{"text_format":"1","workbook":"xlsx","n_sheets":1,"sheets":["DIN A4"],"not_rendered":{"charts":0,"images":1,"macros":1,"external_links":0,"defined_names":1,"comments":0,"pivot_tables":0},"unopened":[],"bounds":{"document_bytes":16777216,"sheet_cells":100000,"rows_first":2000,"rows_last":500,"rows_between":2000,"halvings":0,"cell_chars":16384,"cell_head_chars":4096},"cells_cut":0,"cells_raw":0,"read":"whole","date_system":"1900"}

{"sheet":"DIN A4","index":0,"n_rows":2299,"n_cols":54,"rows_kept":2299,"cut":false,"hidden":false,"merged":[[2291,48,2291,52],[2294,0,2294,14],[2294,27,2294,41],[2297,18,2297,25],[2297,45,2297,52],[2280,11,2280,14],[2280,38,2280,41],[2291,0,2291,3],[2291,6,2291,10],[2291,14,2291,17],[2291,21,2291,25],[2291,27,2291,30],[2291,33,2291,37],[2291,41,2291,44],[2255,14,2255,25],[2255,41,2255,52],[2278,0,2278,7],[2278,15,2278,25],[2278,27,2278,34],[2278,42,2278,52],[2245,48,2245,52],[2248,0,2248,14],[2248,27,2248,41],[2251,18,2251,25],[2251,45,2251,52],[2254,14,2254,25],[2254,41,2254,52],[2234,11,2234,14],[2234,38,2234,41],[2245,0,2245,3],[2245,6,2245,10],[2245,14,2245,17],[2245,21,2245,25],[2245,27,2245,30],[2245,33,2245,37],[2245,41,2245,44],[2209,14,2209,25],[2209,41,2209,52],[2232,0,2232,7],[2232,15,2232,25],[2232,27,2232,34],[2232,42,2232,52],[2199,48,2199,52],[2202,0,2202,14],[2202,27,2202,41],[2205,18,2205,25],[2205,45,2205,52],[2208,14,2208,25],[2208,41,2208,52],[2188,11,2188,14],[2188,38,2188,41],[2199,0,2199,3],[2199,6,2199,10],[2199,14,2199,17],[2199,21,2199,25],[2199,27,2199,30],[2199,33,2199,37],[2199,41,2199,44],[2163,14,2163,25],[2163,41,2163,52],[2186,0,2186,7],[2186,15,2186,25],[2186,27,2186,34],[2186,42,2186,52],[2153,48,2153,52],[2156,0,2156,14],[2156,27,2156,41],[2159,18,2159,25],[2159,45,2159,52],[2162,14,2162,25],[2162,41,2162,52],[2142,11,2142,14],[2142,38,2142,41],[2153,0,2153,3],[2153,6,2153,10],[2153,14,2153,17],[2153,21,2153,25],[2153,27,2153,30],[2153,33,2153,37],[2153,41,2153,44],[2117,14,2117,25],[2117,41,2117,52],[2140,0,2140,7],[2140,15,2140,25],[2140,27,2140,34],[2140,42,2140,52],[2107,48,2107,52],[2110,0,2110,14],[2110,27,2110,41],[2113,18,2113,25],[2113,45,2113,52],[2116,14,2116,25],[2116,41,2116,52],[2096,11,2096,14],[2096,38,2096,41],[2107,0,2107,3],[2107,6,2107,10],[2107,14,2107,17],[2107,21,2107,25],[2107,27,2107,30],[2107,33,2107,37],[2107,41,2107,44],[2071,14,2071,25],[2071,41,2071,52],[2094,0,2094,7],[2094,15,2094,25],[2094,27,2094,34],[2094,42,2094,52],[2061,48,2061,52],[2064,0,2064,14],[2064,27,2064,41],[2067,18,2067,25],[2067,45,2067,52],[2070,14,2070,25],[2070,41,2070,52],[2050,11,2050,14],[2050,38,2050,41],[2061,0,2061,3],[2061,6,2061,10],[2061,14,2061,17],[2061,21,2061,25],[2061,27,2061,30],[2061,33,2061,37],[2061,41,2061,44],[2025,14,2025,25],[2025,41,2025,52],[2048,0,2048,7],[2048,15,2048,25],[2048,27,2048,34],[2048,42,2048,52],[2015,48,2015,52],[2018,0,2018,14],[2018,27,2018,41],[2021,18,2021,25],[2021,45,2021,52],[2024,14,2024,25],[2024,41,2024,52],[2004,11,2004,14],[2004,38,2004,41],[2015,0,2015,3],[2015,6,2015,10],[2015,14,2015,17],[2015,21,2015,25],[2015,27,2015,30],[2015,33,2015,37],[2015,41,2015,44],[1979,14,1979,25],[1979,41,1979,52],[2002,0,2002,7],[2002,15,2002,25],[2002,27,2002,34],[2002,42,2002,52],[1969,48,1969,52],[1972,0,1972,14],[1972,27,1972,41],[1975,18,1975,25],[1975,45,1975,52],[1978,14,1978,25],[1978,41,1978,52],[1958,11,1958,14],[1958,38,1958,41],[1969,0,1969,3],[1969,6,1969,10],[1969,14,1969,17],[1969,21,1969,25],[1969,27,1969,30],[1969,33,1969,37],[1969,41,1969,44],[1933,14,1933,25],[1933,41,1933,52],[1956,0,1956,7],[1956,15,1956,25],[1956,27,1956,34],[1956,42,1956,52],[1923,48,1923,52],[1926,0,1926,14],[1926,27,1926,41],[1929,18,1929,25],[1929,45,1929,52],[1932,14,1932,25],[1932,41,1932,52],[1912,11,1912,14],[1912,38,1912,41],[1923,0,1923,3],[1923,6,1923,10],[1923,14,1923,17],[1923,21,1923,25],[1923,27,1923,30],[1923,33,1923,37],[1923,41,1923,44],[1887,14,1887,25],[1887,41,1887,52],[1910,0,1910,7],[1910,15,1910,25],[1910,27,1910,34],[1910,42,1910,52],[1877,48,1877,52],[1880,0,1880,14],[1880,27,1880,41],[1883,18,1883,25],[1883,45,1883,52],[1886,14,1886,25],[1886,41,1886,52],[1866,11,1866,14],[1866,38,1866,41],[1877,0,1877,3],[1877,6,1877,10],[1877,14,1877,17],[1877,21,1877,25],[1877,27,1877,30],[1877,33,1877,37],[1877,41,1877,44],[1841,14,1841,25],[1841,41,1841,52],[1864,0,1864,7],[1864,15,1864,25],[1864,27,1864,34],[1864,42,1864,52],[1831,48,1831,52],[1834,0,1834,14],[1834,27,1834,41],[1837,18,1837,25],[1837,45,1837,52],[1840,14,1840,25],[1840,41,1840,52],[1820,11,1820,14],[1820,38,1820,41],[1831,0,1831,3],[1831,6,1831,10],[1831,14,1831,17],[1831,21,1831,25],[1831,27,1831,30],[1831,33,1831,37],[1831,41,1831,44],[1795,14,1795,25],[1795,41,1795,52],[1818,0,1818,7],[1818,15,1818,25],[1818,27,1818,34],[1818,42,1818,52],[1785,48,1785,52],[1788,0,1788,14],[1788,27,1788,41],[1791,18,1791,25],[1791,45,1791,52],[1794,14,1794,25],[1794,41,1794,52],[1774,11,1774,14],[1774,38,1774,41],[1785,0,1785,3],[1785,6,1785,10],[1785,14,1785,17],[1785,21,1785,25],[1785,27,1785,30],[1785,33,1785,37],[1785,41,1785,44],[1749,14,1749,25],[1749,41,1749,52],[1772,0,1772,7],[1772,15,1772,25],[1772,27,1772,34],[1772,42,1772,52],[1739,48,1739,52],[1742,0,1742,14],[1742,27,1742,41],[1745,18,1745,25],[1745,45,1745,52],[1748,14,1748,25],[1748,41,1748,52],[1728,11,1728,14],[1728,38,1728,41],[1739,0,1739,3],[1739,6,1739,10],[1739,14,1739,17],[1739,21,1739,25],[1739,27,1739,30],[1739,33,1739,37],[1739,41,1739,44],[1703,14,1703,25],[1703,41,1703,52],[1726,0,1726,7],[1726,15,1726,25],[1726,27,1726,34],[1726,42,1726,52],[1693,48,1693,52],[1696,0,1696,14],[1696,27,1696,41],[1699,18,1699,25],[1699,45,1699,52],[1702,14,1702,25],[1702,41,1702,52],[1682,11,1682,14],[1682,38,1682,41],[1693,0,1693,3],[1693,6,1693,10],[1693,14,1693,17],[1693,21,1693,25],[1693,27,1693,30],[1693,33,1693,37],[1693,41,1693,44],[1657,14,1657,25],[1657,41,1657,52],[1680,0,1680,7],[1680,15,1680,25],[1680,27,1680,34],[1680,42,1680,52],[1647,48,1647,52],[1650,0,1650,14],[1650,27,1650,41],[1653,18,1653,25],[1653,45,1653,52],[1656,14,1656,25],[1656,41,1656,52],[1636,11,1636,14],[1636,38,1636,41],[1647,0,1647,3],[1647,6,1647,10],[1647,14,1647,17],[1647,21,1647,25],[1647,27,1647,30],[1647,33,1647,37],[1647,41,1647,44],[1611,14,1611,25],[1611,41,1611,52],[1634,0,1634,7],[1634,15,1634,25],[1634,27,1634,34],[1634,42,1634,52],[1601,48,1601,52],[1604,0,1604,14],[1604,27,1604,41],[1607,18,1607,25],[1607,45,1607,52],[1610,14,1610,25],[1610,41,1610,52],[1590,11,1590,14],[1590,38,1590,41],[1601,0,1601,3],[1601,6,1601,10],[1601,14,1601,17],[1601,21,1601,25],[1601,27,1601,30],[1601,33,1601,37],[1601,41,1601,44],[1565,14,1565,25],[1565,41,1565,52],[1588,0,1588,7],[1588,15,1588,25],[1588,27,1588,34],[1588,42,1588,52],[1555,48,1555,52],[1558,0,1558,14],[1558,27,1558,41],[1561,18,1561,25],[1561,45,1561,52],[1564,14,1564,25],[1564,41,1564,52],[1544,11,1544,14],[1544,38,1544,41],[1555,0,1555,3],[1555,6,1555,10],[1555,14,1555,17],[1555,21,1555,25],[1555,27,1555,30],[1555,33,1555,37],[1555,41,1555,44],[1519,14,1519,25],[1519,41,1519,52],[1542,0,1542,7],[1542,15,1542,25],[1542,27,1542,34],[1542,42,1542,52],[1509,48,1509,52],[1512,0,1512,14],[1512,27,1512,41],[1515,18,1515,25],[1515,45,1515,52],[1518,14,1518,25],[1518,41,1518,52],[1498,11,1498,14],[1498,38,1498,41],[1509,0,1509,3],[1509,6,1509,10],[1509,14,1509,17],[1509,21,1509,25],[1509,27,1509,30],[1509,33,1509,37],[1509,41,1509,44],[1473,14,1473,25],[1473,41,1473,52],[1496,0,1496,7],[1496,15,1496,25],[1496,27,1496,34],[1496,42,1496,52],[1463,48,1463,52],[1466,0,1466,14],[1466,27,1466,41],[1469,18,1469,25],[1469,45,1469,52],[1472,14,1472,25],[1472,41,1472,52],[1452,11,1452,14],[1452,38,1452,41],[1463,0,1463,3],[1463,6,1463,10],[1463,14,1463,17],[1463,21,1463,25],[1463,27,1463,30],[1463,33,1463,37],[1463,41,1463,44],[1427,14,1427,25],[1427,41,1427,52],[1450,0,1450,7],[1450,15,1450,25],[1450,27,1450,34],[1450,42,1450,52],[1417,48,1417,52],[1420,0,1420,14],[1420,27,1420,41],[1423,18,1423,25],[1423,45,1423,52],[1426,14,1426,25],[1426,41,1426,52],[1406,11,1406,14],[1406,38,1406,41],[1417,0,1417,3],[1417,6,1417,10],[1417,14,1417,17],[1417,21,1417,25],[1417,27,1417,30],[1417,33,1417,37],[1417,41,1417,44],[1381,14,1381,25],[1381,41,1381,52],[1404,0,1404,7],[1404,15,1404,25],[1404,27,1404,34],[1404,42,1404,52],[1371,48,1371,52],[1374,0,1374,14],[1374,27,1374,41],[1377,18,1377,25],[1377,45,1377,52],[1380,14,1380,25],[1380,41,1380,52],[1360,11,1360,14],[1360,38,1360,41],[1371,0,1371,3],[1371,6,1371,10],[1371,14,1371,17],[1371,21,1371,25],[1371,27,1371,30],[1371,33,1371,37],[1371,41,1371,44],[1335,14,1335,25],[1335,41,1335,52],[1358,0,1358,7],[1358,15,1358,25],[1358,27,1358,34],[1358,42,1358,52],[1325,48,1325,52],[1328,0,1328,14],[1328,27,1328,41],[1331,18,1331,25],[1331,45,1331,52],[1334,14,1334,25],[1334,41,1334,52],[1314,11,1314,14],[1314,38,1314,41],[1325,0,1325,3],[1325,6,1325,10],[1325,14,1325,17],[1325,21,1325,25],[1325,27,1325,30],[1325,33,1325,37],[1325,41,1325,44],[1289,14,1289,25],[1289,41,1289,52],[1312,0,1312,7],[1312,15,1312,25],[1312,27,1312,34],[1312,42,1312,52],[1279,48,1279,52],[1282,0,1282,14],[1282,27,1282,41],[1285,18,1285,25],[1285,45,1285,52],[1288,14,1288,25],[1288,41,1288,52],[1268,11,1268,14],[1268,38,1268,41],[1279,0,1279,3],[1279,6,1279,10],[1279,14,1279,17],[1279,21,1279,25],[1279,27,1279,30],[1279,33,1279,37],[1279,41,1279,44],[1243,14,1243,25],[1243,41,1243,52],[1266,0,1266,7],[1266,15,1266,25],[1266,27,1266,34],[1266,42,1266,52],[1233,48,1233,52],[1236,0,1236,14],[1236,27,1236,41],[1239,18,1239,25],[1239,45,1239,52],[1242,14,1242,25],[1242,41,1242,52],[1222,11,1222,14],[1222,38,1222,41],[1233,0,1233,3],[1233,6,1233,10],[1233,14,1233,17],[1233,21,1233,25],[1233,27,1233,30],[1233,33,1233,37],[1233,41,1233,44],[1197,14,1197,25],[1197,41,1197,52],[1220,0,1220,7],[1220,15,1220,25],[1220,27,1220,34],[1220,42,1220,52],[1187,48,1187,52],[1190,0,1190,14],[1190,27,1190,41],[1193,18,1193,25],[1193,45,1193,52],[1196,14,1196,25],[1196,41,1196,52],[1176,11,1176,14],[1176,38,1176,41],[1187,0,1187,3],[1187,6,1187,10],[1187,14,1187,17],[1187,21,1187,25],[1187,27,1187,30],[1187,33,1187,37],[1187,41,1187,44],[1151,14,1151,25],[1151,41,1151,52],[1174,0,1174,7],[1174,15,1174,25],[1174,27,1174,34],[1174,42,1174,52],[1141,48,1141,52],[1144,0,1144,14],[1144,27,1144,41],[1147,18,1147,25],[1147,45,1147,52],[1150,14,1150,25],[1150,41,1150,52],[1130,11,1130,14],[1130,38,1130,41],[1141,0,1141,3],[1141,6,1141,10],[1141,14,1141,17],[1141,21,1141,25],[1141,27,1141,30],[1141,33,1141,37],[1141,41,1141,44],[1105,14,1105,25],[1105,41,1105,52],[1128,0,1128,7],[1128,15,1128,25],[1128,27,1128,34],[1128,42,1128,52],[1095,48,1095,52],[1098,0,1098,14],[1098,27,1098,41],[1101,18,1101,25],[1101,45,1101,52],[1104,14,1104,25],[1104,41,1104,52],[1084,11,1084,14],[1084,38,1084,41],[1095,0,1095,3],[1095,6,1095,10],[1095,14,1095,17],[1095,21,1095,25],[1095,27,1095,30],[1095,33,1095,37],[1095,41,1095,44],[1059,14,1059,25],[1059,41,1059,52],[1082,0,1082,7],[1082,15,1082,25],[1082,27,1082,34],[1082,42,1082,52],[1049,48,1049,52],[1052,0,1052,14],[1052,27,1052,41],[1055,18,1055,25],[1055,45,1055,52],[1058,14,1058,25],[1058,41,1058,52],[1038,11,1038,14],[1038,38,1038,41],[1049,0,1049,3],[1049,6,1049,10],[1049,14,1049,17],[1049,21,1049,25],[1049,27,1049,30],[1049,33,1049,37],[1049,41,1049,44],[1013,14,1013,25],[1013,41,1013,52],[1036,0,1036,7],[1036,15,1036,25],[1036,27,1036,34],[1036,42,1036,52],[1003,48,1003,52],[1006,0,1006,14],[1006,27,1006,41],[1009,18,1009,25],[1009,45,1009,52],[1012,14,1012,25],[1012,41,1012,52],[992,11,992,14],[992,38,992,41],[1003,0,1003,3],[1003,6,1003,10],[1003,14,1003,17],[1003,21,1003,25],[1003,27,1003,30],[1003,33,1003,37],[1003,41,1003,44],[967,14,967,25],[967,41,967,52],[990,0,990,7],[990,15,990,25],[990,27,990,34],[990,42,990,52],[957,48,957,52],[960,0,960,14],[960,27,960,41],[963,18,963,25],[963,45,963,52],[966,14,966,25],[966,41,966,52],[946,11,946,14],[946,38,946,41],[957,0,957,3],[957,6,957,10],[957,14,957,17],[957,21,957,25],[957,27,957,30],[957,33,957,37],[957,41,957,44],[921,14,921,25],[921,41,921,52],[944,0,944,7],[944,15,944,25],[944,27,944,34],[944,42,944,52],[911,48,911,52],[914,0,914,14],[914,27,914,41],[917,18,917,25],[917,45,917,52],[920,14,920,25],[920,41,920,52],[900,11,900,14],[900,38,900,41],[911,0,911,3],[911,6,911,10],[911,14,911,17],[911,21,911,25],[911,27,911,30],[911,33,911,37],[911,41,911,44],[875,14,875,25],[875,41,875,52],[898,0,898,7],[898,15,898,25],[898,27,898,34],[898,42,898,52],[865,48,865,52],[868,0,868,14],[868,27,868,41],[871,18,871,25],[871,45,871,52],[874,14,874,25],[874,41,874,52],[854,11,854,14],[854,38,854,41],[865,0,865,3],[865,6,865,10],[865,14,865,17],[865,21,865,25],[865,27,865,30],[865,33,865,37],[865,41,865,44],[829,14,829,25],[829,41,829,52],[852,0,852,7],[852,15,852,25],[852,27,852,34],[852,42,852,52],[819,48,819,52],[822,0,822,14],[822,27,822,41],[825,18,825,25],[825,45,825,52],[828,14,828,25],[828,41,828,52],[808,11,808,14],[808,38,808,41],[819,0,819,3],[819,6,819,10],[819,14,819,17],[819,21,819,25],[819,27,819,30],[819,33,819,37],[819,41,819,44],[783,14,783,25],[783,41,783,52],[806,0,806,7],[806,15,806,25],[806,27,806,34],[806,42,806,52],[773,48,773,52],[776,0,776,14],[776,27,776,41],[779,18,779,25],[779,45,779,52],[782,14,782,25],[782,41,782,52],[762,11,762,14],[762,38,762,41],[773,0,773,3],[773,6,773,10],[773,14,773,17],[773,21,773,25],[773,27,773,30],[773,33,773,37],[773,41,773,44],[737,14,737,25],[737,41,737,52],[760,0,760,7],[760,15,760,25],[760,27,760,34],[760,42,760,52],[727,48,727,52],[730,0,730,14],[730,27,730,41],[733,18,733,25],[733,45,733,52],[736,14,736,25],[736,41,736,52],[716,11,716,14],[716,38,716,41],[727,0,727,3],[727,6,727,10],[727,14,727,17],[727,21,727,25],[727,27,727,30],[727,33,727,37],[727,41,727,44],[691,14,691,25],[691,41,691,52],[714,0,714,7],[714,15,714,25],[714,27,714,34],[714,42,714,52],[681,48,681,52],[684,0,684,14],[684,27,684,41],[687,18,687,25],[687,45,687,52],[690,14,690,25],[690,41,690,52],[670,11,670,14],[670,38,670,41],[681,0,681,3],[681,6,681,10],[681,14,681,17],[681,21,681,25],[681,27,681,30],[681,33,681,37],[681,41,681,44],[645,14,645,25],[645,41,645,52],[668,0,668,7],[668,15,668,25],[668,27,668,34],[668,42,668,52],[635,48,635,52],[638,0,638,14],[638,27,638,41],[641,18,641,25],[641,45,641,52],[644,14,644,25],[644,41,644,52],[624,11,624,14],[624,38,624,41],[635,0,635,3],[635,6,635,10],[635,14,635,17],[635,21,635,25],[635,27,635,30],[635,33,635,37],[635,41,635,44],[599,14,599,25],[599,41,599,52],[622,0,622,7],[622,15,622,25],[622,27,622,34],[622,42,622,52],[589,48,589,52],[592,0,592,14],[592,27,592,41],[595,18,595,25],[595,45,595,52],[598,14,598,25],[598,41,598,52],[578,11,578,14],[578,38,578,41],[589,0,589,3],[589,6,589,10],[589,14,589,17],[589,21,589,25],[589,27,589,30],[589,33,589,37],[589,41,589,44],[553,14,553,25],[553,41,553,52],[576,0,576,7],[576,15,576,25],[576,27,576,34],[576,42,576,52],[543,48,543,52],[546,0,546,14],[546,27,546,41],[549,18,549,25],[549,45,549,52],[552,14,552,25],[552,41,552,52],[532,11,532,14],[532,38,532,41],[543,0,543,3],[543,6,543,10],[543,14,543,17],[543,21,543,25],[543,27,543,30],[543,33,543,37],[543,41,543,44],[507,14,507,25],[507,41,507,52],[530,0,530,7],[530,15,530,25],[530,27,530,34],[530,42,530,52],[497,48,497,52],[500,0,500,14],[500,27,500,41],[503,18,503,25],[503,45,503,52],[506,14,506,25],[506,41,506,52],[486,11,486,14],[486,38,486,41],[497,0,497,3],[497,6,497,10],[497,14,497,17],[497,21,497,25],[497,27,497,30],[497,33,497,37],[497,41,497,44],[460,14,460,25],[460,41,460,52],[461,14,461,25],[461,41,461,52],[484,0,484,7],[484,15,484,25],[484,27,484,34],[484,42,484,52],[451,41,451,44],[451,48,451,52],[454,0,454,14],[454,27,454,41],[457,18,457,25],[457,45,457,52],[451,0,451,3],[451,6,451,10],[451,14,451,17],[451,21,451,25],[451,27,451,30],[451,33,451,37],[438,0,438,7],[438,15,438,25],[438,27,438,34],[438,42,438,52],[440,11,440,14],[440,38,440,41],[411,18,411,25],[411,45,411,52],[414,14,414,25],[414,41,414,52],[415,14,415,25],[415,41,415,52],[405,27,405,30],[405,33,405,37],[405,41,405,44],[405,48,405,52],[408,0,408,14],[408,27,408,41],[365,45,365,52],[368,14,368,25],[368,41,368,52],[369,14,369,25],[369,41,369,52],[392,0,392,7],[392,15,392,25],[392,27,392,34],[392,42,392,52],[346,42,346,52],[348,11,348,14],[348,38,348,41],[359,0,359,3],[359,6,359,10],[359,14,359,17],[359,21,359,25],[359,27,359,30],[359,33,359,37],[359,41,359,44],[319,18,319,25],[319,45,319,52],[322,14,322,25],[322,41,322,52],[323,14,323,25],[323,41,323,52],[313,27,313,30],[313,33,313,37],[313,41,313,44],[313,48,313,52],[316,0,316,14],[316,27,316,41],[313,0,313,3],[313,6,313,10],[313,14,313,17],[313,21,313,25],[346,0,346,7],[346,15,346,25],[346,27,346,34],[359,48,359,52],[277,41,277,52],[300,0,300,7],[300,15,300,25],[300,27,300,34],[300,42,300,52],[302,11,302,14],[302,38,302,41],[270,0,270,14],[270,27,270,41],[273,18,273,25],[273,45,273,52],[276,14,276,25],[276,41,276,52],[267,14,267,17],[267,21,267,25],[267,27,267,30],[267,33,267,37],[267,41,267,44],[267,48,267,52],[267,0,267,3],[267,6,267,10],[277,14,277,25],[227,45,227,52],[230,14,230,25],[230,41,230,52],[231,14,231,25],[231,41,231,52],[254,0,254,7],[254,15,254,25],[254,27,254,34],[254,42,254,52],[221,27,221,30],[221,33,221,37],[221,41,221,44],[221,48,221,52],[224,0,224,14],[224,27,224,41],[185,41,185,52],[208,0,208,7],[208,15,208,25],[208,27,208,34],[208,42,208,52],[210,11,210,14],[210,38,210,41],[175,48,175,52],[178,0,178,14],[178,27,178,41],[181,18,181,25],[181,45,181,52],[184,14,184,25],[184,41,184,52]],"merged_total":1100,"flags":["merged_cut"]}
[" ",null,null,null,null,null,null,null,null,null,null,null,null,null,"REPROGRAFIA, S. G. C.",null,null,null,null,null,null,null,null,null,null,null,null,null,null,null,null,null,null,null,null,null,null,null,null,null,null,"REPROGRAFIA, S. G. C."]
[null,null,null,null,null,null,null,null,null,null,null,null,null,null,"ORDEN DE TRABAJO",null,null,null,null,null,null,null,null,null,null,null,null,null,null,null,null,null,null,null,null,null,null,null,null,null,null,"ORDEN DE TRABAJO"]
[]
[]
["PETICIONARIO",null,null,null,null,null,null,null,null,null,null,null,null,null,null,null,null,null,null,null,null,null,null,null,null,null,null,"PETICIONARIO",null,null,null,null,null,null,null,null,null,null,null,null,null,null,null,null,null,null,null,null,null,null,null,null,null,"INDICAR LA NUMERACION A MANO SOLO EN LA PRIMERA OT"]
[]
[]
[]
["DEPARTAMENTO",null,null,null,null,null,null,null,null,null,null,null,null,null,null,null,null,null,null,null,null,null,null,null,null,null,null,"DEPARTAMENTO"]
[]
[]
[]
["TRABAJO A REALIZAR",null,null,null,null,null,null,null,null,null,null,null,null,null,null,null,null,null,null,null,null,null,"UNIDADES",null,null,null,null,"TRABAJO A REALIZAR",null,null,null,null,null,null,null,null,null,null,null,null,null,null,null,null,null,null,null,null,null,"UNIDADES"]
[]
[]
[]
["DENOMINACION OBRA O PROYECTO",null,null,null,null,null,null,null,null,null,null,null,null,null,null,null,null,null,null,null,null,null,null,null,null,null,null,"DENOMINACION OBRA O PROYECTO"]
[]
[]
[]
["CODIGO",null,null,null,null,null,null,null,null,null,null,null,null,null,null,null,null,null,null,null,null,null,null,null,null,null,null,"CODIGO"]
[]
[]
[]
["FECHA ENTRADA",null,null,null,null,null,null,null,null,null,null,null,null,null,null,"FIRMA",null,null,null,null,null,null,null,null,null,null,null,"FECHA ENTRADA",null,null,null,null,null,null,null,null,null,null,null,null,null,null,"FIRMA"]
[]
[null,null,null,null,null,null,null,null,null,"Nº ",null,200000,null,null,null,null,null,null,null,null,null,null,null,null,null,null,null,null,null,null,null,null,null,null,null,null,"Nº ",null,200050]
[]
[]
[]
[]
[]
[]
[]
[]
[]
[]
["CONCEPTO",null,null,null,null,null,"UNIDADES",null,null,null,null,null,null,null,"CONCEPTO",null,null,null,null,null,null,"UNIDADES",null,null,null,null,null,"CONCEPTO",null,null,null,null,null,"UNIDADES",null,null,null,null,null,null,null,"CONCEPTO",null,null,null,null,null,null,"UNIDADES"]
[]
[]
["NOTAS",null,null,null,null,null,null,null,null,null,null,null,null,null,null,null,null,null,null,null,null,null,null,null,null,null,null,"NOTAS"]
["CADA ORDEN PUEDE CONTENER VARIOS TRABAJOS, PERO UN SOLO CARGO",null,null,null,null,null,null,null,null,null,null,null,null,null,null,null,null,null,null,null,null,null,null,null,null,null,null,"CADA ORDEN PUEDE CONTENER VARIOS TRABAJOS, PERO UN SOLO CARGO"]
["NO RELLENAR LOS ESPACIOS CON FONDO",null,null,null,null,null,null,null,null,null,null,null,null,null,null,null,null,null,"FECHA ACABADO",null,null,null,null,null,null,null,null,"NO RELLENAR LOS ESPACIOS CON FONDO",null,null,null,null,null,null,null,null,null,null,null,null,null,null,null,null,null,"FECHA ACABADO"]
[]
["MOD. 106",null,null,null,null,null,null,null,null,null,null,null,null,null,null,null,null,null,null,null,null,null,null,null,null,null,null,"MOD. 106"]
[]
[" ",null,null,null,null,null,null,null,null,null,null,null,null,null,"REPROGRAFIA, S. G. C.",null,null,null,null,null,null,null,null,null,null,null,null,null,null,null,null,null,null,null,null,null,null,null,null,null,null,"REPROGRAFIA, S. G. C."]
[null,null,null,null,null,null,null,null,null,null,null,null,null,null,"ORDEN DE TRABAJO",null,null,null,null,null,null,null,null,null,null,null,null,null,null,null,null,null,null,null,null,null,null,null,null,null,null,"ORDEN DE TRABAJO"]
[]
[]
["PETICIONARIO",null,null,null,null,null,null,null,null,null,null,null,null,null,null,null,null,null,null,null,null,null,null,null,null,null,null,"PETICIONARIO"]
[]
[]
[]
["DEPARTAMENTO",null,null,null,null,null,null,null,null,null,null,null,null,null,null,null,null,null,null,null,null,null,null,null,null,null,null,"DEPARTAMENTO"]
[]
[]
[]
["TRABAJO A REALIZAR",null,null,null,null,null,null,null,null,null,null,null,null,null,null,null,null,null,null,null,null,null,"UNIDADES",null,null,null,null,"TRABAJO A REALIZAR",null,null,null,null,null,null,null,null,null,null,null,null,null,null,null,null,null,null,null,null,null,"UNIDADES"]
[]
[]
[]
["DENOMINACION OBRA O PROYECTO",null,null,null,null,null,null,null,null,null,null,null,null,null,null,null,null,null,null,null,null,null,null,null,null,null,null,"DENOMINACION OBRA O PROYECTO"]
[]
[]
[]
["CODIGO",null,null,null,null,null,null,null,null,null,null,null,null,null,null,null,null,null,null,null,null,null,null,null,null,null,null,"CODIGO"]
[]
[]
[]
["FECHA ENTRADA",null,null,null,null,null,null,null,null,null,null,null,null,null,null,"FIRMA",null,null,null,null,null,null,null,null,null,null,null,"FECHA ENTRADA",null,null,null,null,null,null,null,null,null,null,null,null,null,null,"FIRMA"]
[]
[null,null,null,null,null,null,null,null,null,"Nº ",null,{"$f":"L27+1","v":200001},null,null,null,null,null,null,null,null,null,null,null,null,null,null,null,null,null,null,null,null,null,null,null,null,"Nº ",null,{"$f":"AM27+1","v":200051}]
[]
[]
[]
[]
[]
[]
[]
[]
[]
[]
["CONCEPTO",null,null,null,null,null,"UNIDADES",null,null,null,null,null,null,null,"CONCEPTO",null,null,null,null,null,null,"UNIDADES",null,null,null,null,null,"CONCEPTO",null,null,null,null,null,"UNIDADES",null,null,null,null,null,null,null,"CONCEPTO",null,null,null,null,null,null,"UNIDADES"]
[]
[]
["NOTAS",null,null,null,null,null,null,null,null,null,null,null,null,null,null,null,null,null,null,null,null,null,null,null,null,null,null,"NOTAS"]
["CADA ORDEN PUEDE CONTENER VARIOS TRABAJOS, PERO UN SOLO CARGO",null,null,null,null,null,null,null,null,null,null,null,null,null,null,null,null,null,null,null,null,null,null,null,null,null,null,"CADA ORDEN PUEDE CONTENER VARIOS TRABAJOS, PERO UN SOLO CARGO"]
["NO RELLENAR LOS ESPACIOS CON FONDO",null,null,null,null,null,null,null,null,null,null,null,null,null,null,null,null,null,null,null,null,null,null,null,null,null,null,"NO RELLENAR LOS ESPACIOS CON FONDO"]
[null,null,null,null,null,null,null,null,null,null,null,null,null,null,null,null,null,null,"FECHA ACABADO",null,null,null,null,null,null,null,null,null,null,null,null,null,null,null,null,null,null,null,null,null,null,null,null,null,null,"FECHA ACABADO"]
["MOD. 106",null,null,null,null,null,null,null,null,null,null,null,null,null,null,null,null,null,null,null,null,null,null,null,null,null,null,"MOD. 106"]
[]
[" ",null,null,null,null,null,null,null,null,null,null,null,null,null,"REPROGRAFIA, S. G. C.",null,null,null,null,null,null,null,null,null,null,null,null,null,null,null,null,null,null,null,null,null,null,null,null,null,null,"REPROGRAFIA, S. G. C."]
[null,null,null,null,null,null,null,null,null,null,null,null,null,null,"ORDEN DE TRABAJO",null,null,null,null,null,null,null,null,null,null,null,null,null,null,null,null,null,null,null,null,null,null,null,null,null,null,"ORDEN DE TRABAJO"]
[]
[]
["PETICIONARIO",null,null,null,null,null,null,null,null,null,null,null,null,null,null,null,null,null,null,null,null,null,null,null,null,null,null,"PETICIONARIO"]
[]
[]
[]
["DEPARTAMENTO",null,null,null,null,null,null,null,null,null,null,null,null,null,null,null,null,null,null,null,null,null,null,null,null,null,null,"DEPARTAMENTO"]
[]
[]
[]
["TRABAJO A REALIZAR",null,null,null,null,null,null,null,null,null,null,null,null,null,null,null,null,null,null,null,null,null,"UNIDADES",null,null,null,null,"TRABAJO A REALIZAR",null,null,null,null,null,null,null,null,null,null,null,null,null,null,null,null,null,null,null,null,null,"UNIDADES"]
[]
[]
[]
["DENOMINACION OBRA O PROYECTO",null,null,null,null,null,null,null,null,null,null,null,null,null,null,null,null,null,null,null,null,null,null,null,null,null,null,"DENOMINACION OBRA O PROYECTO"]
[]
[]
[]
["CODIGO",null,null,null,null,null,null,null,null,null,null,null,null,null,null,null,null,null,null,null,null,null,null,null,null,null,null,"CODIGO"]
[]
[]
[]
["FECHA ENTRADA",null,null,null,null,null,null,null,null,null,null,null,null,null,null,"FIRMA",null,null,null,null,null,null,null,null,null,null,null,"FECHA ENTRADA",null,null,null,null,null,null,null,null,null,null,null,null,null,null,"FIRMA"]
[]
[null,null,null,null,null,null,null,null,null,"Nº ",null,{"$f":"L73+1","v":200002},null,null,null,null,null,null,null,null,null,null,null,null,null,null,null,null,null,null,null,null,null,null,null,null,"Nº ",null,{"$f":"AM73+1","v":200052}]
[]
[]
[]
[]
[]
[]
[]
[]
[]
[]
["CONCEPTO",null,null,null,null,null,"UNIDADES",null,null,null,null,null,null,null,"CONCEPTO",null,null,null,null,null,null,"UNIDADES",null,null,null,null,null,"CONCEPTO",null,null,null,null,null,"UNIDADES",null,null,null,null,null,null,null,"CONCEPTO",null,null,null,null,null,null,"UNIDADES"]
[]
[]
["NOTAS",null,null,null,null,null,null,null,null,null,null,null,null,null,null,null,null,null,null,null,null,null,null,null,null,null,null,"NOTAS"]
["CADA ORDEN PUEDE CONTENER VARIOS TRABAJOS, PERO UN SOLO CARGO",null,null,null,null,null,null,null,null,null,null,null,null,null,null,null,null,null,null,null,null,null,null,null,null,null,null,"CADA ORDEN PUEDE CONTENER VARIOS TRABAJOS, PERO UN SOLO CARGO"]
["NO RELLENAR LOS ESPACIOS CON FONDO",null,null,null,null,null,null,null,null,null,null,null,null,null,null,null,null,null,null,null,null,null,null,null,null,null,null,"NO RELLENAR LOS ESPACIOS CON FONDO"]
[null,null,null,null,null,null,null,null,null,null,null,null,null,null,null,null,null,null,"FECHA ACABADO",null,null,null,null,null,null,null,null,null,null,null,null,null,null,null,null,null,null,null,null,null,null,null,null,null,null,"FECHA ACABADO"]
["MOD. 106",null,null,null,null,null,null,null,null,null,null,null,null,null,null,null,null,null,null,null,null,null,null,null,null,null,null,"MOD. 106"]
[]
[" ",null,null,null,null,null,null,null,null,null,null,null,null,null,"REPROGRAFIA, S. G. C.",null,null,null,null,null,null,null,null,null,null,null,null,null,null,null,null,null,null,null,null,null,null,null,null,null,null,"REPROGRAFIA, S. G. C."]
[null,null,null,null,null,null,null,null,null,null,null,null,null,null,"ORDEN DE TRABAJO",null,null,null,null,null,null,null,null,null,null,null,null,null,null,null,null,null,null,null,null,null,null,null,null,null,null,"ORDEN DE TRABAJO"]
[]
[]
["PETICIONARIO",null,null,null,null,null,null,null,null,null,null,null,null,null,null,null,null,null,null,null,null,null,null,null,null,null,null,"PETICIONARIO"]
[]
[]
[]
["DEPARTAMENTO",null,null,null,null,null,null,null,null,null,null,null,null,null,null,null,null,null,null,null,null,null,null,null,null,null,null,"DEPARTAMENTO"]
[]
[]
[]
["TRABAJO A REALIZAR",null,null,null,null,null,null,null,null,null,null,null,null,null,null,null,null,null,null,null,null,null,"UNIDADES",null,null,null,null,"TRABAJO A REALIZAR",null,null,null,null,null,null,null,null,null,null,null,null,null,null,null,null,null,null,null,null,null,"UNIDADES"]
[]
[]
[]
["DENOMINACION OBRA O PROYECTO",null,null,null,null,null,null,null,null,null,null,null,null,null,null,null,null,null,null,null,null,null,null,null,null,null,null,"DENOMINACION OBRA O PROYECTO"]
[]
[]
[]
["CODIGO",null,null,null,null,null,null,null,null,null,null,null,null,null,null,null,null,null,null,null,null,null,null,null,null,null,null,"CODIGO"]
[]
[]
[]
["FECHA ENTRADA",null,null,null,null,null,null,null,null,null,null,null,null,null,null,"FIRMA",null,null,null,null,null,null,null,null,null,null,null,"FECHA ENTRADA",null,null,null,null,null,null,null,null,null,null,null,null,null,null,"FIRMA"]
[]
[null,null,null,null,null,null,null,null,null,"Nº ",null,{"$f":"L119+1","v":200003},null,null,null,null,null,null,null,null,null,null,null,null,null,null,null,null,null,null,null,null,null,null,null,null,"Nº ",null,{"$f":"AM119+1","v":200053}]
[]
[]
[]
[]
[]
[]
[]
[]
[]
[]
["CONCEPTO",null,null,null,null,null,"UNIDADES",null,null,null,null,null,null,null,"CONCEPTO",null,null,null,null,null,null,"UNIDADES",null,null,null,null,null,"CONCEPTO",null,null,null,null,null,"UNIDADES",null,null,null,null,null,null,null,"CONCEPTO",null,null,null,null,null,null,"UNIDADES"]
[]
[]
["NOTAS",null,null,null,null,null,null,null,null,null,null,null,null,null,null,null,null,null,null,null,null,null,null,null,null,null,null,"NOTAS"]
["CADA ORDEN PUEDE CONTENER VARIOS TRABAJOS, PERO UN SOLO CARGO",null,null,null,null,null,null,null,null,null,null,null,null,null,null,null,null,null,null,null,null,null,null,null,null,null,null,"CADA ORDEN PUEDE CONTENER VARIOS TRABAJOS, PERO UN SOLO CARGO"]
["NO RELLENAR LOS ESPACIOS CON FONDO",null,null,null,null,null,null,null,null,null,null,null,null,null,null,null,null,null,null,null,null,null,null,null,null,null,null,"NO RELLENAR LOS ESPACIOS CON FONDO"]
[null,null,null,null,null,null,null,null,null,null,null,null,null,null,null,null,null,null,"FECHA ACABADO",null,null,null,null,null,null,null,null,null,null,null,null,null,null,null,null,null,null,null,null,null,null,null,null,null,null,"FECHA ACABADO"]
["MOD. 106",null,null,null,null,null,null,null,null,null,null,null,null,null,null,null,null,null,null,null,null,null,null,null,null,null,null,"MOD. 106"]
[]
[" ",null,null,null,null,null,null,null,null,null,null,null,null,null,"REPROGRAFIA, S. G. C.",null,null,null,null,null,null,null,null,null,null,null,null,null,null,null,null,null,null,null,null,null,null,null,null,null,null,"REPROGRAFIA, S. G. C."]
[null,null,null,null,null,null,null,null,null,null,null,null,null,null,"ORDEN DE TRABAJO",null,null,null,null,null,null,null,null,null,null,null,null,null,null,null,null,null,null,null,null,null,null,null,null,null,null,"ORDEN DE TRABAJO"]
[]
[]
["PETICIONARIO",null,null,null,null,null,null,null,null,null,null,null,null,null,null,null,null,null,null,null,null,null,null,null,null,null,null,"PETICIONARIO"]
[]
[]
[]
["DEPARTAMENTO",null,null,null,null,null,null,null,null,null,null,null,null,null,null,null,null,null,null,null,null,null,null,null,null,null,null,"DEPARTAMENTO"]
[]
[]
[]
["TRABAJO A REALIZAR",null,null,null,null,null,null,null,null,null,null,null,null,null,null,null,null,null,null,null,null,null,"UNIDADES",null,null,null,null,"TRABAJO A REALIZAR",null,null,null,null,null,null,null,null,null,null,null,null,null,null,null,null,null,null,null,null,null,"UNIDADES"]
[]
[]
[]
["DENOMINACION OBRA O PROYECTO",null,null,null,null,null,null,null,null,null,null,null,null,null,null,null,null,null,null,null,null,null,null,null,null,null,null,"DENOMINACION OBRA O PROYECTO"]
[]
[]
[]
["CODIGO",null,null,null,null,null,null,null,null,null,null,null,null,null,null,null,null,null,null,null,null,null,null,null,null,null,null,"CODIGO"]
[]
[]
[]
["FECHA ENTRADA",null,null,null,null,null,null,null,null,null,null,null,null,null,null,"FIRMA",null,null,null,null,null,null,null,null,null,null,null,"FECHA ENTRADA",null,null,null,null,null,null,null,null,null,null,null,null,null,null,"FIRMA"]
[]
[null,null,null,null,null,null,null,null,null,"Nº ",null,{"$f":"L165+1","v":200004},null,null,null,null,null,null,null,null,null,null,null,null,null,null,null,null,null,null,null,null,null,null,null,null,"Nº ",null,{"$f":"AM165+1","v":200054}]
[]
[]
[]
[]
[]
[]
[]
[]
[]
[]
["CONCEPTO",null,null,null,null,null,"UNIDADES",null,null,null,null,null,null,null,"CONCEPTO",null,null,null,null,null,null,"UNIDADES",null,null,null,null,null,"CONCEPTO",null,null,null,null,null,"UNIDADES",null,null,null,null,null,null,null,"CONCEPTO",null,null,null,null,null,null,"UNIDADES"]
[]
[]
["NOTAS",null,null,null,null,null,null,null,null,null,null,null,null,null,null,null,null,null,null,null,null,null,null,null,null,null,null,"NOTAS"]
["CADA ORDEN PUEDE CONTENER VARIOS TRABAJOS, PERO UN SOLO CARGO",null,null,null,null,null,null,null,null,null,null,null,null,null,null,null,null,null,null,null,null,null,null,null,null,null,null,"CADA ORDEN PUEDE CONTENER VARIOS TRABAJOS, PERO UN SOLO CARGO"]
["NO RELLENAR LOS ESPACIOS CON FONDO",null,null,null,null,null,null,null,null,null,null,null,null,null,null,null,null,null,null,null,null,null,null,null,null,null,null,"NO RELLENAR LOS ESPACIOS CON FONDO"]
[null,null,null,null,null,null,null,null,null,null,null,null,null,null,null,null,null,null,"FECHA ACABADO",null,null,null,null,null,null,null,null,null,null,null,null,null,null,null,null,null,null,null,null,null,null,null,null,null,null,"FECHA ACABADO"]
["MOD. 106",null,null,null,null,null,null,null,null,null,null,null,null,null,null,null,null,null,null,null,null,null,null,null,null,null,null,"MOD. 106"]
[]
[" ",null,null,null,null,null,null,null,null,null,null,null,null,null,"REPROGRAFIA, S. G. C.",null,null,null,null,null,null,null,null,null,null,null,null,null,null,null,null,null,null,null,null,null,null,null,null,null,null,"REPROGRAFIA, S. G. C."]
[null,null,null,null,null,null,null,null,null,null,null,null,null,null,"ORDEN DE TRABAJO",null,null,null,null,null,null,null,null,null,null,null,null,null,null,null,null,null,null,null,null,null,null,null,null,null,null,"ORDEN DE TRABAJO"]
[]
[]
["PETICIONARIO",null,null,null,null,null,null,null,null,null,null,null,null,null,null,null,null,null,null,null,null,null,null,null,null,null,null,"PETICIONARIO"]
[]
[]
[]
["DEPARTAMENTO",null,null,null,null,null,null,null,null,null,null,null,null,null,null,null,null,null,null,null,null,null,null,null,null,null,null,"DEPARTAMENTO"]
[]
[]
[]
["TRABAJO A REALIZAR",null,null,null,null,null,null,null,null,null,null,null,null,null,null,null,null,null,null,null,null,null,"UNIDADES",null,null,null,null,"TRABAJO A REALIZAR",null,null,null,null,null,null,null,null,null,null,null,null,null,null,null,null,null,null,null,null,null,"UNIDADES"]
[]
[]
[]
["DENOMINACION OBRA O PROYECTO",null,null,null,null,null,null,null,null,null,null,null,null,null,null,null,null,null,null,null,null,null,null,null,null,null,null,"DENOMINACION OBRA O PROYECTO"]
[]
[]
[]
["CODIGO",null,null,null,null,null,null,null,null,null,null,null,null,null,null,null,null,null,null,null,null,null,null,null,null,null,null,"CODIGO"]
[]
[]
[]
["FECHA ENTRADA",null,null,null,null,null,null,null,null,null,null,null,null,null,null,"FIRMA",null,null,null,null,null,null,null,null,null,null,null,"FECHA ENTRADA",null,null,null,null,null,null,null,null,null,null,null,null,null,null,"FIRMA"]
[]
[null,null,null,null,null,null,null,null,null,"Nº ",null,{"$f":"L211+1","v":200005},null,null,null,null,null,null,null,null,null,null,null,null,null,null,null,null,null,null,null,null,null,null,null,null,"Nº ",null,{"$f":"AM211+1","v":200055}]
[]
[]
[]
[]
[]
[]
[]
[]
[]
[]
["CONCEPTO",null,null,null,null,null,"UNIDADES",null,null,null,null,null,null,null,"CONCEPTO",null,null,null,null,null,null,"UNIDADES",null,null,null,null,null,"CONCEPTO",null,null,null,null,null,"UNIDADES",null,null,null,null,null,null,null,"CONCEPTO",null,null,null,null,null,null,"UNIDADES"]
[]
[]
["NOTAS",null,null,null,null,null,null,null,null,null,null,null,null,null,null,null,null,null,null,null,null,null,null,null,null,null,null,"NOTAS"]
["CADA ORDEN PUEDE CONTENER VARIOS TRABAJOS, PERO UN SOLO CARGO",null,null,null,null,null,null,null,null,null,null,null,null,null,null,null,null,null,null,null,null,null,null,null,null,null,null,"CADA ORDEN PUEDE CONTENER VARIOS TRABAJOS, PERO UN SOLO CARGO"]
["NO RELLENAR LOS ESPACIOS CON FONDO",null,null,null,null,null,null,null,null,null,null,null,null,null,null,null,null,null,null,null,null,null,null,null,null,null,null,"NO RELLENAR LOS ESPACIOS CON FONDO"]
[null,null,null,null,null,null,null,null,null,null,null,null,null,null,null,null,null,null,"FECHA ACABADO",null,null,null,null,null,null,null,null,null,null,null,null,null,null,null,null,null,null,null,null,null,null,null,null,null,null,"FECHA ACABADO"]
["MOD. 106",null,null,null,null,null,null,null,null,null,null,null,null,null,null,null,null,null,null,null,null,null,null,null,null,null,null,"MOD. 106"]
[]
[" ",null,null,null,null,null,null,null,null,null,null,null,null,null,"REPROGRAFIA, S. G. C.",null,null,null,null,null,null,null,null,null,null,null,null,null,null,null,null,null,null,null,null,null,null,null,null,null,null,"REPROGRAFIA, S. G. C."]
[null,null,null,null,null,null,null,null,null,null,null,null,null,null,"ORDEN DE TRABAJO",null,null,null,null,null,null,null,null,null,null,null,null,null,null,null,null,null,null,null,null,null,null,null,null,null,null,"ORDEN DE TRABAJO"]
[]
[]
["PETICIONARIO",null,null,null,null,null,null,null,null,null,null,null,null,null,null,null,null,null,null,null,null,null,null,null,null,null,null,"PETICIONARIO"]
[]
[]
[]
["DEPARTAMENTO",null,null,null,null,null,null,null,null,null,null,null,null,null,null,null,null,null,null,null,null,null,null,null,null,null,null,"DEPARTAMENTO"]
[]
[]
[]
["TRABAJO A REALIZAR",null,null,null,null,null,null,null,null,null,null,null,null,null,null,null,null,null,null,null,null,null,"UNIDADES",null,null,null,null,"TRABAJO A REALIZAR",null,null,null,null,null,null,null,null,null,null,null,null,null,null,null,null,null,null,null,null,null,"UNIDADES"]
[]
[]
[]
["DENOMINACION OBRA O PROYECTO",null,null,null,null,null,null,null,null,null,null,null,null,null,null,null,null,null,null,null,null,null,null,null,null,null,null,"DENOMINACION OBRA O PROYECTO"]
[]
[]
[]
["CODIGO",null,null,null,null,null,null,null,null,null,null,null,null,null,null,null,null,null,null,null,null,null,null,null,null,null,null,"CODIGO"]
[]
[]
[]
["FECHA ENTRADA",null,null,null,null,null,null,null,null,null,null,null,null,null,null,"FIRMA",null,null,null,null,null,null,null,null,null,null,null,"FECHA ENTRADA",null,null,null,null,null,null,null,null,null,null,null,null,null,null,"FIRMA"]
[]
[null,null,null,null,null,null,null,null,null,"Nº ",null,{"$f":"L257+1","v":200006},null,null,null,null,null,null,null,null,null,null,null,null,null,null,null,null,null,null,null,null,null,null,null,null,"Nº ",null,{"$f":"AM257+1","v":200056}]
[]
[]
[]
[]
[]
[]
[]
[]
[]
[]
["CONCEPTO",null,null,null,null,null,"UNIDADES",null,null,null,null,null,null,null,"CONCEPTO",null,null,null,null,null,null,"UNIDADES",null,null,null,null,null,"CONCEPTO",null,null,null,null,null,"UNIDADES",null,null,null,null,null,null,null,"CONCEPTO",null,null,null,null,null,null,"UNIDADES"]
[]
[]
["NOTAS",null,null,null,null,null,null,null,null,null,null,null,null,null,null,null,null,null,null,null,null,null,null,null,null,null,null,"NOTAS"]
["CADA ORDEN PUEDE CONTENER VARIOS TRABAJOS, PERO UN SOLO CARGO",null,null,null,null,null,null,null,null,null,null,null,null,null,null,null,null,null,null,null,null,null,null,null,null,null,null,"CADA ORDEN PUEDE CONTENER VARIOS TRABAJOS, PERO UN SOLO CARGO"]
["NO RELLENAR LOS ESPACIOS CON FONDO",null,null,null,null,null,null,null,null,null,null,null,null,null,null,null,null,null,null,null,null,null,null,null,null,null,null,"NO RELLENAR LOS ESPACIOS CON FONDO"]
[null,null,null,null,null,null,null,null,null,null,null,null,null,null,null,null,null,null,"FECHA ACABADO",null,null,null,null,null,null,null,null,null,null,null,null,null,null,null,null,null,null,null,null,null,null,null,null,null,null,"FECHA ACABADO"]
["MOD. 106",null,null,null,null,null,null,null,null,null,null,null,null,null,null,null,null,null,null,null,null,null,null,null,null,null,null,"MOD. 106"]
[]
[" ",null,null,null,null,null,null,null,null,null,null,null,null,null,"REPROGRAFIA, S. G. C.",null,null,null,null,null,null,null,null,null,null,null,null,null,null,null,null,null,null,null,null,null,null,null,null,null,null,"REPROGRAFIA, S. G. C."]
[null,null,null,null,null,null,null,null,null,null,null,null,null,null,"ORDEN DE TRABAJO",null,null,null,null,null,null,null,null,null,null,null,null,null,null,null,null,null,null,null,null,null,null,null,null,null,null,"ORDEN DE TRABAJO"]
[]
[]
["PETICIONARIO",null,null,null,null,null,null,null,null,null,null,null,null,null,null,null,null,null,null,null,null,null,null,null,null,null,null,"PETICIONARIO"]
[]
[]
[]
["DEPARTAMENTO",null,null,null,null,null,null,null,null,null,null,null,null,null,null,null,null,null,null,null,null,null,null,null,null,null,null,"DEPARTAMENTO"]
[]
[]
[]
["TRABAJO A REALIZAR",null,null,null,null,null,null,null,null,null,null,null,null,null,null,null,null,null,null,null,null,null,"UNIDADES",null,null,null,null,"TRABAJO A REALIZAR",null,null,null,null,null,null,null,null,null,null,null,null,null,null,null,null,null,null,null,null,null,"UNIDADES"]
[]
[]
[]
["DENOMINACION OBRA O PROYECTO",null,null,null,null,null,null,null,null,null,null,null,null,null,null,null,null,null,null,null,null,null,null,null,null,null,null,"DENOMINACION OBRA O PROYECTO"]
[]
[]
[]
["CODIGO",null,null,null,null,null,null,null,null,null,null,null,null,null,null,null,null,null,null,null,null,null,null,null,null,null,null,"CODIGO"]
[]
[]
[]
["FECHA ENTRADA",null,null,null,null,null,null,null,null,null,null,null,null,null,null,"FIRMA",null,null,null,null,null,null,null,null,null,null,null,"FECHA ENTRADA",null,null,null,null,null,null,null,null,null,null,null,null,null,null,"FIRMA"]
[]
[null,null,null,null,null,null,null,null,null,"Nº ",null,{"$f":"L303+1","v":200007},null,null,null,null,null,null,null,null,null,null,null,null,null,null,null,null,null,null,null,null,null,null,null,null,"Nº ",null,{"$f":"AM303+1","v":200057}]
[]
[]
[]
[]
[]
[]
[]
[]
[]
[]
["CONCEPTO",null,null,null,null,null,"UNIDADES",null,null,null,null,null,null,null,"CONCEPTO",null,null,null,null,null,null,"UNIDADES",null,null,null,null,null,"CONCEPTO",null,null,null,null,null,"UNIDADES",null,null,null,null,null,null,null,"CONCEPTO",null,null,null,null,null,null,"UNIDADES"]
[]
[]
["NOTAS",null,null,null,null,null,null,null,null,null,null,null,null,null,null,null,null,null,null,null,null,null,null,null,null,null,null,"NOTAS"]
["CADA ORDEN PUEDE CONTENER VARIOS TRABAJOS, PERO UN SOLO CARGO",null,null,null,null,null,null,null,null,null,null,null,null,null,null,null,null,null,null,null,null,null,null,null,null,null,null,"CADA ORDEN PUEDE CONTENER VARIOS TRABAJOS, PERO UN SOLO CARGO"]
["NO RELLENAR LOS ESPACIOS CON FONDO",null,null,null,null,null,null,null,null,null,null,null,null,null,null,null,null,null,null,null,null,null,null,null,null,null,null,"NO RELLENAR LOS ESPACIOS CON FONDO"]
[null,null,null,null,null,null,null,null,null,null,null,null,null,null,null,null,null,null,"FECHA ACABADO",null,null,null,null,null,null,null,null,null,null,null,null,null,null,null,null,null,null,null,null,null,null,null,null,null,null,"FECHA ACABADO"]
["MOD. 106",null,null,null,null,null,null,null,null,null,null,null,null,null,null,null,null,null,null,null,null,null,null,null,null,null,null,"MOD. 106"]
[]
[" ",null,null,null,null,null,null,null,null,null,null,null,null,null,"REPROGRAFIA, S. G. C.",null,null,null,null,null,null,null,null,null,null,null,null,null,null,null,null,null,null,null,null,null,null,null,null,null,null,"REPROGRAFIA, S. G. C."]
[null,null,null,null,null,null,null,null,null,null,null,null,null,null,"ORDEN DE TRABAJO",null,null,null,null,null,null,null,null,null,null,null,null,null,null,null,null,null,null,null,null,null,null,null,null,null,null,"ORDEN DE TRABAJO"]
[]
[]
["PETICIONARIO",null,null,null,null,null,null,null,null,null,null,null,null,null,null,null,null,null,null,null,null,null,null,null,null,null,null,"PETICIONARIO"]
[]
[]
[]
["DEPARTAMENTO",null,null,null,null,null,null,null,null,null,null,null,null,null,null,null,null,null,null,null,null,null,null,null,null,null,null,"DEPARTAMENTO"]
[]
[]
[]
["TRABAJO A REALIZAR",null,null,null,null,null,null,null,null,null,null,null,null,null,null,null,null,null,null,null,null,null,"UNIDADES",null,null,null,null,"TRABAJO A REALIZAR",null,null,null,null,null,null,null,null,null,null,null,null,null,null,null,null,null,null,null,null,null,"UNIDADES"]
[]
[]
[]
["DENOMINACION OBRA O PROYECTO",null,null,null,null,null,null,null,null,null,null,null,null,null,null,null,null,null,null,null,null,null,null,null,null,null,null,"DENOMINACION OBRA O PROYECTO"]
[]
[]
[]
["CODIGO",null,null,null,null,null,null,null,null,null,null,null,null,null,null,null,null,null,null,null,null,null,null,null,null,null,null,"CODIGO"]
[]
[]
[]
["FECHA ENTRADA",null,null,null,null,null,null,null,null,null,null,null,null,null,null,"FIRMA",null,null,null,null,null,null,null,null,null,null,null,"FECHA ENTRADA",null,null,null,null,null,null,null,null,null,null,null,null,null,null,"FIRMA"]
[]
[null,null,null,null,null,null,null,null,null,"Nº ",null,{"$f":"L349+1","v":200008},null,null,null,null,null,null,null,null,null,null,null,null,null,null,null,null,null,null,null,null,null,null,null,null,"Nº ",null,{"$f":"AM349+1","v":200058}]
[]
[]
[]
[]
[]
[]
[]
[]
[]
[]
["CONCEPTO",null,null,null,null,null,"UNIDADES",null,null,null,null,null,null,null,"CONCEPTO",null,null,null,null,null,null,"UNIDADES",null,null,null,null,null,"CONCEPTO",null,null,null,null,null,"UNIDADES",null,null,null,null,null,null,null,"CONCEPTO",null,null,null,null,null,null,"UNIDADES"]
[]
[]
["NOTAS",null,null,null,null,null,null,null,null,null,null,null,null,null,null,null,null,null,null,null,null,null,null,null,null,null,null,"NOTAS"]
["CADA ORDEN PUEDE CONTENER VARIOS TRABAJOS, PERO UN SOLO CARGO",null,null,null,null,null,null,null,null,null,null,null,null,null,null,null,null,null,null,null,null,null,null,null,null,null,null,"CADA ORDEN PUEDE CONTENER VARIOS TRABAJOS, PERO UN SOLO CARGO"]
["NO RELLENAR LOS ESPACIOS CON FONDO",null,null,null,null,null,null,null,null,null,null,null,null,null,null,null,null,null,null,null,null,null,null,null,null,null,null,"NO RELLENAR LOS ESPACIOS CON FONDO"]
[null,null,null,null,null,null,null,null,null,null,null,null,null,null,null,null,null,null,"FECHA ACABADO",null,null,null,null,null,null,null,null,null,null,null,null,null,null,null,null,null,null,null,null,null,null,null,null,null,null,"FECHA ACABADO"]
["MOD. 106",null,null,null,null,null,null,null,null,null,null,null,null,null,null,null,null,null,null,null,null,null,null,null,null,null,null,"MOD. 106"]
[]
[" ",null,null,null,null,null,null,null,null,null,null,null,null,null,"REPROGRAFIA, S. G. C.",null,null,null,null,null,null,null,null,null,null,null,null,null,null,null,null,null,null,null,null,null,null,null,null,null,null,"REPROGRAFIA, S. G. C."]
[null,null,null,null,null,null,null,null,null,null,null,null,null,null,"ORDEN DE TRABAJO",null,null,null,null,null,null,null,null,null,null,null,null,null,null,null,null,null,null,null,null,null,null,null,null,null,null,"ORDEN DE TRABAJO"]
[]
[]
["PETICIONARIO",null,null,null,null,null,null,null,null,null,null,null,null,null,null,null,null,null,null,null,null,null,null,null,null,null,null,"PETICIONARIO"]
[]
[]
[]
["DEPARTAMENTO",null,null,null,null,null,null,null,null,null,null,null,null,null,null,null,null,null,null,null,null,null,null,null,null,null,null,"DEPARTAMENTO"]
[]
[]
[]
["TRABAJO A REALIZAR",null,null,null,null,null,null,null,null,null,null,null,null,null,null,null,null,null,null,null,null,null,"UNIDADES",null,null,null,null,"TRABAJO A REALIZAR",null,null,null,null,null,null,null,null,null,null,null,null,null,null,null,null,null,null,null,null,null,"UNIDADES"]
[]
[]
[]
["DENOMINACION OBRA O PROYECTO",null,null,null,null,null,null,null,null,null,null,null,null,null,null,null,null,null,null,null,null,null,null,null,null,null,null,"DENOMINACION OBRA O PROYECTO"]
[]
[]
[]
["CODIGO",null,null,null,null,null,null,null,null,null,null,null,null,null,null,null,null,null,null,null,null,null,null,null,null,null,null,"CODIGO"]
[]
[]
[]
["FECHA ENTRADA",null,null,null,null,null,null,null,null,null,null,null,null,null,null,"FIRMA",null,null,null,null,null,null,null,null,null,null,null,"FECHA ENTRADA",null,null,null,null,null,null,null,null,null,null,null,null,null,null,"FIRMA"]
[]
[null,null,null,null,null,null,null,null,null,"Nº ",null,{"$f":"L395+1","v":200009},null,null,null,null,null,null,null,null,null,null,null,null,null,null,null,null,null,null,null,null,null,null,null,null,"Nº ",null,{"$f":"AM395+1","v":200059}]
[]
[]
[]
[]
[]
[]
[]
[]
[]
[]
["CONCEPTO",null,null,null,null,null,"UNIDADES",null,null,null,null,null,null,null,"CONCEPTO",null,null,null,null,null,null,"UNIDADES",null,null,null,null,null,"CONCEPTO",null,null,null,null,null,"UNIDADES",null,null,null,null,null,null,null,"CONCEPTO",null,null,null,null,null,null,"UNIDADES"]
[]
[]
["NOTAS",null,null,null,null,null,null,null,null,null,null,null,null,null,null,null,null,null,null,null,null,null,null,null,null,null,null,"NOTAS"]
["CADA ORDEN PUEDE CONTENER VARIOS TRABAJOS, PERO UN SOLO CARGO",null,null,null,null,null,null,null,null,null,null,null,null,null,null,null,null,null,null,null,null,null,null,null,null,null,null,"CADA ORDEN PUEDE CONTENER VARIOS TRABAJOS, PERO UN SOLO CARGO"]
["NO RELLENAR LOS ESPACIOS CON FONDO",null,null,null,null,null,null,null,null,null,null,null,null,null,null,null,null,null,null,null,null,null,null,null,null,null,null,"NO RELLENAR LOS ESPACIOS CON FONDO"]
[null,null,null,null,null,null,null,null,null,null,null,null,null,null,null,null,null,null,"FECHA ACABADO",null,null,null,null,null,null,null,null,null,null,null,null,null,null,null,null,null,null,null,null,null,null,null,null,null,null,"FECHA ACABADO"]
["MOD. 106",null,null,null,null,null,null,null,null,null,null,null,null,null,null,null,null,null,null,null,null,null,null,null,null,null,null,"MOD. 106"]
[]
[" ",null,null,null,null,null,null,null,null,null,null,null,null,null,"REPROGRAFIA, S. G. C.",null,null,null,null,null,null,null,null,null,null,null,null,null,null,null,null,null,null,null,null,null,null,null,null,null,null,"REPROGRAFIA, S. G. C."]
[null,null,null,null,null,null,null,null,null,null,null,null,null,null,"ORDEN DE TRABAJO",null,null,null,null,null,null,null,null,null,null,null,null,null,null,null,null,null,null,null,null,null,null,null,null,null,null,"ORDEN DE TRABAJO"]
[]
[]
["PETICIONARIO",null,null,null,null,null,null,null,null,null,null,null,null,null,null,null,null,null,null,null,null,null,null,null,null,null,null,"PETICIONARIO"]
[]
[]
[]
["DEPARTAMENTO",null,null,null,null,null,null,null,null,null,null,null,null,null,null,null,null,null,null,null,null,null,null,null,null,null,null,"DEPARTAMENTO"]
[]
[]
[]
["TRABAJO A REALIZAR",null,null,null,null,null,null,null,null,null,null,null,null,null,null,null,null,null,null,null,null,null,"UNIDADES",null,null,null,null,"TRABAJO A REALIZAR",null,null,null,null,null,null,null,null,null,null,null,null,null,null,null,null,null,null,null,null,null,"UNIDADES"]
[]
[]
[]
["DENOMINACION OBRA O PROYECTO",null,null,null,null,null,null,null,null,null,null,null,null,null,null,null,null,null,null,null,null,null,null,null,null,null,null,"DENOMINACION OBRA O PROYECTO"]
[]
[]
[]
["CODIGO",null,null,null,null,null,null,null,null,null,null,null,null,null,null,null,null,null,null,null,null,null,null,null,null,null,null,"CODIGO"]
[]
[]
[]
["FECHA ENTRADA",null,null,null,null,null,null,null,null,null,null,null,null,null,null,"FIRMA",null,null,null,null,null,null,null,null,null,null,null,"FECHA ENTRADA",null,null,null,null,null,null,null,null,null,null,null,null,null,null,"FIRMA"]
[]
[null,null,null,null,null,null,null,null,null,"Nº ",null,{"$f":"L441+1","v":200010},null,null,null,null,null,null,null,null,null,null,null,null,null,null,null,null,null,null,null,null,null,null,null,null,"Nº ",null,{"$f":"AM441+1","v":200060}]
[]
[]
[]
[]
[]
[]
[]
[]
[]
[]
["CONCEPTO",null,null,null,null,null,"UNIDADES",null,null,null,null,null,null,null,"CONCEPTO",null,null,null,null,null,null,"UNIDADES",null,null,null,null,null,"CONCEPTO",null,null,null,null,null,"UNIDADES",null,null,null,null,null,null,null,"CONCEPTO",null,null,null,null,null,null,"UNIDADES"]
[]
[]
["NOTAS",null,null,null,null,null,null,null,null,null,null,null,null,null,null,null,null,null,null,null,null,null,null,null,null,null,null,"NOTAS"]
["CADA ORDEN PUEDE CONTENER VARIOS TRABAJOS, PERO UN SOLO CARGO",null,null,null,null,null,null,null,null,null,null,null,null,null,null,null,null,null,null,null,null,null,null,null,null,null,null,"CADA ORDEN PUEDE CONTENER VARIOS TRABAJOS, PERO UN SOLO CARGO"]
["NO RELLENAR LOS ESPACIOS CON FONDO",null,null,null,null,null,null,null,null,null,null,null,null,null,null,null,null,null,null,null,null,null,null,null,null,null,null,"NO RELLENAR LOS ESPACIOS CON FONDO"]
[null,null,null,null,null,null,null,null,null,null,null,null,null,null,null,null,null,null,"FECHA ACABADO",null,null,null,null,null,null,null,null,null,null,null,null,null,null,null,null,null,null,null,null,null,null,null,null,null,null,"FECHA ACABADO"]
["MOD. 106",null,null,null,null,null,null,null,null,null,null,null,null,null,null,null,null,null,null,null,null,null,null,null,null,null,null,"MOD. 106"]
[]
[" ",null,null,null,null,null,null,null,null,null,null,null,null,null,"REPROGRAFIA, S. G. C.",null,null,null,null,null,null,null,null,null,null,null,null,null,null,null,null,null,null,null,null,null,null,null,null,null,null,"REPROGRAFIA, S. G. C."]
[null,null,null,null,null,null,null,null,null,null,null,null,null,null,"ORDEN DE TRABAJO",null,null,null,null,null,null,null,null,null,null,null,null,null,null,null,null,null,null,null,null,null,null,null,null,null,null,"ORDEN DE TRABAJO"]
[]
[]
["PETICIONARIO",null,null,null,null,null,null,null,null,null,null,null,null,null,null,null,null,null,null,null,null,null,null,null,null,null,null,"PETICIONARIO"]
[]
[]
[]
["DEPARTAMENTO",null,null,null,null,null,null,null,null,null,null,null,null,null,null,null,null,null,null,null,null,null,null,null,null,null,null,"DEPARTAMENTO"]
[]
[]
[]
["TRABAJO A REALIZAR",null,null,null,null,null,null,null,null,null,null,null,null,null,null,null,null,null,null,null,null,null,"UNIDADES",null,null,null,null,"TRABAJO A REALIZAR",null,null,null,null,null,null,null,null,null,null,null,null,null,null,null,null,null,null,null,null,null,"UNIDADES"]
[]
[]
[]
["DENOMINACION OBRA O PROYECTO",null,null,null,null,null,null,null,null,null,null,null,null,null,null,null,null,null,null,null,null,null,null,null,null,null,null,"DENOMINACION OBRA O PROYECTO"]
[]
[]
[]
["CODIGO",null,null,null,null,null,null,null,null,null,null,null,null,null,null,null,null,null,null,null,null,null,null,null,null,null,null,"CODIGO"]
[]
[]
[]
["FECHA ENTRADA",null,null,null,null,null,null,null,null,null,null,null,null,null,null,"FIRMA",null,null,null,null,null,null,null,null,null,null,null,"FECHA ENTRADA",null,null,null,null,null,null,null,null,null,null,null,null,null,null,"FIRMA"]
[]
[null,null,null,null,null,null,null,null,null,"Nº ",null,{"$f":"L487+1","v":200011},null,null,null,null,null,null,null,null,null,null,null,null,null,null,null,null,null,null,null,null,null,null,null,null,"Nº ",null,{"$f":"AM487+1","v":200061}]
[]
[]
[]
[]
[]
[]
[]
[]
[]
[]
["CONCEPTO",null,null,null,null,null,"UNIDADES",null,null,null,null,null,null,null,"CONCEPTO",null,null,null,null,null,null,"UNIDADES",null,null,null,null,null,"CONCEPTO",null,null,null,null,null,"UNIDADES",null,null,null,null,null,null,null,"CONCEPTO",null,null,null,null,null,null,"UNIDADES"]
[]
[]
["NOTAS",null,null,null,null,null,null,null,null,null,null,null,null,null,null,null,null,null,null,null,null,null,null,null,null,null,null,"NOTAS"]
["CADA ORDEN PUEDE CONTENER VARIOS TRABAJOS, PERO UN SOLO CARGO",null,null,null,null,null,null,null,null,null,null,null,null,null,null,null,null,null,null,null,null,null,null,null,null,null,null,"CADA ORDEN PUEDE CONTENER VARIOS TRABAJOS, PERO UN SOLO CARGO"]
["NO RELLENAR LOS ESPACIOS CON FONDO",null,null,null,null,null,null,null,null,null,null,null,null,null,null,null,null,null,null,null,null,null,null,null,null,null,null,"NO RELLENAR LOS ESPACIOS CON FONDO"]
[null,null,null,null,null,null,null,null,null,null,null,null,null,null,null,null,null,null,"FECHA ACABADO",null,null,null,null,null,null,null,null,null,null,null,null,null,null,null,null,null,null,null,null,null,null,null,null,null,null,"FECHA ACABADO"]
["MOD. 106",null,null,null,null,null,null,null,null,null,null,null,null,null,null,null,null,null,null,null,null,null,null,null,null,null,null,"MOD. 106"]
[]
[" ",null,null,null,null,null,null,null,null,null,null,null,null,null,"REPROGRAFIA, S. G. C.",null,null,null,null,null,null,null,null,null,null,null,null,null,null,null,null,null,null,null,null,null,null,null,null,null,null,"REPROGRAFIA, S. G. C."]
[null,null,null,null,null,null,null,null,null,null,null,null,null,null,"ORDEN DE TRABAJO",null,null,null,null,null,null,null,null,null,null,null,null,null,null,null,null,null,null,null,null,null,null,null,null,null,null,"ORDEN DE TRABAJO"]
[]
[]
["PETICIONARIO",null,null,null,null,null,null,null,null,null,null,null,null,null,null,null,null,null,null,null,null,null,null,null,null,null,null,"PETICIONARIO"]
[]
[]
[]
["DEPARTAMENTO",null,null,null,null,null,null,null,null,null,null,null,null,null,null,null,null,null,null,null,null,null,null,null,null,null,null,"DEPARTAMENTO"]
[]
[]
[]
["TRABAJO A REALIZAR",null,null,null,null,null,null,null,null,null,null,null,null,null,null,null,null,null,null,null,null,null,"UNIDADES",null,null,null,null,"TRABAJO A REALIZAR",null,null,null,null,null,null,null,null,null,null,null,null,null,null,null,null,null,null,null,null,null,"UNIDADES"]
[]
[]
[]
["DENOMINACION OBRA O PROYECTO",null,null,null,null,null,null,null,null,null,null,null,null,null,null,null,null,null,null,null,null,null,null,null,null,null,null,"DENOMINACION OBRA O PROYECTO"]
[]
[]
[]
["CODIGO",null,null,null,null,null,null,null,null,null,null,null,null,null,null,null,null,null,null,null,null,null,null,null,null,null,null,"CODIGO"]
[]
[]
[]
["FECHA ENTRADA",null,null,null,null,null,null,null,null,null,null,null,null,null,null,"FIRMA",null,null,null,null,null,null,null,null,null,null,null,"FECHA ENTRADA",null,null,null,null,null,null,null,null,null,null,null,null,null,null,"FIRMA"]
[]
[null,null,null,null,null,null,null,null,null,"Nº ",null,{"$f":"L533+1","v":200012},null,null,null,null,null,null,null,null,null,null,null,null,null,null,null,null,null,null,null,null,null,null,null,null,"Nº ",null,{"$f":"AM533+1","v":200062}]
[]
[]
[]
[]
[]
[]
[]
[]
[]
[]
["CONCEPTO",null,null,null,null,null,"UNIDADES",null,null,null,null,null,null,null,"CONCEPTO",null,null,null,null,null,null,"UNIDADES",null,null,null,null,null,"CONCEPTO",null,null,null,null,null,"UNIDADES",null,null,null,null,null,null,null,"CONCEPTO",null,null,null,null,null,null,"UNIDADES"]
[]
[]
["NOTAS",null,null,null,null,null,null,null,null,null,null,null,null,null,null,null,null,null,null,null,null,null,null,null,null,null,null,"NOTAS"]
["CADA ORDEN PUEDE CONTENER VARIOS TRABAJOS, PERO UN SOLO CARGO",null,null,null,null,null,null,null,null,null,null,null,null,null,null,null,null,null,null,null,null,null,null,null,null,null,null,"CADA ORDEN PUEDE CONTENER VARIOS TRABAJOS, PERO UN SOLO CARGO"]
["NO RELLENAR LOS ESPACIOS CON FONDO",null,null,null,null,null,null,null,null,null,null,null,null,null,null,null,null,null,null,null,null,null,null,null,null,null,null,"NO RELLENAR LOS ESPACIOS CON FONDO"]
[null,null,null,null,null,null,null,null,null,null,null,null,null,null,null,null,null,null,"FECHA ACABADO",null,null,null,null,null,null,null,null,null,null,null,null,null,null,null,null,null,null,null,null,null,null,null,null,null,null,"FECHA ACABADO"]
["MOD. 106",null,null,null,null,null,null,null,null,null,null,null,null,null,null,null,null,null,null,null,null,null,null,null,null,null,null,"MOD. 106"]
[]
[" ",null,null,null,null,null,null,null,null,null,null,null,null,null,"REPROGRAFIA, S. G. C.",null,null,null,null,null,null,null,null,null,null,null,null,null,null,null,null,null,null,null,null,null,null,null,null,null,null,"REPROGRAFIA, S. G. C."]
[null,null,null,null,null,null,null,null,null,null,null,null,null,null,"ORDEN DE TRABAJO",null,null,null,null,null,null,null,null,null,null,null,null,null,null,null,null,null,null,null,null,null,null,null,null,null,null,"ORDEN DE TRABAJO"]
[]
[]
["PETICIONARIO",null,null,null,null,null,null,null,null,null,null,null,null,null,null,null,null,null,null,null,null,null,null,null,null,null,null,"PETICIONARIO"]
[]
[]
[]
["DEPARTAMENTO",null,null,null,null,null,null,null,null,null,null,null,null,null,null,null,null,null,null,null,null,null,null,null,null,null,null,"DEPARTAMENTO"]
[]
[]
[]
["TRABAJO A REALIZAR",null,null,null,null,null,null,null,null,null,null,null,null,null,null,null,null,null,null,null,null,null,"UNIDADES",null,null,null,null,"TRABAJO A REALIZAR",null,null,null,null,null,null,null,null,null,null,null,null,null,null,null,null,null,null,null,null,null,"UNIDADES"]
[]
[]
[]
["DENOMINACION OBRA O PROYECTO",null,null,null,null,null,null,null,null,null,null,null,null,null,null,null,null,null,null,null,null,null,null,null,null,null,null,"DENOMINACION OBRA O PROYECTO"]
[]
[]
[]
["CODIGO",null,null,null,null,null,null,null,null,null,null,null,null,null,null,null,null,null,null,null,null,null,null,null,null,null,null,"CODIGO"]
[]
[]
[]
["FECHA ENTRADA",null,null,null,null,null,null,null,null,null,null,null,null,null,null,"FIRMA",null,null,null,null,null,null,null,null,null,null,null,"FECHA ENTRADA",null,null,null,null,null,null,null,null,null,null,null,null,null,null,"FIRMA"]
[]
[null,null,null,null,null,null,null,null,null,"Nº ",null,{"$f":"L579+1","v":200013},null,null,null,null,null,null,null,null,null,null,null,null,null,null,null,null,null,null,null,null,null,null,null,null,"Nº ",null,{"$f":"AM579+1","v":200063}]
[]
[]
[]
[]
[]
[]
[]
[]
[]
[]
["CONCEPTO",null,null,null,null,null,"UNIDADES",null,null,null,null,null,null,null,"CONCEPTO",null,null,null,null,null,null,"UNIDADES",null,null,null,null,null,"CONCEPTO",null,null,null,null,null,"UNIDADES",null,null,null,null,null,null,null,"CONCEPTO",null,null,null,null,null,null,"UNIDADES"]
[]
[]
["NOTAS",null,null,null,null,null,null,null,null,null,null,null,null,null,null,null,null,null,null,null,null,null,null,null,null,null,null,"NOTAS"]
["CADA ORDEN PUEDE CONTENER VARIOS TRABAJOS, PERO UN SOLO CARGO",null,null,null,null,null,null,null,null,null,null,null,null,null,null,null,null,null,null,null,null,null,null,null,null,null,null,"CADA ORDEN PUEDE CONTENER VARIOS TRABAJOS, PERO UN SOLO CARGO"]
["NO RELLENAR LOS ESPACIOS CON FONDO",null,null,null,null,null,null,null,null,null,null,null,null,null,null,null,null,null,null,null,null,null,null,null,null,null,null,"NO RELLENAR LOS ESPACIOS CON FONDO"]
[null,null,null,null,null,null,null,null,null,null,null,null,null,null,null,null,null,null,"FECHA ACABADO",null,null,null,null,null,null,null,null,null,null,null,null,null,null,null,null,null,null,null,null,null,null,null,null,null,null,"FECHA ACABADO"]
["MOD. 106",null,null,null,null,null,null,null,null,null,null,null,null,null,null,null,null,null,null,null,null,null,null,null,null,null,null,"MOD. 106"]
[]
[" ",null,null,null,null,null,null,null,null,null,null,null,null,null,"REPROGRAFIA, S. G. C.",null,null,null,null,null,null,null,null,null,null,null,null,null,null,null,null,null,null,null,null,null,null,null,null,null,null,"REPROGRAFIA, S. G. C."]
[null,null,null,null,null,null,null,null,null,null,null,null,null,null,"ORDEN DE TRABAJO",null,null,null,null,null,null,null,null,null,null,null,null,null,null,null,null,null,null,null,null,null,null,null,null,null,null,"ORDEN DE TRABAJO"]
[]
[]
["PETICIONARIO",null,null,null,null,null,null,null,null,null,null,null,null,null,null,null,null,null,null,null,null,null,null,null,null,null,null,"PETICIONARIO"]
[]
[]
[]
["DEPARTAMENTO",null,null,null,null,null,null,null,null,null,null,null,null,null,null,null,null,null,null,null,null,null,null,null,null,null,null,"DEPARTAMENTO"]
[]
[]
[]
["TRABAJO A REALIZAR",null,null,null,null,null,null,null,null,null,null,null,null,null,null,null,null,null,null,null,null,null,"UNIDADES",null,null,null,null,"TRABAJO A REALIZAR",null,null,null,null,null,null,null,null,null,null,null,null,null,null,null,null,null,null,null,null,null,"UNIDADES"]
[]
[]
[]
["DENOMINACION OBRA O PROYECTO",null,null,null,null,null,null,null,null,null,null,null,null,null,null,null,null,null,null,null,null,null,null,null,null,null,null,"DENOMINACION OBRA O PROYECTO"]
[]
[]
[]
["CODIGO",null,null,null,null,null,null,null,null,null,null,null,null,null,null,null,null,null,null,null,null,null,null,null,null,null,null,"CODIGO"]
[]
[]
[]
["FECHA ENTRADA",null,null,null,null,null,null,null,null,null,null,null,null,null,null,"FIRMA",null,null,null,null,null,null,null,null,null,null,null,"FECHA ENTRADA",null,null,null,null,null,null,null,null,null,null,null,null,null,null,"FIRMA"]
[]
[null,null,null,null,null,null,null,null,null,"Nº ",null,{"$f":"L625+1","v":200014},null,null,null,null,null,null,null,null,null,null,null,null,null,null,null,null,null,null,null,null,null,null,null,null,"Nº ",null,{"$f":"AM625+1","v":200064}]
[]
[]
[]
[]
[]
[]
[]
[]
[]
[]
["CONCEPTO",null,null,null,null,null,"UNIDADES",null,null,null,null,null,null,null,"CONCEPTO",null,null,null,null,null,null,"UNIDADES",null,null,null,null,null,"CONCEPTO",null,null,null,null,null,"UNIDADES",null,null,null,null,null,null,null,"CONCEPTO",null,null,null,null,null,null,"UNIDADES"]
[]
[]
["NOTAS",null,null,null,null,null,null,null,null,null,null,null,null,null,null,null,null,null,null,null,null,null,null,null,null,null,null,"NOTAS"]
["CADA ORDEN PUEDE CONTENER VARIOS TRABAJOS, PERO UN SOLO CARGO",null,null,null,null,null,null,null,null,null,null,null,null,null,null,null,null,null,null,null,null,null,null,null,null,null,null,"CADA ORDEN PUEDE CONTENER VARIOS TRABAJOS, PERO UN SOLO CARGO"]
["NO RELLENAR LOS ESPACIOS CON FONDO",null,null,null,null,null,null,null,null,null,null,null,null,null,null,null,null,null,null,null,null,null,null,null,null,null,null,"NO RELLENAR LOS ESPACIOS CON FONDO"]
[null,null,null,null,null,null,null,null,null,null,null,null,null,null,null,null,null,null,"FECHA ACABADO",null,null,null,null,null,null,null,null,null,null,null,null,null,null,null,null,null,null,null,null,null,null,null,null,null,null,"FECHA ACABADO"]
["MOD. 106",null,null,null,null,null,null,null,null,null,null,null,null,null,null,null,null,null,null,null,null,null,null,null,null,null,null,"MOD. 106"]
[]
[" ",null,null,null,null,null,null,null,null,null,null,null,null,null,"REPROGRAFIA, S. G. C.",null,null,null,null,null,null,null,null,null,null,null,null,null,null,null,null,null,null,null,null,null,null,null,null,null,null,"REPROGRAFIA, S. G. C."]
[null,null,null,null,null,null,null,null,null,null,null,null,null,null,"ORDEN DE TRABAJO",null,null,null,null,null,null,null,null,null,null,null,null,null,null,null,null,null,null,null,null,null,null,null,null,null,null,"ORDEN DE TRABAJO"]
[]
[]
["PETICIONARIO",null,null,null,null,null,null,null,null,null,null,null,null,null,null,null,null,null,null,null,null,null,null,null,null,null,null,"PETICIONARIO"]
[]
[]
[]
["DEPARTAMENTO",null,null,null,null,null,null,null,null,null,null,null,null,null,null,null,null,null,null,null,null,null,null,null,null,null,null,"DEPARTAMENTO"]
[]
[]
[]
["TRABAJO A REALIZAR",null,null,null,null,null,null,null,null,null,null,null,null,null,null,null,null,null,null,null,null,null,"UNIDADES",null,null,null,null,"TRABAJO A REALIZAR",null,null,null,null,null,null,null,null,null,null,null,null,null,null,null,null,null,null,null,null,null,"UNIDADES"]
[]
[]
[]
["DENOMINACION OBRA O PROYECTO",null,null,null,null,null,null,null,null,null,null,null,null,null,null,null,null,null,null,null,null,null,null,null,null,null,null,"DENOMINACION OBRA O PROYECTO"]
[]
[]
[]
["CODIGO",null,null,null,null,null,null,null,null,null,null,null,null,null,null,null,null,null,null,null,null,null,null,null,null,null,null,"CODIGO"]
[]
[]
[]
["FECHA ENTRADA",null,null,null,null,null,null,null,null,null,null,null,null,null,null,"FIRMA",null,null,null,null,null,null,null,null,null,null,null,"FECHA ENTRADA",null,null,null,null,null,null,null,null,null,null,null,null,null,null,"FIRMA"]
[]
[null,null,null,null,null,null,null,null,null,"Nº ",null,{"$f":"L671+1","v":200015},null,null,null,null,null,null,null,null,null,null,null,null,null,null,null,null,null,null,null,null,null,null,null,null,"Nº ",null,{"$f":"AM671+1","v":200065}]
[]
[]
[]
[]
[]
[]
[]
[]
[]
[]
["CONCEPTO",null,null,null,null,null,"UNIDADES",null,null,null,null,null,null,null,"CONCEPTO",null,null,null,null,null,null,"UNIDADES",null,null,null,null,null,"CONCEPTO",null,null,null,null,null,"UNIDADES",null,null,null,null,null,null,null,"CONCEPTO",null,null,null,null,null,null,"UNIDADES"]
[]
[]
["NOTAS",null,null,null,null,null,null,null,null,null,null,null,null,null,null,null,null,null,null,null,null,null,null,null,null,null,null,"NOTAS"]
["CADA ORDEN PUEDE CONTENER VARIOS TRABAJOS, PERO UN SOLO CARGO",null,null,null,null,null,null,null,null,null,null,null,null,null,null,null,null,null,null,null,null,null,null,null,null,null,null,"CADA ORDEN PUEDE CONTENER VARIOS TRABAJOS, PERO UN SOLO CARGO"]
["NO RELLENAR LOS ESPACIOS CON FONDO",null,null,null,null,null,null,null,null,null,null,null,null,null,null,null,null,null,null,null,null,null,null,null,null,null,null,"NO RELLENAR LOS ESPACIOS CON FONDO"]
[null,null,null,null,null,null,null,null,null,null,null,null,null,null,null,null,null,null,"FECHA ACABADO",null,null,null,null,null,null,null,null,null,null,null,null,null,null,null,null,null,null,null,null,null,null,null,null,null,null,"FECHA ACABADO"]
["MOD. 106",null,null,null,null,null,null,null,null,null,null,null,null,null,null,null,null,null,null,null,null,null,null,null,null,null,null,"MOD. 106"]
[]
[" ",null,null,null,null,null,null,null,null,null,null,null,null,null,"REPROGRAFIA, S. G. C.",null,null,null,null,null,null,null,null,null,null,null,null,null,null,null,null,null,null,null,null,null,null,null,null,null,null,"REPROGRAFIA, S. G. C."]
[null,null,null,null,null,null,null,null,null,null,null,null,null,null,"ORDEN DE TRABAJO",null,null,null,null,null,null,null,null,null,null,null,null,null,null,null,null,null,null,null,null,null,null,null,null,null,null,"ORDEN DE TRABAJO"]
[]
[]
["PETICIONARIO",null,null,null,null,null,null,null,null,null,null,null,null,null,null,null,null,null,null,null,null,null,null,null,null,null,null,"PETICIONARIO"]
[]
[]
[]
["DEPARTAMENTO",null,null,null,null,null,null,null,null,null,null,null,null,null,null,null,null,null,null,null,null,null,null,null,null,null,null,"DEPARTAMENTO"]
[]
[]
[]
["TRABAJO A REALIZAR",null,null,null,null,null,null,null,null,null,null,null,null,null,null,null,null,null,null,null,null,null,"UNIDADES",null,null,null,null,"TRABAJO A REALIZAR",null,null,null,null,null,null,null,null,null,null,null,null,null,null,null,null,null,null,null,null,null,"UNIDADES"]
[]
[]
[]
["DENOMINACION OBRA O PROYECTO",null,null,null,null,null,null,null,null,null,null,null,null,null,null,null,null,null,null,null,null,null,null,null,null,null,null,"DENOMINACION OBRA O PROYECTO"]
[]
[]
[]
["CODIGO",null,null,null,null,null,null,null,null,null,null,null,null,null,null,null,null,null,null,null,null,null,null,null,null,null,null,"CODIGO"]
[]
[]
[]
["FECHA ENTRADA",null,null,null,null,null,null,null,null,null,null,null,null,null,null,"FIRMA",null,null,null,null,null,null,null,null,null,null,null,"FECHA ENTRADA",null,null,null,null,null,null,null,null,null,null,null,null,null,null,"FIRMA"]
[]
[null,null,null,null,null,null,null,null,null,"Nº ",null,{"$f":"L717+1","v":200016},null,null,null,null,null,null,null,null,null,null,null,null,null,null,null,null,null,null,null,null,null,null,null,null,"Nº ",null,{"$f":"AM717+1","v":200066}]
[]
[]
[]
[]
[]
[]
[]
[]
[]
[]
["CONCEPTO",null,null,null,null,null,"UNIDADES",null,null,null,null,null,null,null,"CONCEPTO",null,null,null,null,null,null,"UNIDADES",null,null,null,null,null,"CONCEPTO",null,null,null,null,null,"UNIDADES",null,null,null,null,null,null,null,"CONCEPTO",null,null,null,null,null,null,"UNIDADES"]
[]
[]
["NOTAS",null,null,null,null,null,null,null,null,null,null,null,null,null,null,null,null,null,null,null,null,null,null,null,null,null,null,"NOTAS"]
["CADA ORDEN PUEDE CONTENER VARIOS TRABAJOS, PERO UN SOLO CARGO",null,null,null,null,null,null,null,null,null,null,null,null,null,null,null,null,null,null,null,null,null,null,null,null,null,null,"CADA ORDEN PUEDE CONTENER VARIOS TRABAJOS, PERO UN SOLO CARGO"]
["NO RELLENAR LOS ESPACIOS CON FONDO",null,null,null,null,null,null,null,null,null,null,null,null,null,null,null,null,null,null,null,null,null,null,null,null,null,null,"NO RELLENAR LOS ESPACIOS CON FONDO"]
[null,null,null,null,null,null,null,null,null,null,null,null,null,null,null,null,null,null,"FECHA ACABADO",null,null,null,null,null,null,null,null,null,null,null,null,null,null,null,null,null,null,null,null,null,null,null,null,null,null,"FECHA ACABADO"]
["MOD. 106",null,null,null,null,null,null,null,null,null,null,null,null,null,null,null,null,null,null,null,null,null,null,null,null,null,null,"MOD. 106"]
[]
[" ",null,null,null,null,null,null,null,null,null,null,null,null,null,"REPROGRAFIA, S. G. C.",null,null,null,null,null,null,null,null,null,null,null,null,null,null,null,null,null,null,null,null,null,null,null,null,null,null,"REPROGRAFIA, S. G. C."]
[null,null,null,null,null,null,null,null,null,null,null,null,null,null,"ORDEN DE TRABAJO",null,null,null,null,null,null,null,null,null,null,null,null,null,null,null,null,null,null,null,null,null,null,null,null,null,null,"ORDEN DE TRABAJO"]
[]
[]
["PETICIONARIO",null,null,null,null,null,null,null,null,null,null,null,null,null,null,null,null,null,null,null,null,null,null,null,null,null,null,"PETICIONARIO"]
[]
[]
[]
["DEPARTAMENTO",null,null,null,null,null,null,null,null,null,null,null,null,null,null,null,null,null,null,null,null,null,null,null,null,null,null,"DEPARTAMENTO"]
[]
[]
[]
["TRABAJO A REALIZAR",null,null,null,null,null,null,null,null,null,null,null,null,null,null,null,null,null,null,null,null,null,"UNIDADES",null,null,null,null,"TRABAJO A REALIZAR",null,null,null,null,null,null,null,null,null,null,null,null,null,null,null,null,null,null,null,null,null,"UNIDADES"]
[]
[]
[]
["DENOMINACION OBRA O PROYECTO",null,null,null,null,null,null,null,null,null,null,null,null,null,null,null,null,null,null,null,null,null,null,null,null,null,null,"DENOMINACION OBRA O PROYECTO"]
[]
[]
[]
["CODIGO",null,null,null,null,null,null,null,null,null,null,null,null,null,null,null,null,null,null,null,null,null,null,null,null,null,null,"CODIGO"]
[]
[]
[]
["FECHA ENTRADA",null,null,null,null,null,null,null,null,null,null,null,null,null,null,"FIRMA",null,null,null,null,null,null,null,null,null,null,null,"FECHA ENTRADA",null,null,null,null,null,null,null,null,null,null,null,null,null,null,"FIRMA"]
[]
[null,null,null,null,null,null,null,null,null,"Nº ",null,{"$f":"L763+1","v":200017},null,null,null,null,null,null,null,null,null,null,null,null,null,null,null,null,null,null,null,null,null,null,null,null,"Nº ",null,{"$f":"AM763+1","v":200067}]
[]
[]
[]
[]
[]
[]
[]
[]
[]
[]
["CONCEPTO",null,null,null,null,null,"UNIDADES",null,null,null,null,null,null,null,"CONCEPTO",null,null,null,null,null,null,"UNIDADES",null,null,null,null,null,"CONCEPTO",null,null,null,null,null,"UNIDADES",null,null,null,null,null,null,null,"CONCEPTO",null,null,null,null,null,null,"UNIDADES"]
[]
[]
["NOTAS",null,null,null,null,null,null,null,null,null,null,null,null,null,null,null,null,null,null,null,null,null,null,null,null,null,null,"NOTAS"]
["CADA ORDEN PUEDE CONTENER VARIOS TRABAJOS, PERO UN SOLO CARGO",null,null,null,null,null,null,null,null,null,null,null,null,null,null,null,null,null,null,null,null,null,null,null,null,null,null,"CADA ORDEN PUEDE CONTENER VARIOS TRABAJOS, PERO UN SOLO CARGO"]
["NO RELLENAR LOS ESPACIOS CON FONDO",null,null,null,null,null,null,null,null,null,null,null,null,null,null,null,null,null,null,null,null,null,null,null,null,null,null,"NO RELLENAR LOS ESPACIOS CON FONDO"]
[null,null,null,null,null,null,null,null,null,null,null,null,null,null,null,null,null,null,"FECHA ACABADO",null,null,null,null,null,null,null,null,null,null,null,null,null,null,null,null,null,null,null,null,null,null,null,null,null,null,"FECHA ACABADO"]
["MOD. 106",null,null,null,null,null,null,null,null,null,null,null,null,null,null,null,null,null,null,null,null,null,null,null,null,null,null,"MOD. 106"]
[]
[" ",null,null,null,null,null,null,null,null,null,null,null,null,null,"REPROGRAFIA, S. G. C.",null,null,null,null,null,null,null,null,null,null,null,null,null,null,null,null,null,null,null,null,null,null,null,null,null,null,"REPROGRAFIA, S. G. C."]
[null,null,null,null,null,null,null,null,null,null,null,null,null,null,"ORDEN DE TRABAJO",null,null,null,null,null,null,null,null,null,null,null,null,null,null,null,null,null,null,null,null,null,null,null,null,null,null,"ORDEN DE TRABAJO"]
[]
[]
["PETICIONARIO",null,null,null,null,null,null,null,null,null,null,null,null,null,null,null,null,null,null,null,null,null,null,null,null,null,null,"PETICIONARIO"]
[]
[]
[]
["DEPARTAMENTO",null,null,null,null,null,null,null,null,null,null,null,null,null,null,null,null,null,null,null,null,null,null,null,null,null,null,"DEPARTAMENTO"]
[]
[]
[]
["TRABAJO A REALIZAR",null,null,null,null,null,null,null,null,null,null,null,null,null,null,null,null,null,null,null,null,null,"UNIDADES",null,null,null,null,"TRABAJO A REALIZAR",null,null,null,null,null,null,null,null,null,null,null,null,null,null,null,null,null,null,null,null,null,"UNIDADES"]
[]
[]
[]
["DENOMINACION OBRA O PROYECTO",null,null,null,null,null,null,null,null,null,null,null,null,null,null,null,null,null,null,null,null,null,null,null,null,null,null,"DENOMINACION OBRA O PROYECTO"]
[]
[]
[]
["CODIGO",null,null,null,null,null,null,null,null,null,null,null,null,null,null,null,null,null,null,null,null,null,null,null,null,null,null,"CODIGO"]
[]
[]
[]
["FECHA ENTRADA",null,null,null,null,null,null,null,null,null,null,null,null,null,null,"FIRMA",null,null,null,null,null,null,null,null,null,null,null,"FECHA ENTRADA",null,null,null,null,null,null,null,null,null,null,null,null,null,null,"FIRMA"]
[]
[null,null,null,null,null,null,null,null,null,"Nº ",null,{"$f":"L809+1","v":200018},null,null,null,null,null,null,null,null,null,null,null,null,null,null,null,null,null,null,null,null,null,null,null,null,"Nº ",null,{"$f":"AM809+1","v":200068}]
[]
[]
[]
[]
[]
[]
[]
[]
[]
[]
["CONCEPTO",null,null,null,null,null,"UNIDADES",null,null,null,null,null,null,null,"CONCEPTO",null,null,null,null,null,null,"UNIDADES",null,null,null,null,null,"CONCEPTO",null,null,null,null,null,"UNIDADES",null,null,null,null,null,null,null,"CONCEPTO",null,null,null,null,null,null,"UNIDADES"]
[]
[]
["NOTAS",null,null,null,null,null,null,null,null,null,null,null,null,null,null,null,null,null,null,null,null,null,null,null,null,null,null,"NOTAS"]
["CADA ORDEN PUEDE CONTENER VARIOS TRABAJOS, PERO UN SOLO CARGO",null,null,null,null,null,null,null,null,null,null,null,null,null,null,null,null,null,null,null,null,null,null,null,null,null,null,"CADA ORDEN PUEDE CONTENER VARIOS TRABAJOS, PERO UN SOLO CARGO"]
["NO RELLENAR LOS ESPACIOS CON FONDO",null,null,null,null,null,null,null,null,null,null,null,null,null,null,null,null,null,null,null,null,null,null,null,null,null,null,"NO RELLENAR LOS ESPACIOS CON FONDO"]
[null,null,null,null,null,null,null,null,null,null,null,null,null,null,null,null,null,null,"FECHA ACABADO",null,null,null,null,null,null,null,null,null,null,null,null,null,null,null,null,null,null,null,null,null,null,null,null,null,null,"FECHA ACABADO"]
["MOD. 106",null,null,null,null,null,null,null,null,null,null,null,null,null,null,null,null,null,null,null,null,null,null,null,null,null,null,"MOD. 106"]
[]
[" ",null,null,null,null,null,null,null,null,null,null,null,null,null,"REPROGRAFIA, S. G. C.",null,null,null,null,null,null,null,null,null,null,null,null,null,null,null,null,null,null,null,null,null,null,null,null,null,null,"REPROGRAFIA, S. G. C."]
[null,null,null,null,null,null,null,null,null,null,null,null,null,null,"ORDEN DE TRABAJO",null,null,null,null,null,null,null,null,null,null,null,null,null,null,null,null,null,null,null,null,null,null,null,null,null,null,"ORDEN DE TRABAJO"]
[]
[]
["PETICIONARIO",null,null,null,null,null,null,null,null,null,null,null,null,null,null,null,null,null,null,null,null,null,null,null,null,null,null,"PETICIONARIO"]
[]
[]
[]
["DEPARTAMENTO",null,null,null,null,null,null,null,null,null,null,null,null,null,null,null,null,null,null,null,null,null,null,null,null,null,null,"DEPARTAMENTO"]
[]
[]
[]
["TRABAJO A REALIZAR",null,null,null,null,null,null,null,null,null,null,null,null,null,null,null,null,null,null,null,null,null,"UNIDADES",null,null,null,null,"TRABAJO A REALIZAR",null,null,null,null,null,null,null,null,null,null,null,null,null,null,null,null,null,null,null,null,null,"UNIDADES"]
[]
[]
[]
["DENOMINACION OBRA O PROYECTO",null,null,null,null,null,null,null,null,null,null,null,null,null,null,null,null,null,null,null,null,null,null,null,null,null,null,"DENOMINACION OBRA O PROYECTO"]
[]
[]
[]
["CODIGO",null,null,null,null,null,null,null,null,null,null,null,null,null,null,null,null,null,null,null,null,null,null,null,null,null,null,"CODIGO"]
[]
[]
[]
["FECHA ENTRADA",null,null,null,null,null,null,null,null,null,null,null,null,null,null,"FIRMA",null,null,null,null,null,null,null,null,null,null,null,"FECHA ENTRADA",null,null,null,null,null,null,null,null,null,null,null,null,null,null,"FIRMA"]
[]
[null,null,null,null,null,null,null,null,null,"Nº ",null,{"$f":"L855+1","v":200019},null,null,null,null,null,null,null,null,null,null,null,null,null,null,null,null,null,null,null,null,null,null,null,null,"Nº ",null,{"$f":"AM855+1","v":200069}]
[]
[]
[]
[]
[]
[]
[]
[]
[]
[]
["CONCEPTO",null,null,null,null,null,"UNIDADES",null,null,null,null,null,null,null,"CONCEPTO",null,null,null,null,null,null,"UNIDADES",null,null,null,null,null,"CONCEPTO",null,null,null,null,null,"UNIDADES",null,null,null,null,null,null,null,"CONCEPTO",null,null,null,null,null,null,"UNIDADES"]
[]
[]
["NOTAS",null,null,null,null,null,null,null,null,null,null,null,null,null,null,null,null,null,null,null,null,null,null,null,null,null,null,"NOTAS"]
["CADA ORDEN PUEDE CONTENER VARIOS TRABAJOS, PERO UN SOLO CARGO",null,null,null,null,null,null,null,null,null,null,null,null,null,null,null,null,null,null,null,null,null,null,null,null,null,null,"CADA ORDEN PUEDE CONTENER VARIOS TRABAJOS, PERO UN SOLO CARGO"]
["NO RELLENAR LOS ESPACIOS CON FONDO",null,null,null,null,null,null,null,null,null,null,null,null,null,null,null,null,null,null,null,null,null,null,null,null,null,null,"NO RELLENAR LOS ESPACIOS CON FONDO"]
[null,null,null,null,null,null,null,null,null,null,null,null,null,null,null,null,null,null,"FECHA ACABADO",null,null,null,null,null,null,null,null,null,null,null,null,null,null,null,null,null,null,null,null,null,null,null,null,null,null,"FECHA ACABADO"]
["MOD. 106",null,null,null,null,null,null,null,null,null,null,null,null,null,null,null,null,null,null,null,null,null,null,null,null,null,null,"MOD. 106"]
[]
[" ",null,null,null,null,null,null,null,null,null,null,null,null,null,"REPROGRAFIA, S. G. C.",null,null,null,null,null,null,null,null,null,null,null,null,null,null,null,null,null,null,null,null,null,null,null,null,null,null,"REPROGRAFIA, S. G. C."]
[null,null,null,null,null,null,null,null,null,null,null,null,null,null,"ORDEN DE TRABAJO",null,null,null,null,null,null,null,null,null,null,null,null,null,null,null,null,null,null,null,null,null,null,null,null,null,null,"ORDEN DE TRABAJO"]
[]
[]
["PETICIONARIO",null,null,null,null,null,null,null,null,null,null,null,null,null,null,null,null,null,null,null,null,null,null,null,null,null,null,"PETICIONARIO"]
[]
[]
[]
["DEPARTAMENTO",null,null,null,null,null,null,null,null,null,null,null,null,null,null,null,null,null,null,null,null,null,null,null,null,null,null,"DEPARTAMENTO"]
[]
[]
[]
["TRABAJO A REALIZAR",null,null,null,null,null,null,null,null,null,null,null,null,null,null,null,null,null,null,null,null,null,"UNIDADES",null,null,null,null,"TRABAJO A REALIZAR",null,null,null,null,null,null,null,null,null,null,null,null,null,null,null,null,null,null,null,null,null,"UNIDADES"]
[]
[]
[]
["DENOMINACION OBRA O PROYECTO",null,null,null,null,null,null,null,null,null,null,null,null,null,null,null,null,null,null,null,null,null,null,null,null,null,null,"DENOMINACION OBRA O PROYECTO"]
[]
[]
[]
["CODIGO",null,null,null,null,null,null,null,null,null,null,null,null,null,null,null,null,null,null,null,null,null,null,null,null,null,null,"CODIGO"]
[]
[]
[]
["FECHA ENTRADA",null,null,null,null,null,null,null,null,null,null,null,null,null,null,"FIRMA",null,null,null,null,null,null,null,null,null,null,null,"FECHA ENTRADA",null,null,null,null,null,null,null,null,null,null,null,null,null,null,"FIRMA"]
[]
[null,null,null,null,null,null,null,null,null,"Nº ",null,{"$f":"L901+1","v":200020},null,null,null,null,null,null,null,null,null,null,null,null,null,null,null,null,null,null,null,null,null,null,null,null,"Nº ",null,{"$f":"AM901+1","v":200070}]
[]
[]
[]
[]
[]
[]
[]
[]
[]
[]
["CONCEPTO",null,null,null,null,null,"UNIDADES",null,null,null,null,null,null,null,"CONCEPTO",null,null,null,null,null,null,"UNIDADES",null,null,null,null,null,"CONCEPTO",null,null,null,null,null,"UNIDADES",null,null,null,null,null,null,null,"CONCEPTO",null,null,null,null,null,null,"UNIDADES"]
[]
[]
["NOTAS",null,null,null,null,null,null,null,null,null,null,null,null,null,null,null,null,null,null,null,null,null,null,null,null,null,null,"NOTAS"]
["CADA ORDEN PUEDE CONTENER VARIOS TRABAJOS, PERO UN SOLO CARGO",null,null,null,null,null,null,null,null,null,null,null,null,null,null,null,null,null,null,null,null,null,null,null,null,null,null,"CADA ORDEN PUEDE CONTENER VARIOS TRABAJOS, PERO UN SOLO CARGO"]
["NO RELLENAR LOS ESPACIOS CON FONDO",null,null,null,null,null,null,null,null,null,null,null,null,null,null,null,null,null,null,null,null,null,null,null,null,null,null,"NO RELLENAR LOS ESPACIOS CON FONDO"]
[null,null,null,null,null,null,null,null,null,null,null,null,null,null,null,null,null,null,"FECHA ACABADO",null,null,null,null,null,null,null,null,null,null,null,null,null,null,null,null,null,null,null,null,null,null,null,null,null,null,"FECHA ACABADO"]
["MOD. 106",null,null,null,null,null,null,null,null,null,null,null,null,null,null,null,null,null,null,null,null,null,null,null,null,null,null,"MOD. 106"]
[]
[" ",null,null,null,null,null,null,null,null,null,null,null,null,null,"REPROGRAFIA, S. G. C.",null,null,null,null,null,null,null,null,null,null,null,null,null,null,null,null,null,null,null,null,null,null,null,null,null,null,"REPROGRAFIA, S. G. C."]
[null,null,null,null,null,null,null,null,null,null,null,null,null,null,"ORDEN DE TRABAJO",null,null,null,null,null,null,null,null,null,null,null,null,null,null,null,null,null,null,null,null,null,null,null,null,null,null,"ORDEN DE TRABAJO"]
[]
[]
["PETICIONARIO",null,null,null,null,null,null,null,null,null,null,null,null,null,null,null,null,null,null,null,null,null,null,null,null,null,null,"PETICIONARIO"]
[]
[]
[]
["DEPARTAMENTO",null,null,null,null,null,null,null,null,null,null,null,null,null,null,null,null,null,null,null,null,null,null,null,null,null,null,"DEPARTAMENTO"]
[]
[]
[]
["TRABAJO A REALIZAR",null,null,null,null,null,null,null,null,null,null,null,null,null,null,null,null,null,null,null,null,null,"UNIDADES",null,null,null,null,"TRABAJO A REALIZAR",null,null,null,null,null,null,null,null,null,null,null,null,null,null,null,null,null,null,null,null,null,"UNIDADES"]
[]
[]
[]
["DENOMINACION OBRA O PROYECTO",null,null,null,null,null,null,null,null,null,null,null,null,null,null,null,null,null,null,null,null,null,null,null,null,null,null,"DENOMINACION OBRA O PROYECTO"]
[]
[]
[]
["CODIGO",null,null,null,null,null,null,null,null,null,null,null,null,null,null,null,null,null,null,null,null,null,null,null,null,null,null,"CODIGO"]
[]
[]
[]
["FECHA ENTRADA",null,null,null,null,null,null,null,null,null,null,null,null,null,null,"FIRMA",null,null,null,null,null,null,null,null,null,null,null,"FECHA ENTRADA",null,null,null,null,null,null,null,null,null,null,null,null,null,null,"FIRMA"]
[]
[null,null,null,null,null,null,null,null,null,"Nº ",null,{"$f":"L947+1","v":200021},null,null,null,null,null,null,null,null,null,null,null,null,null,null,null,null,null,null,null,null,null,null,null,null,"Nº ",null,{"$f":"AM947+1","v":200071}]
[]
[]
[]
[]
[]
[]
[]
[]
[]
[]
["CONCEPTO",null,null,null,null,null,"UNIDADES",null,null,null,null,null,null,null,"CONCEPTO",null,null,null,null,null,null,"UNIDADES",null,null,null,null,null,"CONCEPTO",null,null,null,null,null,"UNIDADES",null,null,null,null,null,null,null,"CONCEPTO",null,null,null,null,null,null,"UNIDADES"]
[]
[]
["NOTAS",null,null,null,null,null,null,null,null,null,null,null,null,null,null,null,null,null,null,null,null,null,null,null,null,null,null,"NOTAS"]
["CADA ORDEN PUEDE CONTENER VARIOS TRABAJOS, PERO UN SOLO CARGO",null,null,null,null,null,null,null,null,null,null,null,null,null,null,null,null,null,null,null,null,null,null,null,null,null,null,"CADA ORDEN PUEDE CONTENER VARIOS TRABAJOS, PERO UN SOLO CARGO"]
["NO RELLENAR LOS ESPACIOS CON FONDO",null,null,null,null,null,null,null,null,null,null,null,null,null,null,null,null,null,null,null,null,null,null,null,null,null,null,"NO RELLENAR LOS ESPACIOS CON FONDO"]
[null,null,null,null,null,null,null,null,null,null,null,null,null,null,null,null,null,null,"FECHA ACABADO",null,null,null,null,null,null,null,null,null,null,null,null,null,null,null,null,null,null,null,null,null,null,null,null,null,null,"FECHA ACABADO"]
["MOD. 106",null,null,null,null,null,null,null,null,null,null,null,null,null,null,null,null,null,null,null,null,null,null,null,null,null,null,"MOD. 106"]
[]
[" ",null,null,null,null,null,null,null,null,null,null,null,null,null,"REPROGRAFIA, S. G. C.",null,null,null,null,null,null,null,null,null,null,null,null,null,null,null,null,null,null,null,null,null,null,null,null,null,null,"REPROGRAFIA, S. G. C."]
[null,null,null,null,null,null,null,null,null,null,null,null,null,null,"ORDEN DE TRABAJO",null,null,null,null,null,null,null,null,null,null,null,null,null,null,null,null,null,null,null,null,null,null,null,null,null,null,"ORDEN DE TRABAJO"]
[]
[]
["PETICIONARIO",null,null,null,null,null,null,null,null,null,null,null,null,null,null,null,null,null,null,null,null,null,null,null,null,null,null,"PETICIONARIO"]
[]
[]
[]
["DEPARTAMENTO",null,null,null,null,null,null,null,null,null,null,null,null,null,null,null,null,null,null,null,null,null,null,null,null,null,null,"DEPARTAMENTO"]
[]
[]
[]
["TRABAJO A REALIZAR",null,null,null,null,null,null,null,null,null,null,null,null,null,null,null,null,null,null,null,null,null,"UNIDADES",null,null,null,null,"TRABAJO A REALIZAR",null,null,null,null,null,null,null,null,null,null,null,null,null,null,null,null,null,null,null,null,null,"UNIDADES"]
[]
[]
[]
["DENOMINACION OBRA O PROYECTO",null,null,null,null,null,null,null,null,null,null,null,null,null,null,null,null,null,null,null,null,null,null,null,null,null,null,"DENOMINACION OBRA O PROYECTO"]
[]
[]
[]
["CODIGO",null,null,null,null,null,null,null,null,null,null,null,null,null,null,null,null,null,null,null,null,null,null,null,null,null,null,"CODIGO"]
[]
[]
[]
["FECHA ENTRADA",null,null,null,null,null,null,null,null,null,null,null,null,null,null,"FIRMA",null,null,null,null,null,null,null,null,null,null,null,"FECHA ENTRADA",null,null,null,null,null,null,null,null,null,null,null,null,null,null,"FIRMA"]
[]
[null,null,null,null,null,null,null,null,null,"Nº ",null,{"$f":"L993+1","v":200022},null,null,null,null,null,null,null,null,null,null,null,null,null,null,null,null,null,null,null,null,null,null,null,null,"Nº ",null,{"$f":"AM993+1","v":200072}]
[]
[]
[]
[]
[]
[]
[]
[]
[]
[]
["CONCEPTO",null,null,null,null,null,"UNIDADES",null,null,null,null,null,null,null,"CONCEPTO",null,null,null,null,null,null,"UNIDADES",null,null,null,null,null,"CONCEPTO",null,null,null,null,null,"UNIDADES",null,null,null,null,null,null,null,"CONCEPTO",null,null,null,null,null,null,"UNIDADES"]
[]
[]
["NOTAS",null,null,null,null,null,null,null,null,null,null,null,null,null,null,null,null,null,null,null,null,null,null,null,null,null,null,"NOTAS"]
["CADA ORDEN PUEDE CONTENER VARIOS TRABAJOS, PERO UN SOLO CARGO",null,null,null,null,null,null,null,null,null,null,null,null,null,null,null,null,null,null,null,null,null,null,null,null,null,null,"CADA ORDEN PUEDE CONTENER VARIOS TRABAJOS, PERO UN SOLO CARGO"]
["NO RELLENAR LOS ESPACIOS CON FONDO",null,null,null,null,null,null,null,null,null,null,null,null,null,null,null,null,null,null,null,null,null,null,null,null,null,null,"NO RELLENAR LOS ESPACIOS CON FONDO"]
[null,null,null,null,null,null,null,null,null,null,null,null,null,null,null,null,null,null,"FECHA ACABADO",null,null,null,null,null,null,null,null,null,null,null,null,null,null,null,null,null,null,null,null,null,null,null,null,null,null,"FECHA ACABADO"]
["MOD. 106",null,null,null,null,null,null,null,null,null,null,null,null,null,null,null,null,null,null,null,null,null,null,null,null,null,null,"MOD. 106"]
[]
[" ",null,null,null,null,null,null,null,null,null,null,null,null,null,"REPROGRAFIA, S. G. C.",null,null,null,null,null,null,null,null,null,null,null,null,null,null,null,null,null,null,null,null,null,null,null,null,null,null,"REPROGRAFIA, S. G. C."]
[null,null,null,null,null,null,null,null,null,null,null,null,null,null,"ORDEN DE TRABAJO",null,null,null,null,null,null,null,null,null,null,null,null,null,null,null,null,null,null,null,null,null,null,null,null,null,null,"ORDEN DE TRABAJO"]
[]
[]
["PETICIONARIO",null,null,null,null,null,null,null,null,null,null,null,null,null,null,null,null,null,null,null,null,null,null,null,null,null,null,"PETICIONARIO"]
[]
[]
[]
["DEPARTAMENTO",null,null,null,null,null,null,null,null,null,null,null,null,null,null,null,null,null,null,null,null,null,null,null,null,null,null,"DEPARTAMENTO"]
[]
[]
[]
["TRABAJO A REALIZAR",null,null,null,null,null,null,null,null,null,null,null,null,null,null,null,null,null,null,null,null,null,"UNIDADES",null,null,null,null,"TRABAJO A REALIZAR",null,null,null,null,null,null,null,null,null,null,null,null,null,null,null,null,null,null,null,null,null,"UNIDADES"]
[]
[]
[]
["DENOMINACION OBRA O PROYECTO",null,null,null,null,null,null,null,null,null,null,null,null,null,null,null,null,null,null,null,null,null,null,null,null,null,null,"DENOMINACION OBRA O PROYECTO"]
[]
[]
[]
["CODIGO",null,null,null,null,null,null,null,null,null,null,null,null,null,null,null,null,null,null,null,null,null,null,null,null,null,null,"CODIGO"]
[]
[]
[]
["FECHA ENTRADA",null,null,null,null,null,null,null,null,null,null,null,null,null,null,"FIRMA",null,null,null,null,null,null,null,null,null,null,null,"FECHA ENTRADA",null,null,null,null,null,null,null,null,null,null,null,null,null,null,"FIRMA"]
[]
[null,null,null,null,null,null,null,null,null,"Nº ",null,{"$f":"L1039+1","v":200023},null,null,null,null,null,null,null,null,null,null,null,null,null,null,null,null,null,null,null,null,null,null,null,null,"Nº ",null,{"$f":"AM1039+1","v":200073}]
[]
[]
[]
[]
[]
[]
[]
[]
[]
[]
["CONCEPTO",null,null,null,null,null,"UNIDADES",null,null,null,null,null,null,null,"CONCEPTO",null,null,null,null,null,null,"UNIDADES",null,null,null,null,null,"CONCEPTO",null,null,null,null,null,"UNIDADES",null,null,null,null,null,null,null,"CONCEPTO",null,null,null,null,null,null,"UNIDADES"]
[]
[]
["NOTAS",null,null,null,null,null,null,null,null,null,null,null,null,null,null,null,null,null,null,null,null,null,null,null,null,null,null,"NOTAS"]
["CADA ORDEN PUEDE CONTENER VARIOS TRABAJOS, PERO UN SOLO CARGO",null,null,null,null,null,null,null,null,null,null,null,null,null,null,null,null,null,null,null,null,null,null,null,null,null,null,"CADA ORDEN PUEDE CONTENER VARIOS TRABAJOS, PERO UN SOLO CARGO"]
["NO RELLENAR LOS ESPACIOS CON FONDO",null,null,null,null,null,null,null,null,null,null,null,null,null,null,null,null,null,null,null,null,null,null,null,null,null,null,"NO RELLENAR LOS ESPACIOS CON FONDO"]
[null,null,null,null,null,null,null,null,null,null,null,null,null,null,null,null,null,null,"FECHA ACABADO",null,null,null,null,null,null,null,null,null,null,null,null,null,null,null,null,null,null,null,null,null,null,null,null,null,null,"FECHA ACABADO"]
["MOD. 106",null,null,null,null,null,null,null,null,null,null,null,null,null,null,null,null,null,null,null,null,null,null,null,null,null,null,"MOD. 106"]
[]
[" ",null,null,null,null,null,null,null,null,null,null,null,null,null,"REPROGRAFIA, S. G. C.",null,null,null,null,null,null,null,null,null,null,null,null,null,null,null,null,null,null,null,null,null,null,null,null,null,null,"REPROGRAFIA, S. G. C."]
[null,null,null,null,null,null,null,null,null,null,null,null,null,null,"ORDEN DE TRABAJO",null,null,null,null,null,null,null,null,null,null,null,null,null,null,null,null,null,null,null,null,null,null,null,null,null,null,"ORDEN DE TRABAJO"]
[]
[]
["PETICIONARIO",null,null,null,null,null,null,null,null,null,null,null,null,null,null,null,null,null,null,null,null,null,null,null,null,null,null,"PETICIONARIO"]
[]
[]
[]
["DEPARTAMENTO",null,null,null,null,null,null,null,null,null,null,null,null,null,null,null,null,null,null,null,null,null,null,null,null,null,null,"DEPARTAMENTO"]
[]
[]
[]
["TRABAJO A REALIZAR",null,null,null,null,null,null,null,null,null,null,null,null,null,null,null,null,null,null,null,null,null,"UNIDADES",null,null,null,null,"TRABAJO A REALIZAR",null,null,null,null,null,null,null,null,null,null,null,null,null,null,null,null,null,null,null,null,null,"UNIDADES"]
[]
[]
[]
["DENOMINACION OBRA O PROYECTO",null,null,null,null,null,null,null,null,null,null,null,null,null,null,null,null,null,null,null,null,null,null,null,null,null,null,"DENOMINACION OBRA O PROYECTO"]
[]
[]
[]
["CODIGO",null,null,null,null,null,null,null,null,null,null,null,null,null,null,null,null,null,null,null,null,null,null,null,null,null,null,"CODIGO"]
[]
[]
[]
["FECHA ENTRADA",null,null,null,null,null,null,null,null,null,null,null,null,null,null,"FIRMA",null,null,null,null,null,null,null,null,null,null,null,"FECHA ENTRADA",null,null,null,null,null,null,null,null,null,null,null,null,null,null,"FIRMA"]
[]
[null,null,null,null,null,null,null,null,null,"Nº ",null,{"$f":"L1085+1","v":200024},null,null,null,null,null,null,null,null,null,null,null,null,null,null,null,null,null,null,null,null,null,null,null,null,"Nº ",null,{"$f":"AM1085+1","v":200074}]
[]
[]
[]
[]
[]
[]
[]
[]
[]
[]
["CONCEPTO",null,null,null,null,null,"UNIDADES",null,null,null,null,null,null,null,"CONCEPTO",null,null,null,null,null,null,"UNIDADES",null,null,null,null,null,"CONCEPTO",null,null,null,null,null,"UNIDADES",null,null,null,null,null,null,null,"CONCEPTO",null,null,null,null,null,null,"UNIDADES"]
[]
[]
["NOTAS",null,null,null,null,null,null,null,null,null,null,null,null,null,null,null,null,null,null,null,null,null,null,null,null,null,null,"NOTAS"]
["CADA ORDEN PUEDE CONTENER VARIOS TRABAJOS, PERO UN SOLO CARGO",null,null,null,null,null,null,null,null,null,null,null,null,null,null,null,null,null,null,null,null,null,null,null,null,null,null,"CADA ORDEN PUEDE CONTENER VARIOS TRABAJOS, PERO UN SOLO CARGO"]
["NO RELLENAR LOS ESPACIOS CON FONDO",null,null,null,null,null,null,null,null,null,null,null,null,null,null,null,null,null,null,null,null,null,null,null,null,null,null,"NO RELLENAR LOS ESPACIOS CON FONDO"]
[null,null,null,null,null,null,null,null,null,null,null,null,null,null,null,null,null,null,"FECHA ACABADO",null,null,null,null,null,null,null,null,null,null,null,null,null,null,null,null,null,null,null,null,null,null,null,null,null,null,"FECHA ACABADO"]
["MOD. 106",null,null,null,null,null,null,null,null,null,null,null,null,null,null,null,null,null,null,null,null,null,null,null,null,null,null,"MOD. 106"]
[]
[" ",null,null,null,null,null,null,null,null,null,null,null,null,null,"REPROGRAFIA, S. G. C.",null,null,null,null,null,null,null,null,null,null,null,null,null,null,null,null,null,null,null,null,null,null,null,null,null,null,"REPROGRAFIA, S. G. C."]
[null,null,null,null,null,null,null,null,null,null,null,null,null,null,"ORDEN DE TRABAJO",null,null,null,null,null,null,null,null,null,null,null,null,null,null,null,null,null,null,null,null,null,null,null,null,null,null,"ORDEN DE TRABAJO"]
[]
[]
["PETICIONARIO",null,null,null,null,null,null,null,null,null,null,null,null,null,null,null,null,null,null,null,null,null,null,null,null,null,null,"PETICIONARIO"]
[]
[]
[]
["DEPARTAMENTO",null,null,null,null,null,null,null,null,null,null,null,null,null,null,null,null,null,null,null,null,null,null,null,null,null,null,"DEPARTAMENTO"]
[]
[]
[]
["TRABAJO A REALIZAR",null,null,null,null,null,null,null,null,null,null,null,null,null,null,null,null,null,null,null,null,null,"UNIDADES",null,null,null,null,"TRABAJO A REALIZAR",null,null,null,null,null,null,null,null,null,null,null,null,null,null,null,null,null,null,null,null,null,"UNIDADES"]
[]
[]
[]
["DENOMINACION OBRA O PROYECTO",null,null,null,null,null,null,null,null,null,null,null,null,null,null,null,null,null,null,null,null,null,null,null,null,null,null,"DENOMINACION OBRA O PROYECTO"]
[]
[]
[]
["CODIGO",null,null,null,null,null,null,null,null,null,null,null,null,null,null,null,null,null,null,null,null,null,null,null,null,null,null,"CODIGO"]
[]
[]
[]
["FECHA ENTRADA",null,null,null,null,null,null,null,null,null,null,null,null,null,null,"FIRMA",null,null,null,null,null,null,null,null,null,null,null,"FECHA ENTRADA",null,null,null,null,null,null,null,null,null,null,null,null,null,null,"FIRMA"]
[]
[null,null,null,null,null,null,null,null,null,"Nº ",null,{"$f":"L1131+1","v":200025},null,null,null,null,null,null,null,null,null,null,null,null,null,null,null,null,null,null,null,null,null,null,null,null,"Nº ",null,{"$f":"AM1131+1","v":200075}]
[]
[]
[]
[]
[]
[]
[]
[]
[]
[]
["CONCEPTO",null,null,null,null,null,"UNIDADES",null,null,null,null,null,null,null,"CONCEPTO",null,null,null,null,null,null,"UNIDADES",null,null,null,null,null,"CONCEPTO",null,null,null,null,null,"UNIDADES",null,null,null,null,null,null,null,"CONCEPTO",null,null,null,null,null,null,"UNIDADES"]
[]
[]
["NOTAS",null,null,null,null,null,null,null,null,null,null,null,null,null,null,null,null,null,null,null,null,null,null,null,null,null,null,"NOTAS"]
["CADA ORDEN PUEDE CONTENER VARIOS TRABAJOS, PERO UN SOLO CARGO",null,null,null,null,null,null,null,null,null,null,null,null,null,null,null,null,null,null,null,null,null,null,null,null,null,null,"CADA ORDEN PUEDE CONTENER VARIOS TRABAJOS, PERO UN SOLO CARGO"]
["NO RELLENAR LOS ESPACIOS CON FONDO",null,null,null,null,null,null,null,null,null,null,null,null,null,null,null,null,null,null,null,null,null,null,null,null,null,null,"NO RELLENAR LOS ESPACIOS CON FONDO"]
[null,null,null,null,null,null,null,null,null,null,null,null,null,null,null,null,null,null,"FECHA ACABADO",null,null,null,null,null,null,null,null,null,null,null,null,null,null,null,null,null,null,null,null,null,null,null,null,null,null,"FECHA ACABADO"]
["MOD. 106",null,null,null,null,null,null,null,null,null,null,null,null,null,null,null,null,null,null,null,null,null,null,null,null,null,null,"MOD. 106"]
[]
[" ",null,null,null,null,null,null,null,null,null,null,null,null,null,"REPROGRAFIA, S. G. C.",null,null,null,null,null,null,null,null,null,null,null,null,null,null,null,null,null,null,null,null,null,null,null,null,null,null,"REPROGRAFIA, S. G. C."]
[null,null,null,null,null,null,null,null,null,null,null,null,null,null,"ORDEN DE TRABAJO",null,null,null,null,null,null,null,null,null,null,null,null,null,null,null,null,null,null,null,null,null,null,null,null,null,null,"ORDEN DE TRABAJO"]
[]
[]
["PETICIONARIO",null,null,null,null,null,null,null,null,null,null,null,null,null,null,null,null,null,null,null,null,null,null,null,null,null,null,"PETICIONARIO"]
[]
[]
[]
["DEPARTAMENTO",null,null,null,null,null,null,null,null,null,null,null,null,null,null,null,null,null,null,null,null,null,null,null,null,null,null,"DEPARTAMENTO"]
[]
[]
[]
["TRABAJO A REALIZAR",null,null,null,null,null,null,null,null,null,null,null,null,null,null,null,null,null,null,null,null,null,"UNIDADES",null,null,null,null,"TRABAJO A REALIZAR",null,null,null,null,null,null,null,null,null,null,null,null,null,null,null,null,null,null,null,null,null,"UNIDADES"]
[]
[]
[]
["DENOMINACION OBRA O PROYECTO",null,null,null,null,null,null,null,null,null,null,null,null,null,null,null,null,null,null,null,null,null,null,null,null,null,null,"DENOMINACION OBRA O PROYECTO"]
[]
[]
[]
["CODIGO",null,null,null,null,null,null,null,null,null,null,null,null,null,null,null,null,null,null,null,null,null,null,null,null,null,null,"CODIGO"]
[]
[]
[]
["FECHA ENTRADA",null,null,null,null,null,null,null,null,null,null,null,null,null,null,"FIRMA",null,null,null,null,null,null,null,null,null,null,null,"FECHA ENTRADA",null,null,null,null,null,null,null,null,null,null,null,null,null,null,"FIRMA"]
[]
[null,null,null,null,null,null,null,null,null,"Nº ",null,{"$f":"L1177+1","v":200026},null,null,null,null,null,null,null,null,null,null,null,null,null,null,null,null,null,null,null,null,null,null,null,null,"Nº ",null,{"$f":"AM1177+1","v":200076}]
[]
[]
[]
[]
[]
[]
[]
[]
[]
[]
["CONCEPTO",null,null,null,null,null,"UNIDADES",null,null,null,null,null,null,null,"CONCEPTO",null,null,null,null,null,null,"UNIDADES",null,null,null,null,null,"CONCEPTO",null,null,null,null,null,"UNIDADES",null,null,null,null,null,null,null,"CONCEPTO",null,null,null,null,null,null,"UNIDADES"]
[]
[]
["NOTAS",null,null,null,null,null,null,null,null,null,null,null,null,null,null,null,null,null,null,null,null,null,null,null,null,null,null,"NOTAS"]
["CADA ORDEN PUEDE CONTENER VARIOS TRABAJOS, PERO UN SOLO CARGO",null,null,null,null,null,null,null,null,null,null,null,null,null,null,null,null,null,null,null,null,null,null,null,null,null,null,"CADA ORDEN PUEDE CONTENER VARIOS TRABAJOS, PERO UN SOLO CARGO"]
["NO RELLENAR LOS ESPACIOS CON FONDO",null,null,null,null,null,null,null,null,null,null,null,null,null,null,null,null,null,null,null,null,null,null,null,null,null,null,"NO RELLENAR LOS ESPACIOS CON FONDO"]
[null,null,null,null,null,null,null,null,null,null,null,null,null,null,null,null,null,null,"FECHA ACABADO",null,null,null,null,null,null,null,null,null,null,null,null,null,null,null,null,null,null,null,null,null,null,null,null,null,null,"FECHA ACABADO"]
["MOD. 106",null,null,null,null,null,null,null,null,null,null,null,null,null,null,null,null,null,null,null,null,null,null,null,null,null,null,"MOD. 106"]
[]
[" ",null,null,null,null,null,null,null,null,null,null,null,null,null,"REPROGRAFIA, S. G. C.",null,null,null,null,null,null,null,null,null,null,null,null,null,null,null,null,null,null,null,null,null,null,null,null,null,null,"REPROGRAFIA, S. G. C."]
[null,null,null,null,null,null,null,null,null,null,null,null,null,null,"ORDEN DE TRABAJO",null,null,null,null,null,null,null,null,null,null,null,null,null,null,null,null,null,null,null,null,null,null,null,null,null,null,"ORDEN DE TRABAJO"]
[]
[]
["PETICIONARIO",null,null,null,null,null,null,null,null,null,null,null,null,null,null,null,null,null,null,null,null,null,null,null,null,null,null,"PETICIONARIO"]
[]
[]
[]
["DEPARTAMENTO",null,null,null,null,null,null,null,null,null,null,null,null,null,null,null,null,null,null,null,null,null,null,null,null,null,null,"DEPARTAMENTO"]
[]
[]
[]
["TRABAJO A REALIZAR",null,null,null,null,null,null,null,null,null,null,null,null,null,null,null,null,null,null,null,null,null,"UNIDADES",null,null,null,null,"TRABAJO A REALIZAR",null,null,null,null,null,null,null,null,null,null,null,null,null,null,null,null,null,null,null,null,null,"UNIDADES"]
[]
[]
[]
["DENOMINACION OBRA O PROYECTO",null,null,null,null,null,null,null,null,null,null,null,null,null,null,null,null,null,null,null,null,null,null,null,null,null,null,"DENOMINACION OBRA O PROYECTO"]
[]
[]
[]
["CODIGO",null,null,null,null,null,null,null,null,null,null,null,null,null,null,null,null,null,null,null,null,null,null,null,null,null,null,"CODIGO"]
[]
[]
[]
["FECHA ENTRADA",null,null,null,null,null,null,null,null,null,null,null,null,null,null,"FIRMA",null,null,null,null,null,null,null,null,null,null,null,"FECHA ENTRADA",null,null,null,null,null,null,null,null,null,null,null,null,null,null,"FIRMA"]
[]
[null,null,null,null,null,null,null,null,null,"Nº ",null,{"$f":"L1223+1","v":200027},null,null,null,null,null,null,null,null,null,null,null,null,null,null,null,null,null,null,null,null,null,null,null,null,"Nº ",null,{"$f":"AM1223+1","v":200077}]
[]
[]
[]
[]
[]
[]
[]
[]
[]
[]
["CONCEPTO",null,null,null,null,null,"UNIDADES",null,null,null,null,null,null,null,"CONCEPTO",null,null,null,null,null,null,"UNIDADES",null,null,null,null,null,"CONCEPTO",null,null,null,null,null,"UNIDADES",null,null,null,null,null,null,null,"CONCEPTO",null,null,null,null,null,null,"UNIDADES"]
[]
[]
["NOTAS",null,null,null,null,null,null,null,null,null,null,null,null,null,null,null,null,null,null,null,null,null,null,null,null,null,null,"NOTAS"]
["CADA ORDEN PUEDE CONTENER VARIOS TRABAJOS, PERO UN SOLO CARGO",null,null,null,null,null,null,null,null,null,null,null,null,null,null,null,null,null,null,null,null,null,null,null,null,null,null,"CADA ORDEN PUEDE CONTENER VARIOS TRABAJOS, PERO UN SOLO CARGO"]
["NO RELLENAR LOS ESPACIOS CON FONDO",null,null,null,null,null,null,null,null,null,null,null,null,null,null,null,null,null,null,null,null,null,null,null,null,null,null,"NO RELLENAR LOS ESPACIOS CON FONDO"]
[null,null,null,null,null,null,null,null,null,null,null,null,null,null,null,null,null,null,"FECHA ACABADO",null,null,null,null,null,null,null,null,null,null,null,null,null,null,null,null,null,null,null,null,null,null,null,null,null,null,"FECHA ACABADO"]
["MOD. 106",null,null,null,null,null,null,null,null,null,null,null,null,null,null,null,null,null,null,null,null,null,null,null,null,null,null,"MOD. 106"]
[]
[" ",null,null,null,null,null,null,null,null,null,null,null,null,null,"REPROGRAFIA, S. G. C.",null,null,null,null,null,null,null,null,null,null,null,null,null,null,null,null,null,null,null,null,null,null,null,null,null,null,"REPROGRAFIA, S. G. C."]
[null,null,null,null,null,null,null,null,null,null,null,null,null,null,"ORDEN DE TRABAJO",null,null,null,null,null,null,null,null,null,null,null,null,null,null,null,null,null,null,null,null,null,null,null,null,null,null,"ORDEN DE TRABAJO"]
[]
[]
["PETICIONARIO",null,null,null,null,null,null,null,null,null,null,null,null,null,null,null,null,null,null,null,null,null,null,null,null,null,null,"PETICIONARIO"]
[]
[]
[]
["DEPARTAMENTO",null,null,null,null,null,null,null,null,null,null,null,null,null,null,null,null,null,null,null,null,null,null,null,null,null,null,"DEPARTAMENTO"]
[]
[]
[]
["TRABAJO A REALIZAR",null,null,null,null,null,null,null,null,null,null,null,null,null,null,null,null,null,null,null,null,null,"UNIDADES",null,null,null,null,"TRABAJO A REALIZAR",null,null,null,null,null,null,null,null,null,null,null,null,null,null,null,null,null,null,null,null,null,"UNIDADES"]
[]
[]
[]
["DENOMINACION OBRA O PROYECTO",null,null,null,null,null,null,null,null,null,null,null,null,null,null,null,null,null,null,null,null,null,null,null,null,null,null,"DENOMINACION OBRA O PROYECTO"]
[]
[]
[]
["CODIGO",null,null,null,null,null,null,null,null,null,null,null,null,null,null,null,null,null,null,null,null,null,null,null,null,null,null,"CODIGO"]
[]
[]
[]
["FECHA ENTRADA",null,null,null,null,null,null,null,null,null,null,null,null,null,null,"FIRMA",null,null,null,null,null,null,null,null,null,null,null,"FECHA ENTRADA",null,null,null,null,null,null,null,null,null,null,null,null,null,null,"FIRMA"]
[]
[null,null,null,null,null,null,null,null,null,"Nº ",null,{"$f":"L1269+1","v":200028},null,null,null,null,null,null,null,null,null,null,null,null,null,null,null,null,null,null,null,null,null,null,null,null,"Nº ",null,{"$f":"AM1269+1","v":200078}]
[]
[]
[]
[]
[]
[]
[]
[]
[]
[]
["CONCEPTO",null,null,null,null,null,"UNIDADES",null,null,null,null,null,null,null,"CONCEPTO",null,null,null,null,null,null,"UNIDADES",null,null,null,null,null,"CONCEPTO",null,null,null,null,null,"UNIDADES",null,null,null,null,null,null,null,"CONCEPTO",null,null,null,null,null,null,"UNIDADES"]
[]
[]
["NOTAS",null,null,null,null,null,null,null,null,null,null,null,null,null,null,null,null,null,null,null,null,null,null,null,null,null,null,"NOTAS"]
["CADA ORDEN PUEDE CONTENER VARIOS TRABAJOS, PERO UN SOLO CARGO",null,null,null,null,null,null,null,null,null,null,null,null,null,null,null,null,null,null,null,null,null,null,null,null,null,null,"CADA ORDEN PUEDE CONTENER VARIOS TRABAJOS, PERO UN SOLO CARGO"]
["NO RELLENAR LOS ESPACIOS CON FONDO",null,null,null,null,null,null,null,null,null,null,null,null,null,null,null,null,null,null,null,null,null,null,null,null,null,null,"NO RELLENAR LOS ESPACIOS CON FONDO"]
[null,null,null,null,null,null,null,null,null,null,null,null,null,null,null,null,null,null,"FECHA ACABADO",null,null,null,null,null,null,null,null,null,null,null,null,null,null,null,null,null,null,null,null,null,null,null,null,null,null,"FECHA ACABADO"]
["MOD. 106",null,null,null,null,null,null,null,null,null,null,null,null,null,null,null,null,null,null,null,null,null,null,null,null,null,null,"MOD. 106"]
[]
[" ",null,null,null,null,null,null,null,null,null,null,null,null,null,"REPROGRAFIA, S. G. C.",null,null,null,null,null,null,null,null,null,null,null,null,null,null,null,null,null,null,null,null,null,null,null,null,null,null,"REPROGRAFIA, S. G. C."]
[null,null,null,null,null,null,null,null,null,null,null,null,null,null,"ORDEN DE TRABAJO",null,null,null,null,null,null,null,null,null,null,null,null,null,null,null,null,null,null,null,null,null,null,null,null,null,null,"ORDEN DE TRABAJO"]
[]
[]
["PETICIONARIO",null,null,null,null,null,null,null,null,null,null,null,null,null,null,null,null,null,null,null,null,null,null,null,null,null,null,"PETICIONARIO"]
[]
[]
[]
["DEPARTAMENTO",null,null,null,null,null,null,null,null,null,null,null,null,null,null,null,null,null,null,null,null,null,null,null,null,null,null,"DEPARTAMENTO"]
[]
[]
[]
["TRABAJO A REALIZAR",null,null,null,null,null,null,null,null,null,null,null,null,null,null,null,null,null,null,null,null,null,"UNIDADES",null,null,null,null,"TRABAJO A REALIZAR",null,null,null,null,null,null,null,null,null,null,null,null,null,null,null,null,null,null,null,null,null,"UNIDADES"]
[]
[]
[]
["DENOMINACION OBRA O PROYECTO",null,null,null,null,null,null,null,null,null,null,null,null,null,null,null,null,null,null,null,null,null,null,null,null,null,null,"DENOMINACION OBRA O PROYECTO"]
[]
[]
[]
["CODIGO",null,null,null,null,null,null,null,null,null,null,null,null,null,null,null,null,null,null,null,null,null,null,null,null,null,null,"CODIGO"]
[]
[]
[]
["FECHA ENTRADA",null,null,null,null,null,null,null,null,null,null,null,null,null,null,"FIRMA",null,null,null,null,null,null,null,null,null,null,null,"FECHA ENTRADA",null,null,null,null,null,null,null,null,null,null,null,null,null,null,"FIRMA"]
[]
[null,null,null,null,null,null,null,null,null,"Nº ",null,{"$f":"L1315+1","v":200029},null,null,null,null,null,null,null,null,null,null,null,null,null,null,null,null,null,null,null,null,null,null,null,null,"Nº ",null,{"$f":"AM1315+1","v":200079}]
[]
[]
[]
[]
[]
[]
[]
[]
[]
[]
["CONCEPTO",null,null,null,null,null,"UNIDADES",null,null,null,null,null,null,null,"CONCEPTO",null,null,null,null,null,null,"UNIDADES",null,null,null,null,null,"CONCEPTO",null,null,null,null,null,"UNIDADES",null,null,null,null,null,null,null,"CONCEPTO",null,null,null,null,null,null,"UNIDADES"]
[]
[]
["NOTAS",null,null,null,null,null,null,null,null,null,null,null,null,null,null,null,null,null,null,null,null,null,null,null,null,null,null,"NOTAS"]
["CADA ORDEN PUEDE CONTENER VARIOS TRABAJOS, PERO UN SOLO CARGO",null,null,null,null,null,null,null,null,null,null,null,null,null,null,null,null,null,null,null,null,null,null,null,null,null,null,"CADA ORDEN PUEDE CONTENER VARIOS TRABAJOS, PERO UN SOLO CARGO"]
["NO RELLENAR LOS ESPACIOS CON FONDO",null,null,null,null,null,null,null,null,null,null,null,null,null,null,null,null,null,null,null,null,null,null,null,null,null,null,"NO RELLENAR LOS ESPACIOS CON FONDO"]
[null,null,null,null,null,null,null,null,null,null,null,null,null,null,null,null,null,null,"FECHA ACABADO",null,null,null,null,null,null,null,null,null,null,null,null,null,null,null,null,null,null,null,null,null,null,null,null,null,null,"FECHA ACABADO"]
["MOD. 106",null,null,null,null,null,null,null,null,null,null,null,null,null,null,null,null,null,null,null,null,null,null,null,null,null,null,"MOD. 106"]
[]
[" ",null,null,null,null,null,null,null,null,null,null,null,null,null,"REPROGRAFIA, S. G. C.",null,null,null,null,null,null,null,null,null,null,null,null,null,null,null,null,null,null,null,null,null,null,null,null,null,null,"REPROGRAFIA, S. G. C."]
[null,null,null,null,null,null,null,null,null,null,null,null,null,null,"ORDEN DE TRABAJO",null,null,null,null,null,null,null,null,null,null,null,null,null,null,null,null,null,null,null,null,null,null,null,null,null,null,"ORDEN DE TRABAJO"]
[]
[]
["PETICIONARIO",null,null,null,null,null,null,null,null,null,null,null,null,null,null,null,null,null,null,null,null,null,null,null,null,null,null,"PETICIONARIO"]
[]
[]
[]
["DEPARTAMENTO",null,null,null,null,null,null,null,null,null,null,null,null,null,null,null,null,null,null,null,null,null,null,null,null,null,null,"DEPARTAMENTO"]
[]
[]
[]
["TRABAJO A REALIZAR",null,null,null,null,null,null,null,null,null,null,null,null,null,null,null,null,null,null,null,null,null,"UNIDADES",null,null,null,null,"TRABAJO A REALIZAR",null,null,null,null,null,null,null,null,null,null,null,null,null,null,null,null,null,null,null,null,null,"UNIDADES"]
[]
[]
[]
["DENOMINACION OBRA O PROYECTO",null,null,null,null,null,null,null,null,null,null,null,null,null,null,null,null,null,null,null,null,null,null,null,null,null,null,"DENOMINACION OBRA O PROYECTO"]
[]
[]
[]
["CODIGO",null,null,null,null,null,null,null,null,null,null,null,null,null,null,null,null,null,null,null,null,null,null,null,null,null,null,"CODIGO"]
[]
[]
[]
["FECHA ENTRADA",null,null,null,null,null,null,null,null,null,null,null,null,null,null,"FIRMA",null,null,null,null,null,null,null,null,null,null,null,"FECHA ENTRADA",null,null,null,null,null,null,null,null,null,null,null,null,null,null,"FIRMA"]
[]
[null,null,null,null,null,null,null,null,null,"Nº ",null,{"$f":"L1361+1","v":200030},null,null,null,null,null,null,null,null,null,null,null,null,null,null,null,null,null,null,null,null,null,null,null,null,"Nº ",null,{"$f":"AM1361+1","v":200080}]
[]
[]
[]
[]
[]
[]
[]
[]
[]
[]
["CONCEPTO",null,null,null,null,null,"UNIDADES",null,null,null,null,null,null,null,"CONCEPTO",null,null,null,null,null,null,"UNIDADES",null,null,null,null,null,"CONCEPTO",null,null,null,null,null,"UNIDADES",null,null,null,null,null,null,null,"CONCEPTO",null,null,null,null,null,null,"UNIDADES"]
[]
[]
["NOTAS",null,null,null,null,null,null,null,null,null,null,null,null,null,null,null,null,null,null,null,null,null,null,null,null,null,null,"NOTAS"]
["CADA ORDEN PUEDE CONTENER VARIOS TRABAJOS, PERO UN SOLO CARGO",null,null,null,null,null,null,null,null,null,null,null,null,null,null,null,null,null,null,null,null,null,null,null,null,null,null,"CADA ORDEN PUEDE CONTENER VARIOS TRABAJOS, PERO UN SOLO CARGO"]
["NO RELLENAR LOS ESPACIOS CON FONDO",null,null,null,null,null,null,null,null,null,null,null,null,null,null,null,null,null,null,null,null,null,null,null,null,null,null,"NO RELLENAR LOS ESPACIOS CON FONDO"]
[null,null,null,null,null,null,null,null,null,null,null,null,null,null,null,null,null,null,"FECHA ACABADO",null,null,null,null,null,null,null,null,null,null,null,null,null,null,null,null,null,null,null,null,null,null,null,null,null,null,"FECHA ACABADO"]
["MOD. 106",null,null,null,null,null,null,null,null,null,null,null,null,null,null,null,null,null,null,null,null,null,null,null,null,null,null,"MOD. 106"]
[]
[" ",null,null,null,null,null,null,null,null,null,null,null,null,null,"REPROGRAFIA, S. G. C.",null,null,null,null,null,null,null,null,null,null,null,null,null,null,null,null,null,null,null,null,null,null,null,null,null,null,"REPROGRAFIA, S. G. C."]
[null,null,null,null,null,null,null,null,null,null,null,null,null,null,"ORDEN DE TRABAJO",null,null,null,null,null,null,null,null,null,null,null,null,null,null,null,null,null,null,null,null,null,null,null,null,null,null,"ORDEN DE TRABAJO"]
[]
[]
["PETICIONARIO",null,null,null,null,null,null,null,null,null,null,null,null,null,null,null,null,null,null,null,null,null,null,null,null,null,null,"PETICIONARIO"]
[]
[]
[]
["DEPARTAMENTO",null,null,null,null,null,null,null,null,null,null,null,null,null,null,null,null,null,null,null,null,null,null,null,null,null,null,"DEPARTAMENTO"]
[]
[]
[]
["TRABAJO A REALIZAR",null,null,null,null,null,null,null,null,null,null,null,null,null,null,null,null,null,null,null,null,null,"UNIDADES",null,null,null,null,"TRABAJO A REALIZAR",null,null,null,null,null,null,null,null,null,null,null,null,null,null,null,null,null,null,null,null,null,"UNIDADES"]
[]
[]
[]
["DENOMINACION OBRA O PROYECTO",null,null,null,null,null,null,null,null,null,null,null,null,null,null,null,null,null,null,null,null,null,null,null,null,null,null,"DENOMINACION OBRA O PROYECTO"]
[]
[]
[]
["CODIGO",null,null,null,null,null,null,null,null,null,null,null,null,null,null,null,null,null,null,null,null,null,null,null,null,null,null,"CODIGO"]
[]
[]
[]
["FECHA ENTRADA",null,null,null,null,null,null,null,null,null,null,null,null,null,null,"FIRMA",null,null,null,null,null,null,null,null,null,null,null,"FECHA ENTRADA",null,null,null,null,null,null,null,null,null,null,null,null,null,null,"FIRMA"]
[]
[null,null,null,null,null,null,null,null,null,"Nº ",null,{"$f":"L1407+1","v":200031},null,null,null,null,null,null,null,null,null,null,null,null,null,null,null,null,null,null,null,null,null,null,null,null,"Nº ",null,{"$f":"AM1407+1","v":200081}]
[]
[]
[]
[]
[]
[]
[]
[]
[]
[]
["CONCEPTO",null,null,null,null,null,"UNIDADES",null,null,null,null,null,null,null,"CONCEPTO",null,null,null,null,null,null,"UNIDADES",null,null,null,null,null,"CONCEPTO",null,null,null,null,null,"UNIDADES",null,null,null,null,null,null,null,"CONCEPTO",null,null,null,null,null,null,"UNIDADES"]
[]
[]
["NOTAS",null,null,null,null,null,null,null,null,null,null,null,null,null,null,null,null,null,null,null,null,null,null,null,null,null,null,"NOTAS"]
["CADA ORDEN PUEDE CONTENER VARIOS TRABAJOS, PERO UN SOLO CARGO",null,null,null,null,null,null,null,null,null,null,null,null,null,null,null,null,null,null,null,null,null,null,null,null,null,null,"CADA ORDEN PUEDE CONTENER VARIOS TRABAJOS, PERO UN SOLO CARGO"]
["NO RELLENAR LOS ESPACIOS CON FONDO",null,null,null,null,null,null,null,null,null,null,null,null,null,null,null,null,null,null,null,null,null,null,null,null,null,null,"NO RELLENAR LOS ESPACIOS CON FONDO"]
[null,null,null,null,null,null,null,null,null,null,null,null,null,null,null,null,null,null,"FECHA ACABADO",null,null,null,null,null,null,null,null,null,null,null,null,null,null,null,null,null,null,null,null,null,null,null,null,null,null,"FECHA ACABADO"]
["MOD. 106",null,null,null,null,null,null,null,null,null,null,null,null,null,null,null,null,null,null,null,null,null,null,null,null,null,null,"MOD. 106"]
[]
[" ",null,null,null,null,null,null,null,null,null,null,null,null,null,"REPROGRAFIA, S. G. C.",null,null,null,null,null,null,null,null,null,null,null,null,null,null,null,null,null,null,null,null,null,null,null,null,null,null,"REPROGRAFIA, S. G. C."]
[null,null,null,null,null,null,null,null,null,null,null,null,null,null,"ORDEN DE TRABAJO",null,null,null,null,null,null,null,null,null,null,null,null,null,null,null,null,null,null,null,null,null,null,null,null,null,null,"ORDEN DE TRABAJO"]
[]
[]
["PETICIONARIO",null,null,null,null,null,null,null,null,null,null,null,null,null,null,null,null,null,null,null,null,null,null,null,null,null,null,"PETICIONARIO"]
[]
[]
[]
["DEPARTAMENTO",null,null,null,null,null,null,null,null,null,null,null,null,null,null,null,null,null,null,null,null,null,null,null,null,null,null,"DEPARTAMENTO"]
[]
[]
[]
["TRABAJO A REALIZAR",null,null,null,null,null,null,null,null,null,null,null,null,null,null,null,null,null,null,null,null,null,"UNIDADES",null,null,null,null,"TRABAJO A REALIZAR",null,null,null,null,null,null,null,null,null,null,null,null,null,null,null,null,null,null,null,null,null,"UNIDADES"]
[]
[]
[]
["DENOMINACION OBRA O PROYECTO",null,null,null,null,null,null,null,null,null,null,null,null,null,null,null,null,null,null,null,null,null,null,null,null,null,null,"DENOMINACION OBRA O PROYECTO"]
[]
[]
[]
["CODIGO",null,null,null,null,null,null,null,null,null,null,null,null,null,null,null,null,null,null,null,null,null,null,null,null,null,null,"CODIGO"]
[]
[]
[]
["FECHA ENTRADA",null,null,null,null,null,null,null,null,null,null,null,null,null,null,"FIRMA",null,null,null,null,null,null,null,null,null,null,null,"FECHA ENTRADA",null,null,null,null,null,null,null,null,null,null,null,null,null,null,"FIRMA"]
[]
[null,null,null,null,null,null,null,null,null,"Nº ",null,{"$f":"L1453+1","v":200032},null,null,null,null,null,null,null,null,null,null,null,null,null,null,null,null,null,null,null,null,null,null,null,null,"Nº ",null,{"$f":"AM1453+1","v":200082}]
[]
[]
[]
[]
[]
[]
[]
[]
[]
[]
["CONCEPTO",null,null,null,null,null,"UNIDADES",null,null,null,null,null,null,null,"CONCEPTO",null,null,null,null,null,null,"UNIDADES",null,null,null,null,null,"CONCEPTO",null,null,null,null,null,"UNIDADES",null,null,null,null,null,null,null,"CONCEPTO",null,null,null,null,null,null,"UNIDADES"]
[]
[]
["NOTAS",null,null,null,null,null,null,null,null,null,null,null,null,null,null,null,null,null,null,null,null,null,null,null,null,null,null,"NOTAS"]
["CADA ORDEN PUEDE CONTENER VARIOS TRABAJOS, PERO UN SOLO CARGO",null,null,null,null,null,null,null,null,null,null,null,null,null,null,null,null,null,null,null,null,null,null,null,null,null,null,"CADA ORDEN PUEDE CONTENER VARIOS TRABAJOS, PERO UN SOLO CARGO"]
["NO RELLENAR LOS ESPACIOS CON FONDO",null,null,null,null,null,null,null,null,null,null,null,null,null,null,null,null,null,null,null,null,null,null,null,null,null,null,"NO RELLENAR LOS ESPACIOS CON FONDO"]
[null,null,null,null,null,null,null,null,null,null,null,null,null,null,null,null,null,null,"FECHA ACABADO",null,null,null,null,null,null,null,null,null,null,null,null,null,null,null,null,null,null,null,null,null,null,null,null,null,null,"FECHA ACABADO"]
["MOD. 106",null,null,null,null,null,null,null,null,null,null,null,null,null,null,null,null,null,null,null,null,null,null,null,null,null,null,"MOD. 106"]
[]
[" ",null,null,null,null,null,null,null,null,null,null,null,null,null,"REPROGRAFIA, S. G. C.",null,null,null,null,null,null,null,null,null,null,null,null,null,null,null,null,null,null,null,null,null,null,null,null,null,null,"REPROGRAFIA, S. G. C."]
[null,null,null,null,null,null,null,null,null,null,null,null,null,null,"ORDEN DE TRABAJO",null,null,null,null,null,null,null,null,null,null,null,null,null,null,null,null,null,null,null,null,null,null,null,null,null,null,"ORDEN DE TRABAJO"]
[]
[]
["PETICIONARIO",null,null,null,null,null,null,null,null,null,null,null,null,null,null,null,null,null,null,null,null,null,null,null,null,null,null,"PETICIONARIO"]
[]
[]
[]
["DEPARTAMENTO",null,null,null,null,null,null,null,null,null,null,null,null,null,null,null,null,null,null,null,null,null,null,null,null,null,null,"DEPARTAMENTO"]
[]
[]
[]
["TRABAJO A REALIZAR",null,null,null,null,null,null,null,null,null,null,null,null,null,null,null,null,null,null,null,null,null,"UNIDADES",null,null,null,null,"TRABAJO A REALIZAR",null,null,null,null,null,null,null,null,null,null,null,null,null,null,null,null,null,null,null,null,null,"UNIDADES"]
[]
[]
[]
["DENOMINACION OBRA O PROYECTO",null,null,null,null,null,null,null,null,null,null,null,null,null,null,null,null,null,null,null,null,null,null,null,null,null,null,"DENOMINACION OBRA O PROYECTO"]
[]
[]
[]
["CODIGO",null,null,null,null,null,null,null,null,null,null,null,null,null,null,null,null,null,null,null,null,null,null,null,null,null,null,"CODIGO"]
[]
[]
[]
["FECHA ENTRADA",null,null,null,null,null,null,null,null,null,null,null,null,null,null,"FIRMA",null,null,null,null,null,null,null,null,null,null,null,"FECHA ENTRADA",null,null,null,null,null,null,null,null,null,null,null,null,null,null,"FIRMA"]
[]
[null,null,null,null,null,null,null,null,null,"Nº ",null,{"$f":"L1499+1","v":200033},null,null,null,null,null,null,null,null,null,null,null,null,null,null,null,null,null,null,null,null,null,null,null,null,"Nº ",null,{"$f":"AM1499+1","v":200083}]
[]
[]
[]
[]
[]
[]
[]
[]
[]
[]
["CONCEPTO",null,null,null,null,null,"UNIDADES",null,null,null,null,null,null,null,"CONCEPTO",null,null,null,null,null,null,"UNIDADES",null,null,null,null,null,"CONCEPTO",null,null,null,null,null,"UNIDADES",null,null,null,null,null,null,null,"CONCEPTO",null,null,null,null,null,null,"UNIDADES"]
[]
[]
["NOTAS",null,null,null,null,null,null,null,null,null,null,null,null,null,null,null,null,null,null,null,null,null,null,null,null,null,null,"NOTAS"]
["CADA ORDEN PUEDE CONTENER VARIOS TRABAJOS, PERO UN SOLO CARGO",null,null,null,null,null,null,null,null,null,null,null,null,null,null,null,null,null,null,null,null,null,null,null,null,null,null,"CADA ORDEN PUEDE CONTENER VARIOS TRABAJOS, PERO UN SOLO CARGO"]
["NO RELLENAR LOS ESPACIOS CON FONDO",null,null,null,null,null,null,null,null,null,null,null,null,null,null,null,null,null,null,null,null,null,null,null,null,null,null,"NO RELLENAR LOS ESPACIOS CON FONDO"]
[null,null,null,null,null,null,null,null,null,null,null,null,null,null,null,null,null,null,"FECHA ACABADO",null,null,null,null,null,null,null,null,null,null,null,null,null,null,null,null,null,null,null,null,null,null,null,null,null,null,"FECHA ACABADO"]
["MOD. 106",null,null,null,null,null,null,null,null,null,null,null,null,null,null,null,null,null,null,null,null,null,null,null,null,null,null,"MOD. 106"]
[]
[" ",null,null,null,null,null,null,null,null,null,null,null,null,null,"REPROGRAFIA, S. G. C.",null,null,null,null,null,null,null,null,null,null,null,null,null,null,null,null,null,null,null,null,null,null,null,null,null,null,"REPROGRAFIA, S. G. C."]
[null,null,null,null,null,null,null,null,null,null,null,null,null,null,"ORDEN DE TRABAJO",null,null,null,null,null,null,null,null,null,null,null,null,null,null,null,null,null,null,null,null,null,null,null,null,null,null,"ORDEN DE TRABAJO"]
[]
[]
["PETICIONARIO",null,null,null,null,null,null,null,null,null,null,null,null,null,null,null,null,null,null,null,null,null,null,null,null,null,null,"PETICIONARIO"]
[]
[]
[]
["DEPARTAMENTO",null,null,null,null,null,null,null,null,null,null,null,null,null,null,null,null,null,null,null,null,null,null,null,null,null,null,"DEPARTAMENTO"]
[]
[]
[]
["TRABAJO A REALIZAR",null,null,null,null,null,null,null,null,null,null,null,null,null,null,null,null,null,null,null,null,null,"UNIDADES",null,null,null,null,"TRABAJO A REALIZAR",null,null,null,null,null,null,null,null,null,null,null,null,null,null,null,null,null,null,null,null,null,"UNIDADES"]
[]
[]
[]
["DENOMINACION OBRA O PROYECTO",null,null,null,null,null,null,null,null,null,null,null,null,null,null,null,null,null,null,null,null,null,null,null,null,null,null,"DENOMINACION OBRA O PROYECTO"]
[]
[]
[]
["CODIGO",null,null,null,null,null,null,null,null,null,null,null,null,null,null,null,null,null,null,null,null,null,null,null,null,null,null,"CODIGO"]
[]
[]
[]
["FECHA ENTRADA",null,null,null,null,null,null,null,null,null,null,null,null,null,null,"FIRMA",null,null,null,null,null,null,null,null,null,null,null,"FECHA ENTRADA",null,null,null,null,null,null,null,null,null,null,null,null,null,null,"FIRMA"]
[]
[null,null,null,null,null,null,null,null,null,"Nº ",null,{"$f":"L1545+1","v":200034},null,null,null,null,null,null,null,null,null,null,null,null,null,null,null,null,null,null,null,null,null,null,null,null,"Nº ",null,{"$f":"AM1545+1","v":200084}]
[]
[]
[]
[]
[]
[]
[]
[]
[]
[]
["CONCEPTO",null,null,null,null,null,"UNIDADES",null,null,null,null,null,null,null,"CONCEPTO",null,null,null,null,null,null,"UNIDADES",null,null,null,null,null,"CONCEPTO",null,null,null,null,null,"UNIDADES",null,null,null,null,null,null,null,"CONCEPTO",null,null,null,null,null,null,"UNIDADES"]
[]
[]
["NOTAS",null,null,null,null,null,null,null,null,null,null,null,null,null,null,null,null,null,null,null,null,null,null,null,null,null,null,"NOTAS"]
["CADA ORDEN PUEDE CONTENER VARIOS TRABAJOS, PERO UN SOLO CARGO",null,null,null,null,null,null,null,null,null,null,null,null,null,null,null,null,null,null,null,null,null,null,null,null,null,null,"CADA ORDEN PUEDE CONTENER VARIOS TRABAJOS, PERO UN SOLO CARGO"]
["NO RELLENAR LOS ESPACIOS CON FONDO",null,null,null,null,null,null,null,null,null,null,null,null,null,null,null,null,null,null,null,null,null,null,null,null,null,null,"NO RELLENAR LOS ESPACIOS CON FONDO"]
[null,null,null,null,null,null,null,null,null,null,null,null,null,null,null,null,null,null,"FECHA ACABADO",null,null,null,null,null,null,null,null,null,null,null,null,null,null,null,null,null,null,null,null,null,null,null,null,null,null,"FECHA ACABADO"]
["MOD. 106",null,null,null,null,null,null,null,null,null,null,null,null,null,null,null,null,null,null,null,null,null,null,null,null,null,null,"MOD. 106"]
[]
[" ",null,null,null,null,null,null,null,null,null,null,null,null,null,"REPROGRAFIA, S. G. C.",null,null,null,null,null,null,null,null,null,null,null,null,null,null,null,null,null,null,null,null,null,null,null,null,null,null,"REPROGRAFIA, S. G. C."]
[null,null,null,null,null,null,null,null,null,null,null,null,null,null,"ORDEN DE TRABAJO",null,null,null,null,null,null,null,null,null,null,null,null,null,null,null,null,null,null,null,null,null,null,null,null,null,null,"ORDEN DE TRABAJO"]
[]
[]
["PETICIONARIO",null,null,null,null,null,null,null,null,null,null,null,null,null,null,null,null,null,null,null,null,null,null,null,null,null,null,"PETICIONARIO"]
[]
[]
[]
["DEPARTAMENTO",null,null,null,null,null,null,null,null,null,null,null,null,null,null,null,null,null,null,null,null,null,null,null,null,null,null,"DEPARTAMENTO"]
[]
[]
[]
["TRABAJO A REALIZAR",null,null,null,null,null,null,null,null,null,null,null,null,null,null,null,null,null,null,null,null,null,"UNIDADES",null,null,null,null,"TRABAJO A REALIZAR",null,null,null,null,null,null,null,null,null,null,null,null,null,null,null,null,null,null,null,null,null,"UNIDADES"]
[]
[]
[]
["DENOMINACION OBRA O PROYECTO",null,null,null,null,null,null,null,null,null,null,null,null,null,null,null,null,null,null,null,null,null,null,null,null,null,null,"DENOMINACION OBRA O PROYECTO"]
[]
[]
[]
["CODIGO",null,null,null,null,null,null,null,null,null,null,null,null,null,null,null,null,null,null,null,null,null,null,null,null,null,null,"CODIGO"]
[]
[]
[]
["FECHA ENTRADA",null,null,null,null,null,null,null,null,null,null,null,null,null,null,"FIRMA",null,null,null,null,null,null,null,null,null,null,null,"FECHA ENTRADA",null,null,null,null,null,null,null,null,null,null,null,null,null,null,"FIRMA"]
[]
[null,null,null,null,null,null,null,null,null,"Nº ",null,{"$f":"L1591+1","v":200035},null,null,null,null,null,null,null,null,null,null,null,null,null,null,null,null,null,null,null,null,null,null,null,null,"Nº ",null,{"$f":"AM1591+1","v":200085}]
[]
[]
[]
[]
[]
[]
[]
[]
[]
[]
["CONCEPTO",null,null,null,null,null,"UNIDADES",null,null,null,null,null,null,null,"CONCEPTO",null,null,null,null,null,null,"UNIDADES",null,null,null,null,null,"CONCEPTO",null,null,null,null,null,"UNIDADES",null,null,null,null,null,null,null,"CONCEPTO",null,null,null,null,null,null,"UNIDADES"]
[]
[]
["NOTAS",null,null,null,null,null,null,null,null,null,null,null,null,null,null,null,null,null,null,null,null,null,null,null,null,null,null,"NOTAS"]
["CADA ORDEN PUEDE CONTENER VARIOS TRABAJOS, PERO UN SOLO CARGO",null,null,null,null,null,null,null,null,null,null,null,null,null,null,null,null,null,null,null,null,null,null,null,null,null,null,"CADA ORDEN PUEDE CONTENER VARIOS TRABAJOS, PERO UN SOLO CARGO"]
["NO RELLENAR LOS ESPACIOS CON FONDO",null,null,null,null,null,null,null,null,null,null,null,null,null,null,null,null,null,null,null,null,null,null,null,null,null,null,"NO RELLENAR LOS ESPACIOS CON FONDO"]
[null,null,null,null,null,null,null,null,null,null,null,null,null,null,null,null,null,null,"FECHA ACABADO",null,null,null,null,null,null,null,null,null,null,null,null,null,null,null,null,null,null,null,null,null,null,null,null,null,null,"FECHA ACABADO"]
["MOD. 106",null,null,null,null,null,null,null,null,null,null,null,null,null,null,null,null,null,null,null,null,null,null,null,null,null,null,"MOD. 106"]
[]
[" ",null,null,null,null,null,null,null,null,null,null,null,null,null,"REPROGRAFIA, S. G. C.",null,null,null,null,null,null,null,null,null,null,null,null,null,null,null,null,null,null,null,null,null,null,null,null,null,null,"REPROGRAFIA, S. G. C."]
[null,null,null,null,null,null,null,null,null,null,null,null,null,null,"ORDEN DE TRABAJO",null,null,null,null,null,null,null,null,null,null,null,null,null,null,null,null,null,null,null,null,null,null,null,null,null,null,"ORDEN DE TRABAJO"]
[]
[]
["PETICIONARIO",null,null,null,null,null,null,null,null,null,null,null,null,null,null,null,null,null,null,null,null,null,null,null,null,null,null,"PETICIONARIO"]
[]
[]
[]
["DEPARTAMENTO",null,null,null,null,null,null,null,null,null,null,null,null,null,null,null,null,null,null,null,null,null,null,null,null,null,null,"DEPARTAMENTO"]
[]
[]
[]
["TRABAJO A REALIZAR",null,null,null,null,null,null,null,null,null,null,null,null,null,null,null,null,null,null,null,null,null,"UNIDADES",null,null,null,null,"TRABAJO A REALIZAR",null,null,null,null,null,null,null,null,null,null,null,null,null,null,null,null,null,null,null,null,null,"UNIDADES"]
[]
[]
[]
["DENOMINACION OBRA O PROYECTO",null,null,null,null,null,null,null,null,null,null,null,null,null,null,null,null,null,null,null,null,null,null,null,null,null,null,"DENOMINACION OBRA O PROYECTO"]
[]
[]
[]
["CODIGO",null,null,null,null,null,null,null,null,null,null,null,null,null,null,null,null,null,null,null,null,null,null,null,null,null,null,"CODIGO"]
[]
[]
[]
["FECHA ENTRADA",null,null,null,null,null,null,null,null,null,null,null,null,null,null,"FIRMA",null,null,null,null,null,null,null,null,null,null,null,"FECHA ENTRADA",null,null,null,null,null,null,null,null,null,null,null,null,null,null,"FIRMA"]
[]
[null,null,null,null,null,null,null,null,null,"Nº ",null,{"$f":"L1637+1","v":200036},null,null,null,null,null,null,null,null,null,null,null,null,null,null,null,null,null,null,null,null,null,null,null,null,"Nº ",null,{"$f":"AM1637+1","v":200086}]
[]
[]
[]
[]
[]
[]
[]
[]
[]
[]
["CONCEPTO",null,null,null,null,null,"UNIDADES",null,null,null,null,null,null,null,"CONCEPTO",null,null,null,null,null,null,"UNIDADES",null,null,null,null,null,"CONCEPTO",null,null,null,null,null,"UNIDADES",null,null,null,null,null,null,null,"CONCEPTO",null,null,null,null,null,null,"UNIDADES"]
[]
[]
["NOTAS",null,null,null,null,null,null,null,null,null,null,null,null,null,null,null,null,null,null,null,null,null,null,null,null,null,null,"NOTAS"]
["CADA ORDEN PUEDE CONTENER VARIOS TRABAJOS, PERO UN SOLO CARGO",null,null,null,null,null,null,null,null,null,null,null,null,null,null,null,null,null,null,null,null,null,null,null,null,null,null,"CADA ORDEN PUEDE CONTENER VARIOS TRABAJOS, PERO UN SOLO CARGO"]
["NO RELLENAR LOS ESPACIOS CON FONDO",null,null,null,null,null,null,null,null,null,null,null,null,null,null,null,null,null,null,null,null,null,null,null,null,null,null,"NO RELLENAR LOS ESPACIOS CON FONDO"]
[null,null,null,null,null,null,null,null,null,null,null,null,null,null,null,null,null,null,"FECHA ACABADO",null,null,null,null,null,null,null,null,null,null,null,null,null,null,null,null,null,null,null,null,null,null,null,null,null,null,"FECHA ACABADO"]
["MOD. 106",null,null,null,null,null,null,null,null,null,null,null,null,null,null,null,null,null,null,null,null,null,null,null,null,null,null,"MOD. 106"]
[]
[" ",null,null,null,null,null,null,null,null,null,null,null,null,null,"REPROGRAFIA, S. G. C.",null,null,null,null,null,null,null,null,null,null,null,null,null,null,null,null,null,null,null,null,null,null,null,null,null,null,"REPROGRAFIA, S. G. C."]
[null,null,null,null,null,null,null,null,null,null,null,null,null,null,"ORDEN DE TRABAJO",null,null,null,null,null,null,null,null,null,null,null,null,null,null,null,null,null,null,null,null,null,null,null,null,null,null,"ORDEN DE TRABAJO"]
[]
[]
["PETICIONARIO",null,null,null,null,null,null,null,null,null,null,null,null,null,null,null,null,null,null,null,null,null,null,null,null,null,null,"PETICIONARIO"]
[]
[]
[]
["DEPARTAMENTO",null,null,null,null,null,null,null,null,null,null,null,null,null,null,null,null,null,null,null,null,null,null,null,null,null,null,"DEPARTAMENTO"]
[]
[]
[]
["TRABAJO A REALIZAR",null,null,null,null,null,null,null,null,null,null,null,null,null,null,null,null,null,null,null,null,null,"UNIDADES",null,null,null,null,"TRABAJO A REALIZAR",null,null,null,null,null,null,null,null,null,null,null,null,null,null,null,null,null,null,null,null,null,"UNIDADES"]
[]
[]
[]
["DENOMINACION OBRA O PROYECTO",null,null,null,null,null,null,null,null,null,null,null,null,null,null,null,null,null,null,null,null,null,null,null,null,null,null,"DENOMINACION OBRA O PROYECTO"]
[]
[]
[]
["CODIGO",null,null,null,null,null,null,null,null,null,null,null,null,null,null,null,null,null,null,null,null,null,null,null,null,null,null,"CODIGO"]
[]
[]
[]
["FECHA ENTRADA",null,null,null,null,null,null,null,null,null,null,null,null,null,null,"FIRMA",null,null,null,null,null,null,null,null,null,null,null,"FECHA ENTRADA",null,null,null,null,null,null,null,null,null,null,null,null,null,null,"FIRMA"]
[]
[null,null,null,null,null,null,null,null,null,"Nº ",null,{"$f":"L1683+1","v":200037},null,null,null,null,null,null,null,null,null,null,null,null,null,null,null,null,null,null,null,null,null,null,null,null,"Nº ",null,{"$f":"AM1683+1","v":200087}]
[]
[]
[]
[]
[]
[]
[]
[]
[]
[]
["CONCEPTO",null,null,null,null,null,"UNIDADES",null,null,null,null,null,null,null,"CONCEPTO",null,null,null,null,null,null,"UNIDADES",null,null,null,null,null,"CONCEPTO",null,null,null,null,null,"UNIDADES",null,null,null,null,null,null,null,"CONCEPTO",null,null,null,null,null,null,"UNIDADES"]
[]
[]
["NOTAS",null,null,null,null,null,null,null,null,null,null,null,null,null,null,null,null,null,null,null,null,null,null,null,null,null,null,"NOTAS"]
["CADA ORDEN PUEDE CONTENER VARIOS TRABAJOS, PERO UN SOLO CARGO",null,null,null,null,null,null,null,null,null,null,null,null,null,null,null,null,null,null,null,null,null,null,null,null,null,null,"CADA ORDEN PUEDE CONTENER VARIOS TRABAJOS, PERO UN SOLO CARGO"]
["NO RELLENAR LOS ESPACIOS CON FONDO",null,null,null,null,null,null,null,null,null,null,null,null,null,null,null,null,null,null,null,null,null,null,null,null,null,null,"NO RELLENAR LOS ESPACIOS CON FONDO"]
[null,null,null,null,null,null,null,null,null,null,null,null,null,null,null,null,null,null,"FECHA ACABADO",null,null,null,null,null,null,null,null,null,null,null,null,null,null,null,null,null,null,null,null,null,null,null,null,null,null,"FECHA ACABADO"]
["MOD. 106",null,null,null,null,null,null,null,null,null,null,null,null,null,null,null,null,null,null,null,null,null,null,null,null,null,null,"MOD. 106"]
[]
[" ",null,null,null,null,null,null,null,null,null,null,null,null,null,"REPROGRAFIA, S. G. C.",null,null,null,null,null,null,null,null,null,null,null,null,null,null,null,null,null,null,null,null,null,null,null,null,null,null,"REPROGRAFIA, S. G. C."]
[null,null,null,null,null,null,null,null,null,null,null,null,null,null,"ORDEN DE TRABAJO",null,null,null,null,null,null,null,null,null,null,null,null,null,null,null,null,null,null,null,null,null,null,null,null,null,null,"ORDEN DE TRABAJO"]
[]
[]
["PETICIONARIO",null,null,null,null,null,null,null,null,null,null,null,null,null,null,null,null,null,null,null,null,null,null,null,null,null,null,"PETICIONARIO"]
[]
[]
[]
["DEPARTAMENTO",null,null,null,null,null,null,null,null,null,null,null,null,null,null,null,null,null,null,null,null,null,null,null,null,null,null,"DEPARTAMENTO"]
[]
[]
[]
["TRABAJO A REALIZAR",null,null,null,null,null,null,null,null,null,null,null,null,null,null,null,null,null,null,null,null,null,"UNIDADES",null,null,null,null,"TRABAJO A REALIZAR",null,null,null,null,null,null,null,null,null,null,null,null,null,null,null,null,null,null,null,null,null,"UNIDADES"]
[]
[]
[]
["DENOMINACION OBRA O PROYECTO",null,null,null,null,null,null,null,null,null,null,null,null,null,null,null,null,null,null,null,null,null,null,null,null,null,null,"DENOMINACION OBRA O PROYECTO"]
[]
[]
[]
["CODIGO",null,null,null,null,null,null,null,null,null,null,null,null,null,null,null,null,null,null,null,null,null,null,null,null,null,null,"CODIGO"]
[]
[]
[]
["FECHA ENTRADA",null,null,null,null,null,null,null,null,null,null,null,null,null,null,"FIRMA",null,null,null,null,null,null,null,null,null,null,null,"FECHA ENTRADA",null,null,null,null,null,null,null,null,null,null,null,null,null,null,"FIRMA"]
[]
[null,null,null,null,null,null,null,null,null,"Nº ",null,{"$f":"L1729+1","v":200038},null,null,null,null,null,null,null,null,null,null,null,null,null,null,null,null,null,null,null,null,null,null,null,null,"Nº ",null,{"$f":"AM1729+1","v":200088}]
[]
[]
[]
[]
[]
[]
[]
[]
[]
[]
["CONCEPTO",null,null,null,null,null,"UNIDADES",null,null,null,null,null,null,null,"CONCEPTO",null,null,null,null,null,null,"UNIDADES",null,null,null,null,null,"CONCEPTO",null,null,null,null,null,"UNIDADES",null,null,null,null,null,null,null,"CONCEPTO",null,null,null,null,null,null,"UNIDADES"]
[]
[]
["NOTAS",null,null,null,null,null,null,null,null,null,null,null,null,null,null,null,null,null,null,null,null,null,null,null,null,null,null,"NOTAS"]
["CADA ORDEN PUEDE CONTENER VARIOS TRABAJOS, PERO UN SOLO CARGO",null,null,null,null,null,null,null,null,null,null,null,null,null,null,null,null,null,null,null,null,null,null,null,null,null,null,"CADA ORDEN PUEDE CONTENER VARIOS TRABAJOS, PERO UN SOLO CARGO"]
["NO RELLENAR LOS ESPACIOS CON FONDO",null,null,null,null,null,null,null,null,null,null,null,null,null,null,null,null,null,null,null,null,null,null,null,null,null,null,"NO RELLENAR LOS ESPACIOS CON FONDO"]
[null,null,null,null,null,null,null,null,null,null,null,null,null,null,null,null,null,null,"FECHA ACABADO",null,null,null,null,null,null,null,null,null,null,null,null,null,null,null,null,null,null,null,null,null,null,null,null,null,null,"FECHA ACABADO"]
["MOD. 106",null,null,null,null,null,null,null,null,null,null,null,null,null,null,null,null,null,null,null,null,null,null,null,null,null,null,"MOD. 106"]
[]
[" ",null,null,null,null,null,null,null,null,null,null,null,null,null,"REPROGRAFIA, S. G. C.",null,null,null,null,null,null,null,null,null,null,null,null,null,null,null,null,null,null,null,null,null,null,null,null,null,null,"REPROGRAFIA, S. G. C."]
[null,null,null,null,null,null,null,null,null,null,null,null,null,null,"ORDEN DE TRABAJO",null,null,null,null,null,null,null,null,null,null,null,null,null,null,null,null,null,null,null,null,null,null,null,null,null,null,"ORDEN DE TRABAJO"]
[]
[]
["PETICIONARIO",null,null,null,null,null,null,null,null,null,null,null,null,null,null,null,null,null,null,null,null,null,null,null,null,null,null,"PETICIONARIO"]
[]
[]
[]
["DEPARTAMENTO",null,null,null,null,null,null,null,null,null,null,null,null,null,null,null,null,null,null,null,null,null,null,null,null,null,null,"DEPARTAMENTO"]
[]
[]
[]
["TRABAJO A REALIZAR",null,null,null,null,null,null,null,null,null,null,null,null,null,null,null,null,null,null,null,null,null,"UNIDADES",null,null,null,null,"TRABAJO A REALIZAR",null,null,null,null,null,null,null,null,null,null,null,null,null,null,null,null,null,null,null,null,null,"UNIDADES"]
[]
[]
[]
["DENOMINACION OBRA O PROYECTO",null,null,null,null,null,null,null,null,null,null,null,null,null,null,null,null,null,null,null,null,null,null,null,null,null,null,"DENOMINACION OBRA O PROYECTO"]
[]
[]
[]
["CODIGO",null,null,null,null,null,null,null,null,null,null,null,null,null,null,null,null,null,null,null,null,null,null,null,null,null,null,"CODIGO"]
[]
[]
[]
["FECHA ENTRADA",null,null,null,null,null,null,null,null,null,null,null,null,null,null,"FIRMA",null,null,null,null,null,null,null,null,null,null,null,"FECHA ENTRADA",null,null,null,null,null,null,null,null,null,null,null,null,null,null,"FIRMA"]
[]
[null,null,null,null,null,null,null,null,null,"Nº ",null,{"$f":"L1775+1","v":200039},null,null,null,null,null,null,null,null,null,null,null,null,null,null,null,null,null,null,null,null,null,null,null,null,"Nº ",null,{"$f":"AM1775+1","v":200089}]
[]
[]
[]
[]
[]
[]
[]
[]
[]
[]
["CONCEPTO",null,null,null,null,null,"UNIDADES",null,null,null,null,null,null,null,"CONCEPTO",null,null,null,null,null,null,"UNIDADES",null,null,null,null,null,"CONCEPTO",null,null,null,null,null,"UNIDADES",null,null,null,null,null,null,null,"CONCEPTO",null,null,null,null,null,null,"UNIDADES"]
[]
[]
["NOTAS",null,null,null,null,null,null,null,null,null,null,null,null,null,null,null,null,null,null,null,null,null,null,null,null,null,null,"NOTAS"]
["CADA ORDEN PUEDE CONTENER VARIOS TRABAJOS, PERO UN SOLO CARGO",null,null,null,null,null,null,null,null,null,null,null,null,null,null,null,null,null,null,null,null,null,null,null,null,null,null,"CADA ORDEN PUEDE CONTENER VARIOS TRABAJOS, PERO UN SOLO CARGO"]
["NO RELLENAR LOS ESPACIOS CON FONDO",null,null,null,null,null,null,null,null,null,null,null,null,null,null,null,null,null,null,null,null,null,null,null,null,null,null,"NO RELLENAR LOS ESPACIOS CON FONDO"]
[null,null,null,null,null,null,null,null,null,null,null,null,null,null,null,null,null,null,"FECHA ACABADO",null,null,null,null,null,null,null,null,null,null,null,null,null,null,null,null,null,null,null,null,null,null,null,null,null,null,"FECHA ACABADO"]
["MOD. 106",null,null,null,null,null,null,null,null,null,null,null,null,null,null,null,null,null,null,null,null,null,null,null,null,null,null,"MOD. 106"]
[]
[" ",null,null,null,null,null,null,null,null,null,null,null,null,null,"REPROGRAFIA, S. G. C.",null,null,null,null,null,null,null,null,null,null,null,null,null,null,null,null,null,null,null,null,null,null,null,null,null,null,"REPROGRAFIA, S. G. C."]
[null,null,null,null,null,null,null,null,null,null,null,null,null,null,"ORDEN DE TRABAJO",null,null,null,null,null,null,null,null,null,null,null,null,null,null,null,null,null,null,null,null,null,null,null,null,null,null,"ORDEN DE TRABAJO"]
[]
[]
["PETICIONARIO",null,null,null,null,null,null,null,null,null,null,null,null,null,null,null,null,null,null,null,null,null,null,null,null,null,null,"PETICIONARIO"]
[]
[]
[]
["DEPARTAMENTO",null,null,null,null,null,null,null,null,null,null,null,null,null,null,null,null,null,null,null,null,null,null,null,null,null,null,"DEPARTAMENTO"]
[]
[]
[]
["TRABAJO A REALIZAR",null,null,null,null,null,null,null,null,null,null,null,null,null,null,null,null,null,null,null,null,null,"UNIDADES",null,null,null,null,"TRABAJO A REALIZAR",null,null,null,null,null,null,null,null,null,null,null,null,null,null,null,null,null,null,null,null,null,"UNIDADES"]
[]
[]
[]
["DENOMINACION OBRA O PROYECTO",null,null,null,null,null,null,null,null,null,null,null,null,null,null,null,null,null,null,null,null,null,null,null,null,null,null,"DENOMINACION OBRA O PROYECTO"]
[]
[]
[]
["CODIGO",null,null,null,null,null,null,null,null,null,null,null,null,null,null,null,null,null,null,null,null,null,null,null,null,null,null,"CODIGO"]
[]
[]
[]
["FECHA ENTRADA",null,null,null,null,null,null,null,null,null,null,null,null,null,null,"FIRMA",null,null,null,null,null,null,null,null,null,null,null,"FECHA ENTRADA",null,null,null,null,null,null,null,null,null,null,null,null,null,null,"FIRMA"]
[]
[null,null,null,null,null,null,null,null,null,"Nº ",null,{"$f":"L1821+1","v":200040},null,null,null,null,null,null,null,null,null,null,null,null,null,null,null,null,null,null,null,null,null,null,null,null,"Nº ",null,{"$f":"AM1821+1","v":200090}]
[]
[]
[]
[]
[]
[]
[]
[]
[]
[]
["CONCEPTO",null,null,null,null,null,"UNIDADES",null,null,null,null,null,null,null,"CONCEPTO",null,null,null,null,null,null,"UNIDADES",null,null,null,null,null,"CONCEPTO",null,null,null,null,null,"UNIDADES",null,null,null,null,null,null,null,"CONCEPTO",null,null,null,null,null,null,"UNIDADES"]
[]
[]
["NOTAS",null,null,null,null,null,null,null,null,null,null,null,null,null,null,null,null,null,null,null,null,null,null,null,null,null,null,"NOTAS"]
["CADA ORDEN PUEDE CONTENER VARIOS TRABAJOS, PERO UN SOLO CARGO",null,null,null,null,null,null,null,null,null,null,null,null,null,null,null,null,null,null,null,null,null,null,null,null,null,null,"CADA ORDEN PUEDE CONTENER VARIOS TRABAJOS, PERO UN SOLO CARGO"]
["NO RELLENAR LOS ESPACIOS CON FONDO",null,null,null,null,null,null,null,null,null,null,null,null,null,null,null,null,null,null,null,null,null,null,null,null,null,null,"NO RELLENAR LOS ESPACIOS CON FONDO"]
[null,null,null,null,null,null,null,null,null,null,null,null,null,null,null,null,null,null,"FECHA ACABADO",null,null,null,null,null,null,null,null,null,null,null,null,null,null,null,null,null,null,null,null,null,null,null,null,null,null,"FECHA ACABADO"]
["MOD. 106",null,null,null,null,null,null,null,null,null,null,null,null,null,null,null,null,null,null,null,null,null,null,null,null,null,null,"MOD. 106"]
[]
[" ",null,null,null,null,null,null,null,null,null,null,null,null,null,"REPROGRAFIA, S. G. C.",null,null,null,null,null,null,null,null,null,null,null,null,null,null,null,null,null,null,null,null,null,null,null,null,null,null,"REPROGRAFIA, S. G. C."]
[null,null,null,null,null,null,null,null,null,null,null,null,null,null,"ORDEN DE TRABAJO",null,null,null,null,null,null,null,null,null,null,null,null,null,null,null,null,null,null,null,null,null,null,null,null,null,null,"ORDEN DE TRABAJO"]
[]
[]
["PETICIONARIO",null,null,null,null,null,null,null,null,null,null,null,null,null,null,null,null,null,null,null,null,null,null,null,null,null,null,"PETICIONARIO"]
[]
[]
[]
["DEPARTAMENTO",null,null,null,null,null,null,null,null,null,null,null,null,null,null,null,null,null,null,null,null,null,null,null,null,null,null,"DEPARTAMENTO"]
[]
[]
[]
["TRABAJO A REALIZAR",null,null,null,null,null,null,null,null,null,null,null,null,null,null,null,null,null,null,null,null,null,"UNIDADES",null,null,null,null,"TRABAJO A REALIZAR",null,null,null,null,null,null,null,null,null,null,null,null,null,null,null,null,null,null,null,null,null,"UNIDADES"]
[]
[]
[]
["DENOMINACION OBRA O PROYECTO",null,null,null,null,null,null,null,null,null,null,null,null,null,null,null,null,null,null,null,null,null,null,null,null,null,null,"DENOMINACION OBRA O PROYECTO"]
[]
[]
[]
["CODIGO",null,null,null,null,null,null,null,null,null,null,null,null,null,null,null,null,null,null,null,null,null,null,null,null,null,null,"CODIGO"]
[]
[]
[]
["FECHA ENTRADA",null,null,null,null,null,null,null,null,null,null,null,null,null,null,"FIRMA",null,null,null,null,null,null,null,null,null,null,null,"FECHA ENTRADA",null,null,null,null,null,null,null,null,null,null,null,null,null,null,"FIRMA"]
[]
[null,null,null,null,null,null,null,null,null,"Nº ",null,{"$f":"L1867+1","v":200041},null,null,null,null,null,null,null,null,null,null,null,null,null,null,null,null,null,null,null,null,null,null,null,null,"Nº ",null,{"$f":"AM1867+1","v":200091}]
[]
[]
[]
[]
[]
[]
[]
[]
[]
[]
["CONCEPTO",null,null,null,null,null,"UNIDADES",null,null,null,null,null,null,null,"CONCEPTO",null,null,null,null,null,null,"UNIDADES",null,null,null,null,null,"CONCEPTO",null,null,null,null,null,"UNIDADES",null,null,null,null,null,null,null,"CONCEPTO",null,null,null,null,null,null,"UNIDADES"]
[]
[]
["NOTAS",null,null,null,null,null,null,null,null,null,null,null,null,null,null,null,null,null,null,null,null,null,null,null,null,null,null,"NOTAS"]
["CADA ORDEN PUEDE CONTENER VARIOS TRABAJOS, PERO UN SOLO CARGO",null,null,null,null,null,null,null,null,null,null,null,null,null,null,null,null,null,null,null,null,null,null,null,null,null,null,"CADA ORDEN PUEDE CONTENER VARIOS TRABAJOS, PERO UN SOLO CARGO"]
["NO RELLENAR LOS ESPACIOS CON FONDO",null,null,null,null,null,null,null,null,null,null,null,null,null,null,null,null,null,null,null,null,null,null,null,null,null,null,"NO RELLENAR LOS ESPACIOS CON FONDO"]
[null,null,null,null,null,null,null,null,null,null,null,null,null,null,null,null,null,null,"FECHA ACABADO",null,null,null,null,null,null,null,null,null,null,null,null,null,null,null,null,null,null,null,null,null,null,null,null,null,null,"FECHA ACABADO"]
["MOD. 106",null,null,null,null,null,null,null,null,null,null,null,null,null,null,null,null,null,null,null,null,null,null,null,null,null,null,"MOD. 106"]
[]
[" ",null,null,null,null,null,null,null,null,null,null,null,null,null,"REPROGRAFIA, S. G. C.",null,null,null,null,null,null,null,null,null,null,null,null,null,null,null,null,null,null,null,null,null,null,null,null,null,null,"REPROGRAFIA, S. G. C."]
[null,null,null,null,null,null,null,null,null,null,null,null,null,null,"ORDEN DE TRABAJO",null,null,null,null,null,null,null,null,null,null,null,null,null,null,null,null,null,null,null,null,null,null,null,null,null,null,"ORDEN DE TRABAJO"]
[]
[]
["PETICIONARIO",null,null,null,null,null,null,null,null,null,null,null,null,null,null,null,null,null,null,null,null,null,null,null,null,null,null,"PETICIONARIO"]
[]
[]
[]
["DEPARTAMENTO",null,null,null,null,null,null,null,null,null,null,null,null,null,null,null,null,null,null,null,null,null,null,null,null,null,null,"DEPARTAMENTO"]
[]
[]
[]
["TRABAJO A REALIZAR",null,null,null,null,null,null,null,null,null,null,null,null,null,null,null,null,null,null,null,null,null,"UNIDADES",null,null,null,null,"TRABAJO A REALIZAR",null,null,null,null,null,null,null,null,null,null,null,null,null,null,null,null,null,null,null,null,null,"UNIDADES"]
[]
[]
[]
["DENOMINACION OBRA O PROYECTO",null,null,null,null,null,null,null,null,null,null,null,null,null,null,null,null,null,null,null,null,null,null,null,null,null,null,"DENOMINACION OBRA O PROYECTO"]
[]
[]
[]
["CODIGO",null,null,null,null,null,null,null,null,null,null,null,null,null,null,null,null,null,null,null,null,null,null,null,null,null,null,"CODIGO"]
[]
[]
[]
["FECHA ENTRADA",null,null,null,null,null,null,null,null,null,null,null,null,null,null,"FIRMA",null,null,null,null,null,null,null,null,null,null,null,"FECHA ENTRADA",null,null,null,null,null,null,null,null,null,null,null,null,null,null,"FIRMA"]
[]
[null,null,null,null,null,null,null,null,null,"Nº ",null,{"$f":"L1913+1","v":200042},null,null,null,null,null,null,null,null,null,null,null,null,null,null,null,null,null,null,null,null,null,null,null,null,"Nº ",null,{"$f":"AM1913+1","v":200092}]
[]
[]
[]
[]
[]
[]
[]
[]
[]
[]
["CONCEPTO",null,null,null,null,null,"UNIDADES",null,null,null,null,null,null,null,"CONCEPTO",null,null,null,null,null,null,"UNIDADES",null,null,null,null,null,"CONCEPTO",null,null,null,null,null,"UNIDADES",null,null,null,null,null,null,null,"CONCEPTO",null,null,null,null,null,null,"UNIDADES"]
[]
[]
["NOTAS",null,null,null,null,null,null,null,null,null,null,null,null,null,null,null,null,null,null,null,null,null,null,null,null,null,null,"NOTAS"]
["CADA ORDEN PUEDE CONTENER VARIOS TRABAJOS, PERO UN SOLO CARGO",null,null,null,null,null,null,null,null,null,null,null,null,null,null,null,null,null,null,null,null,null,null,null,null,null,null,"CADA ORDEN PUEDE CONTENER VARIOS TRABAJOS, PERO UN SOLO CARGO"]
["NO RELLENAR LOS ESPACIOS CON FONDO",null,null,null,null,null,null,null,null,null,null,null,null,null,null,null,null,null,null,null,null,null,null,null,null,null,null,"NO RELLENAR LOS ESPACIOS CON FONDO"]
[null,null,null,null,null,null,null,null,null,null,null,null,null,null,null,null,null,null,"FECHA ACABADO",null,null,null,null,null,null,null,null,null,null,null,null,null,null,null,null,null,null,null,null,null,null,null,null,null,null,"FECHA ACABADO"]
["MOD. 106",null,null,null,null,null,null,null,null,null,null,null,null,null,null,null,null,null,null,null,null,null,null,null,null,null,null,"MOD. 106"]
[]
[" ",null,null,null,null,null,null,null,null,null,null,null,null,null,"REPROGRAFIA, S. G. C.",null,null,null,null,null,null,null,null,null,null,null,null,null,null,null,null,null,null,null,null,null,null,null,null,null,null,"REPROGRAFIA, S. G. C."]
[null,null,null,null,null,null,null,null,null,null,null,null,null,null,"ORDEN DE TRABAJO",null,null,null,null,null,null,null,null,null,null,null,null,null,null,null,null,null,null,null,null,null,null,null,null,null,null,"ORDEN DE TRABAJO"]
[]
[]
["PETICIONARIO",null,null,null,null,null,null,null,null,null,null,null,null,null,null,null,null,null,null,null,null,null,null,null,null,null,null,"PETICIONARIO"]
[]
[]
[]
["DEPARTAMENTO",null,null,null,null,null,null,null,null,null,null,null,null,null,null,null,null,null,null,null,null,null,null,null,null,null,null,"DEPARTAMENTO"]
[]
[]
[]
["TRABAJO A REALIZAR",null,null,null,null,null,null,null,null,null,null,null,null,null,null,null,null,null,null,null,null,null,"UNIDADES",null,null,null,null,"TRABAJO A REALIZAR",null,null,null,null,null,null,null,null,null,null,null,null,null,null,null,null,null,null,null,null,null,"UNIDADES"]
[]
[]
[]
["DENOMINACION OBRA O PROYECTO",null,null,null,null,null,null,null,null,null,null,null,null,null,null,null,null,null,null,null,null,null,null,null,null,null,null,"DENOMINACION OBRA O PROYECTO"]
[]
[]
[]
["CODIGO",null,null,null,null,null,null,null,null,null,null,null,null,null,null,null,null,null,null,null,null,null,null,null,null,null,null,"CODIGO"]
[]
[]
[]
["FECHA ENTRADA",null,null,null,null,null,null,null,null,null,null,null,null,null,null,"FIRMA",null,null,null,null,null,null,null,null,null,null,null,"FECHA ENTRADA",null,null,null,null,null,null,null,null,null,null,null,null,null,null,"FIRMA"]
[]
[null,null,null,null,null,null,null,null,null,"Nº ",null,{"$f":"L1959+1","v":200043},null,null,null,null,null,null,null,null,null,null,null,null,null,null,null,null,null,null,null,null,null,null,null,null,"Nº ",null,{"$f":"AM1959+1","v":200093}]
[]
[]
[]
[]
[]
[]
[]
[]
[]
[]
["CONCEPTO",null,null,null,null,null,"UNIDADES",null,null,null,null,null,null,null,"CONCEPTO",null,null,null,null,null,null,"UNIDADES",null,null,null,null,null,"CONCEPTO",null,null,null,null,null,"UNIDADES",null,null,null,null,null,null,null,"CONCEPTO",null,null,null,null,null,null,"UNIDADES"]
[]
[]
["NOTAS",null,null,null,null,null,null,null,null,null,null,null,null,null,null,null,null,null,null,null,null,null,null,null,null,null,null,"NOTAS"]
["CADA ORDEN PUEDE CONTENER VARIOS TRABAJOS, PERO UN SOLO CARGO",null,null,null,null,null,null,null,null,null,null,null,null,null,null,null,null,null,null,null,null,null,null,null,null,null,null,"CADA ORDEN PUEDE CONTENER VARIOS TRABAJOS, PERO UN SOLO CARGO"]
["NO RELLENAR LOS ESPACIOS CON FONDO",null,null,null,null,null,null,null,null,null,null,null,null,null,null,null,null,null,null,null,null,null,null,null,null,null,null,"NO RELLENAR LOS ESPACIOS CON FONDO"]
[null,null,null,null,null,null,null,null,null,null,null,null,null,null,null,null,null,null,"FECHA ACABADO",null,null,null,null,null,null,null,null,null,null,null,null,null,null,null,null,null,null,null,null,null,null,null,null,null,null,"FECHA ACABADO"]
["MOD. 106",null,null,null,null,null,null,null,null,null,null,null,null,null,null,null,null,null,null,null,null,null,null,null,null,null,null,"MOD. 106"]
[]
[" ",null,null,null,null,null,null,null,null,null,null,null,null,null,"REPROGRAFIA, S. G. C.",null,null,null,null,null,null,null,null,null,null,null,null,null,null,null,null,null,null,null,null,null,null,null,null,null,null,"REPROGRAFIA, S. G. C."]
[null,null,null,null,null,null,null,null,null,null,null,null,null,null,"ORDEN DE TRABAJO",null,null,null,null,null,null,null,null,null,null,null,null,null,null,null,null,null,null,null,null,null,null,null,null,null,null,"ORDEN DE TRABAJO"]
[]
[]
["PETICIONARIO",null,null,null,null,null,null,null,null,null,null,null,null,null,null,null,null,null,null,null,null,null,null,null,null,null,null,"PETICIONARIO"]
[]
[]
[]
["DEPARTAMENTO",null,null,null,null,null,null,null,null,null,null,null,null,null,null,null,null,null,null,null,null,null,null,null,null,null,null,"DEPARTAMENTO"]
[]
[]
[]
["TRABAJO A REALIZAR",null,null,null,null,null,null,null,null,null,null,null,null,null,null,null,null,null,null,null,null,null,"UNIDADES",null,null,null,null,"TRABAJO A REALIZAR",null,null,null,null,null,null,null,null,null,null,null,null,null,null,null,null,null,null,null,null,null,"UNIDADES"]
[]
[]
[]
["DENOMINACION OBRA O PROYECTO",null,null,null,null,null,null,null,null,null,null,null,null,null,null,null,null,null,null,null,null,null,null,null,null,null,null,"DENOMINACION OBRA O PROYECTO"]
[]
[]
[]
["CODIGO",null,null,null,null,null,null,null,null,null,null,null,null,null,null,null,null,null,null,null,null,null,null,null,null,null,null,"CODIGO"]
[]
[]
[]
["FECHA ENTRADA",null,null,null,null,null,null,null,null,null,null,null,null,null,null,"FIRMA",null,null,null,null,null,null,null,null,null,null,null,"FECHA ENTRADA",null,null,null,null,null,null,null,null,null,null,null,null,null,null,"FIRMA"]
[]
[null,null,null,null,null,null,null,null,null,"Nº ",null,{"$f":"L2005+1","v":200044},null,null,null,null,null,null,null,null,null,null,null,null,null,null,null,null,null,null,null,null,null,null,null,null,"Nº ",null,{"$f":"AM2005+1","v":200094}]
[]
[]
[]
[]
[]
[]
[]
[]
[]
[]
["CONCEPTO",null,null,null,null,null,"UNIDADES",null,null,null,null,null,null,null,"CONCEPTO",null,null,null,null,null,null,"UNIDADES",null,null,null,null,null,"CONCEPTO",null,null,null,null,null,"UNIDADES",null,null,null,null,null,null,null,"CONCEPTO",null,null,null,null,null,null,"UNIDADES"]
[]
[]
["NOTAS",null,null,null,null,null,null,null,null,null,null,null,null,null,null,null,null,null,null,null,null,null,null,null,null,null,null,"NOTAS"]
["CADA ORDEN PUEDE CONTENER VARIOS TRABAJOS, PERO UN SOLO CARGO",null,null,null,null,null,null,null,null,null,null,null,null,null,null,null,null,null,null,null,null,null,null,null,null,null,null,"CADA ORDEN PUEDE CONTENER VARIOS TRABAJOS, PERO UN SOLO CARGO"]
["NO RELLENAR LOS ESPACIOS CON FONDO",null,null,null,null,null,null,null,null,null,null,null,null,null,null,null,null,null,null,null,null,null,null,null,null,null,null,"NO RELLENAR LOS ESPACIOS CON FONDO"]
[null,null,null,null,null,null,null,null,null,null,null,null,null,null,null,null,null,null,"FECHA ACABADO",null,null,null,null,null,null,null,null,null,null,null,null,null,null,null,null,null,null,null,null,null,null,null,null,null,null,"FECHA ACABADO"]
["MOD. 106",null,null,null,null,null,null,null,null,null,null,null,null,null,null,null,null,null,null,null,null,null,null,null,null,null,null,"MOD. 106"]
[]
[" ",null,null,null,null,null,null,null,null,null,null,null,null,null,"REPROGRAFIA, S. G. C.",null,null,null,null,null,null,null,null,null,null,null,null,null,null,null,null,null,null,null,null,null,null,null,null,null,null,"REPROGRAFIA, S. G. C."]
[null,null,null,null,null,null,null,null,null,null,null,null,null,null,"ORDEN DE TRABAJO",null,null,null,null,null,null,null,null,null,null,null,null,null,null,null,null,null,null,null,null,null,null,null,null,null,null,"ORDEN DE TRABAJO"]
[]
[]
["PETICIONARIO",null,null,null,null,null,null,null,null,null,null,null,null,null,null,null,null,null,null,null,null,null,null,null,null,null,null,"PETICIONARIO"]
[]
[]
[]
["DEPARTAMENTO",null,null,null,null,null,null,null,null,null,null,null,null,null,null,null,null,null,null,null,null,null,null,null,null,null,null,"DEPARTAMENTO"]
[]
[]
[]
["TRABAJO A REALIZAR",null,null,null,null,null,null,null,null,null,null,null,null,null,null,null,null,null,null,null,null,null,"UNIDADES",null,null,null,null,"TRABAJO A REALIZAR",null,null,null,null,null,null,null,null,null,null,null,null,null,null,null,null,null,null,null,null,null,"UNIDADES"]
[]
[]
[]
["DENOMINACION OBRA O PROYECTO",null,null,null,null,null,null,null,null,null,null,null,null,null,null,null,null,null,null,null,null,null,null,null,null,null,null,"DENOMINACION OBRA O PROYECTO"]
[]
[]
[]
["CODIGO",null,null,null,null,null,null,null,null,null,null,null,null,null,null,null,null,null,null,null,null,null,null,null,null,null,null,"CODIGO"]
[]
[]
[]
["FECHA ENTRADA",null,null,null,null,null,null,null,null,null,null,null,null,null,null,"FIRMA",null,null,null,null,null,null,null,null,null,null,null,"FECHA ENTRADA",null,null,null,null,null,null,null,null,null,null,null,null,null,null,"FIRMA"]
[]
[null,null,null,null,null,null,null,null,null,"Nº ",null,{"$f":"L2051+1","v":200045},null,null,null,null,null,null,null,null,null,null,null,null,null,null,null,null,null,null,null,null,null,null,null,null,"Nº ",null,{"$f":"AM2051+1","v":200095}]
[]
[]
[]
[]
[]
[]
[]
[]
[]
[]
["CONCEPTO",null,null,null,null,null,"UNIDADES",null,null,null,null,null,null,null,"CONCEPTO",null,null,null,null,null,null,"UNIDADES",null,null,null,null,null,"CONCEPTO",null,null,null,null,null,"UNIDADES",null,null,null,null,null,null,null,"CONCEPTO",null,null,null,null,null,null,"UNIDADES"]
[]
[]
["NOTAS",null,null,null,null,null,null,null,null,null,null,null,null,null,null,null,null,null,null,null,null,null,null,null,null,null,null,"NOTAS"]
["CADA ORDEN PUEDE CONTENER VARIOS TRABAJOS, PERO UN SOLO CARGO",null,null,null,null,null,null,null,null,null,null,null,null,null,null,null,null,null,null,null,null,null,null,null,null,null,null,"CADA ORDEN PUEDE CONTENER VARIOS TRABAJOS, PERO UN SOLO CARGO"]
["NO RELLENAR LOS ESPACIOS CON FONDO",null,null,null,null,null,null,null,null,null,null,null,null,null,null,null,null,null,null,null,null,null,null,null,null,null,null,"NO RELLENAR LOS ESPACIOS CON FONDO"]
[null,null,null,null,null,null,null,null,null,null,null,null,null,null,null,null,null,null,"FECHA ACABADO",null,null,null,null,null,null,null,null,null,null,null,null,null,null,null,null,null,null,null,null,null,null,null,null,null,null,"FECHA ACABADO"]
["MOD. 106",null,null,null,null,null,null,null,null,null,null,null,null,null,null,null,null,null,null,null,null,null,null,null,null,null,null,"MOD. 106"]
[]
[" ",null,null,null,null,null,null,null,null,null,null,null,null,null,"REPROGRAFIA, S. G. C.",null,null,null,null,null,null,null,null,null,null,null,null,null,null,null,null,null,null,null,null,null,null,null,null,null,null,"REPROGRAFIA, S. G. C."]
[null,null,null,null,null,null,null,null,null,null,null,null,null,null,"ORDEN DE TRABAJO",null,null,null,null,null,null,null,null,null,null,null,null,null,null,null,null,null,null,null,null,null,null,null,null,null,null,"ORDEN DE TRABAJO"]
[]
[]
["PETICIONARIO",null,null,null,null,null,null,null,null,null,null,null,null,null,null,null,null,null,null,null,null,null,null,null,null,null,null,"PETICIONARIO"]
[]
[]
[]
["DEPARTAMENTO",null,null,null,null,null,null,null,null,null,null,null,null,null,null,null,null,null,null,null,null,null,null,null,null,null,null,"DEPARTAMENTO"]
[]
[]
[]
["TRABAJO A REALIZAR",null,null,null,null,null,null,null,null,null,null,null,null,null,null,null,null,null,null,null,null,null,"UNIDADES",null,null,null,null,"TRABAJO A REALIZAR",null,null,null,null,null,null,null,null,null,null,null,null,null,null,null,null,null,null,null,null,null,"UNIDADES"]
[]
[]
[]
["DENOMINACION OBRA O PROYECTO",null,null,null,null,null,null,null,null,null,null,null,null,null,null,null,null,null,null,null,null,null,null,null,null,null,null,"DENOMINACION OBRA O PROYECTO"]
[]
[]
[]
["CODIGO",null,null,null,null,null,null,null,null,null,null,null,null,null,null,null,null,null,null,null,null,null,null,null,null,null,null,"CODIGO"]
[]
[]
[]
["FECHA ENTRADA",null,null,null,null,null,null,null,null,null,null,null,null,null,null,"FIRMA",null,null,null,null,null,null,null,null,null,null,null,"FECHA ENTRADA",null,null,null,null,null,null,null,null,null,null,null,null,null,null,"FIRMA"]
[]
[null,null,null,null,null,null,null,null,null,"Nº ",null,{"$f":"L2097+1","v":200046},null,null,null,null,null,null,null,null,null,null,null,null,null,null,null,null,null,null,null,null,null,null,null,null,"Nº ",null,{"$f":"AM2097+1","v":200096}]
[]
[]
[]
[]
[]
[]
[]
[]
[]
[]
["CONCEPTO",null,null,null,null,null,"UNIDADES",null,null,null,null,null,null,null,"CONCEPTO",null,null,null,null,null,null,"UNIDADES",null,null,null,null,null,"CONCEPTO",null,null,null,null,null,"UNIDADES",null,null,null,null,null,null,null,"CONCEPTO",null,null,null,null,null,null,"UNIDADES"]
[]
[]
["NOTAS",null,null,null,null,null,null,null,null,null,null,null,null,null,null,null,null,null,null,null,null,null,null,null,null,null,null,"NOTAS"]
["CADA ORDEN PUEDE CONTENER VARIOS TRABAJOS, PERO UN SOLO CARGO",null,null,null,null,null,null,null,null,null,null,null,null,null,null,null,null,null,null,null,null,null,null,null,null,null,null,"CADA ORDEN PUEDE CONTENER VARIOS TRABAJOS, PERO UN SOLO CARGO"]
["NO RELLENAR LOS ESPACIOS CON FONDO",null,null,null,null,null,null,null,null,null,null,null,null,null,null,null,null,null,null,null,null,null,null,null,null,null,null,"NO RELLENAR LOS ESPACIOS CON FONDO"]
[null,null,null,null,null,null,null,null,null,null,null,null,null,null,null,null,null,null,"FECHA ACABADO",null,null,null,null,null,null,null,null,null,null,null,null,null,null,null,null,null,null,null,null,null,null,null,null,null,null,"FECHA ACABADO"]
["MOD. 106",null,null,null,null,null,null,null,null,null,null,null,null,null,null,null,null,null,null,null,null,null,null,null,null,null,null,"MOD. 106"]
[]
[" ",null,null,null,null,null,null,null,null,null,null,null,null,null,"REPROGRAFIA, S. G. C.",null,null,null,null,null,null,null,null,null,null,null,null,null,null,null,null,null,null,null,null,null,null,null,null,null,null,"REPROGRAFIA, S. G. C."]
[null,null,null,null,null,null,null,null,null,null,null,null,null,null,"ORDEN DE TRABAJO",null,null,null,null,null,null,null,null,null,null,null,null,null,null,null,null,null,null,null,null,null,null,null,null,null,null,"ORDEN DE TRABAJO"]
[]
[]
["PETICIONARIO",null,null,null,null,null,null,null,null,null,null,null,null,null,null,null,null,null,null,null,null,null,null,null,null,null,null,"PETICIONARIO"]
[]
[]
[]
["DEPARTAMENTO",null,null,null,null,null,null,null,null,null,null,null,null,null,null,null,null,null,null,null,null,null,null,null,null,null,null,"DEPARTAMENTO"]
[]
[]
[]
["TRABAJO A REALIZAR",null,null,null,null,null,null,null,null,null,null,null,null,null,null,null,null,null,null,null,null,null,"UNIDADES",null,null,null,null,"TRABAJO A REALIZAR",null,null,null,null,null,null,null,null,null,null,null,null,null,null,null,null,null,null,null,null,null,"UNIDADES"]
[]
[]
[]
["DENOMINACION OBRA O PROYECTO",null,null,null,null,null,null,null,null,null,null,null,null,null,null,null,null,null,null,null,null,null,null,null,null,null,null,"DENOMINACION OBRA O PROYECTO"]
[]
[]
[]
["CODIGO",null,null,null,null,null,null,null,null,null,null,null,null,null,null,null,null,null,null,null,null,null,null,null,null,null,null,"CODIGO"]
[]
[]
[]
["FECHA ENTRADA",null,null,null,null,null,null,null,null,null,null,null,null,null,null,"FIRMA",null,null,null,null,null,null,null,null,null,null,null,"FECHA ENTRADA",null,null,null,null,null,null,null,null,null,null,null,null,null,null,"FIRMA"]
[]
[null,null,null,null,null,null,null,null,null,"Nº ",null,{"$f":"L2143+1","v":200047},null,null,null,null,null,null,null,null,null,null,null,null,null,null,null,null,null,null,null,null,null,null,null,null,"Nº ",null,{"$f":"AM2143+1","v":200097}]
[]
[]
[]
[]
[]
[]
[]
[]
[]
[]
["CONCEPTO",null,null,null,null,null,"UNIDADES",null,null,null,null,null,null,null,"CONCEPTO",null,null,null,null,null,null,"UNIDADES",null,null,null,null,null,"CONCEPTO",null,null,null,null,null,"UNIDADES",null,null,null,null,null,null,null,"CONCEPTO",null,null,null,null,null,null,"UNIDADES"]
[]
[]
["NOTAS",null,null,null,null,null,null,null,null,null,null,null,null,null,null,null,null,null,null,null,null,null,null,null,null,null,null,"NOTAS"]
["CADA ORDEN PUEDE CONTENER VARIOS TRABAJOS, PERO UN SOLO CARGO",null,null,null,null,null,null,null,null,null,null,null,null,null,null,null,null,null,null,null,null,null,null,null,null,null,null,"CADA ORDEN PUEDE CONTENER VARIOS TRABAJOS, PERO UN SOLO CARGO"]
["NO RELLENAR LOS ESPACIOS CON FONDO",null,null,null,null,null,null,null,null,null,null,null,null,null,null,null,null,null,null,null,null,null,null,null,null,null,null,"NO RELLENAR LOS ESPACIOS CON FONDO"]
[null,null,null,null,null,null,null,null,null,null,null,null,null,null,null,null,null,null,"FECHA ACABADO",null,null,null,null,null,null,null,null,null,null,null,null,null,null,null,null,null,null,null,null,null,null,null,null,null,null,"FECHA ACABADO"]
["MOD. 106",null,null,null,null,null,null,null,null,null,null,null,null,null,null,null,null,null,null,null,null,null,null,null,null,null,null,"MOD. 106"]
[]
[" ",null,null,null,null,null,null,null,null,null,null,null,null,null,"REPROGRAFIA, S. G. C.",null,null,null,null,null,null,null,null,null,null,null,null,null,null,null,null,null,null,null,null,null,null,null,null,null,null,"REPROGRAFIA, S. G. C."]
[null,null,null,null,null,null,null,null,null,null,null,null,null,null,"ORDEN DE TRABAJO",null,null,null,null,null,null,null,null,null,null,null,null,null,null,null,null,null,null,null,null,null,null,null,null,null,null,"ORDEN DE TRABAJO"]
[]
[]
["PETICIONARIO",null,null,null,null,null,null,null,null,null,null,null,null,null,null,null,null,null,null,null,null,null,null,null,null,null,null,"PETICIONARIO"]
[]
[]
[]
["DEPARTAMENTO",null,null,null,null,null,null,null,null,null,null,null,null,null,null,null,null,null,null,null,null,null,null,null,null,null,null,"DEPARTAMENTO"]
[]
[]
[]
["TRABAJO A REALIZAR",null,null,null,null,null,null,null,null,null,null,null,null,null,null,null,null,null,null,null,null,null,"UNIDADES",null,null,null,null,"TRABAJO A REALIZAR",null,null,null,null,null,null,null,null,null,null,null,null,null,null,null,null,null,null,null,null,null,"UNIDADES"]
[]
[]
[]
["DENOMINACION OBRA O PROYECTO",null,null,null,null,null,null,null,null,null,null,null,null,null,null,null,null,null,null,null,null,null,null,null,null,null,null,"DENOMINACION OBRA O PROYECTO"]
[]
[]
[]
["CODIGO",null,null,null,null,null,null,null,null,null,null,null,null,null,null,null,null,null,null,null,null,null,null,null,null,null,null,"CODIGO"]
[]
[]
[]
["FECHA ENTRADA",null,null,null,null,null,null,null,null,null,null,null,null,null,null,"FIRMA",null,null,null,null,null,null,null,null,null,null,null,"FECHA ENTRADA",null,null,null,null,null,null,null,null,null,null,null,null,null,null,"FIRMA"]
[]
[null,null,null,null,null,null,null,null,null,"Nº ",null,{"$f":"L2189+1","v":200048},null,null,null,null,null,null,null,null,null,null,null,null,null,null,null,null,null,null,null,null,null,null,null,null,"Nº ",null,{"$f":"AM2189+1","v":200098}]
[]
[]
[]
[]
[]
[]
[]
[]
[]
[]
["CONCEPTO",null,null,null,null,null,"UNIDADES",null,null,null,null,null,null,null,"CONCEPTO",null,null,null,null,null,null,"UNIDADES",null,null,null,null,null,"CONCEPTO",null,null,null,null,null,"UNIDADES",null,null,null,null,null,null,null,"CONCEPTO",null,null,null,null,null,null,"UNIDADES"]
[]
[]
["NOTAS",null,null,null,null,null,null,null,null,null,null,null,null,null,null,null,null,null,null,null,null,null,null,null,null,null,null,"NOTAS"]
["CADA ORDEN PUEDE CONTENER VARIOS TRABAJOS, PERO UN SOLO CARGO",null,null,null,null,null,null,null,null,null,null,null,null,null,null,null,null,null,null,null,null,null,null,null,null,null,null,"CADA ORDEN PUEDE CONTENER VARIOS TRABAJOS, PERO UN SOLO CARGO"]
["NO RELLENAR LOS ESPACIOS CON FONDO",null,null,null,null,null,null,null,null,null,null,null,null,null,null,null,null,null,null,null,null,null,null,null,null,null,null,"NO RELLENAR LOS ESPACIOS CON FONDO"]
[null,null,null,null,null,null,null,null,null,null,null,null,null,null,null,null,null,null,"FECHA ACABADO",null,null,null,null,null,null,null,null,null,null,null,null,null,null,null,null,null,null,null,null,null,null,null,null,null,null,"FECHA ACABADO"]
["MOD. 106",null,null,null,null,null,null,null,null,null,null,null,null,null,null,null,null,null,null,null,null,null,null,null,null,null,null,"MOD. 106"]
[]
[" ",null,null,null,null,null,null,null,null,null,null,null,null,null,"REPROGRAFIA, S. G. C.",null,null,null,null,null,null,null,null,null,null,null,null,null,null,null,null,null,null,null,null,null,null,null,null,null,null,"REPROGRAFIA, S. G. C."]
[null,null,null,null,null,null,null,null,null,null,null,null,null,null,"ORDEN DE TRABAJO",null,null,null,null,null,null,null,null,null,null,null,null,null,null,null,null,null,null,null,null,null,null,null,null,null,null,"ORDEN DE TRABAJO"]
[]
[]
["PETICIONARIO",null,null,null,null,null,null,null,null,null,null,null,null,null,null,null,null,null,null,null,null,null,null,null,null,null,null,"PETICIONARIO"]
[]
[]
[]
["DEPARTAMENTO",null,null,null,null,null,null,null,null,null,null,null,null,null,null,null,null,null,null,null,null,null,null,null,null,null,null,"DEPARTAMENTO"]
[]
[]
[]
["TRABAJO A REALIZAR",null,null,null,null,null,null,null,null,null,null,null,null,null,null,null,null,null,null,null,null,null,"UNIDADES",null,null,null,null,"TRABAJO A REALIZAR",null,null,null,null,null,null,null,null,null,null,null,null,null,null,null,null,null,null,null,null,null,"UNIDADES"]
[]
[]
[]
["DENOMINACION OBRA O PROYECTO",null,null,null,null,null,null,null,null,null,null,null,null,null,null,null,null,null,null,null,null,null,null,null,null,null,null,"DENOMINACION OBRA O PROYECTO"]
[]
[]
[]
["CODIGO",null,null,null,null,null,null,null,null,null,null,null,null,null,null,null,null,null,null,null,null,null,null,null,null,null,null,"CODIGO"]
[]
[]
[]
["FECHA ENTRADA",null,null,null,null,null,null,null,null,null,null,null,null,null,null,"FIRMA",null,null,null,null,null,null,null,null,null,null,null,"FECHA ENTRADA",null,null,null,null,null,null,null,null,null,null,null,null,null,null,"FIRMA"]
[]
[null,null,null,null,null,null,null,null,null,"Nº ",null,{"$f":"L2235+1","v":200049},null,null,null,null,null,null,null,null,null,null,null,null,null,null,null,null,null,null,null,null,null,null,null,null,"Nº ",null,{"$f":"AM2235+1","v":200099}]
[]
[]
[]
[]
[]
[]
[]
[]
[]
[]
["CONCEPTO",null,null,null,null,null,"UNIDADES",null,null,null,null,null,null,null,"CONCEPTO",null,null,null,null,null,null,"UNIDADES",null,null,null,null,null,"CONCEPTO",null,null,null,null,null,"UNIDADES",null,null,null,null,null,null,null,"CONCEPTO",null,null,null,null,null,null,"UNIDADES"]
[]
[]
["NOTAS",null,null,null,null,null,null,null,null,null,null,null,null,null,null,null,null,null,null,null,null,null,null,null,null,null,null,"NOTAS"]
["CADA ORDEN PUEDE CONTENER VARIOS TRABAJOS, PERO UN SOLO CARGO",null,null,null,null,null,null,null,null,null,null,null,null,null,null,null,null,null,null,null,null,null,null,null,null,null,null,"CADA ORDEN PUEDE CONTENER VARIOS TRABAJOS, PERO UN SOLO CARGO"]
["NO RELLENAR LOS ESPACIOS CON FONDO",null,null,null,null,null,null,null,null,null,null,null,null,null,null,null,null,null,null,null,null,null,null,null,null,null,null,"NO RELLENAR LOS ESPACIOS CON FONDO"]
[null,null,null,null,null,null,null,null,null,null,null,null,null,null,null,null,null,null,"FECHA ACABADO",null,null,null,null,null,null,null,null,null,null,null,null,null,null,null,null,null,null,null,null,null,null,null,null,null,null,"FECHA ACABADO"]
["MOD. 106",null,null,null,null,null,null,null,null,null,null,null,null,null,null,null,null,null,null,null,null,null,null,null,null,null,null,"MOD. 106"]